﻿Department family,Entity,Date of payment,Expense type,Expense area,Supplier,Transaction number,Amount in Sterling,Supplier VAT Registration Number
Department of Health,Guys and St Thomas NHS Foundation Trust,14/08/2020,(81700) Lab Equipment Purchase,(id:861419) Cancer Supportive Services and R&D,VIAPATH ANALYTICS LLP,id:13084826 , 565.25
Department of Health,Guys and St Thomas NHS Foundation Trust,14/08/2020,(84400) Transport,(id:42276) Cancer Supportive Services and R&D,CITYSPRINT (UK) LTD,id:13238514  , 938.45
Department of Health,Guys and St Thomas NHS Foundation Trust,21/08/2020,(81700) Lab Equipment Purchase,(id:42270) Haematology,NHS SUPPLY CHAIN (MAIDSTONE),id:13150574   ,  77.60
Department of Health,Guys and St Thomas NHS Foundation Trust,07/08/2020,(81000) Surgical Appliances,(id:42268) Haematology,MEDI UK LTD,id:13227635   ,  76.70
Department of Health,Guys and St Thomas NHS Foundation Trust,21/08/2020,(83500) Furniture & Fittings,(id:42265) Haematology,NHS SUPPLY CHAIN (MAIDSTONE),id:13150574, 478.80
Department of Health,Guys and St Thomas NHS Foundation Trust,21/08/2020,(81255) Medical Surgical Supplies & Equipment,(id:42265) Haematology,NHS SUPPLY CHAIN (MAIDSTONE),id:13162263   ,   3.41
Department of Health,Guys and St Thomas NHS Foundation Trust,21/08/2020,(81900) Lab Equipment Purchase,(id:42272) Haematology,VIAPATH ANALYTICS LLP,id:13090555,2213.59
Department of Health,Guys and St Thomas NHS Foundation Trust,07/08/2020,(80205) Drug Costs,(id:42273) Haematology,HEALTHCARE AT HOME LTD,id:13229841 ,1725.00
Department of Health,Guys and St Thomas NHS Foundation Trust,07/08/2020,(80205) Drug Costs,(id:42273) Haematology,HEALTHCARE AT HOME LTD,id:13229634 ,3875.00
Department of Health,Guys and St Thomas NHS Foundation Trust,07/08/2020,(80205) Drug Costs,(id:42273) Haematology,HEALTHCARE AT HOME LTD,id:13229825 ,4125.00
Department of Health,Guys and St Thomas NHS Foundation Trust,07/08/2020,(80205) Drug Costs,(id:42273) Haematology,HEALTHCARE AT HOME LTD,id:13236295 ,4313.00
Department of Health,Guys and St Thomas NHS Foundation Trust,07/08/2020,(80205) Drug Costs,(id:42273) Haematology,HEALTHCARE AT HOME LTD,id:13236321 ,5125.00
Department of Health,Guys and St Thomas NHS Foundation Trust,07/08/2020,(80205) Drug Costs,(id:42273) Haematology,HEALTHCARE AT HOME LTD,id:13235835 ,5247.00
Department of Health,Guys and St Thomas NHS Foundation Trust,07/08/2020,(80205) Drug Costs,(id:42273) Haematology,HEALTHCARE AT HOME LTD,id:13229776 ,6125.00
Department of Health,Guys and St Thomas NHS Foundation Trust,07/08/2020,(80205) Drug Costs,(id:42273) Haematology,HEALTHCARE AT HOME LTD,id:13229654 ,6125.00
Department of Health,Guys and St Thomas NHS Foundation Trust,07/08/2020,(80205) Drug Costs,(id:42273) Haematology,HEALTHCARE AT HOME LTD,id:13236311 ,6527.00
Department of Health,Guys and St Thomas NHS Foundation Trust,07/08/2020,(80205) Drug Costs,(id:42273) Haematology,HEALTHCARE AT HOME LTD,id:13235847 ,7327.00
Department of Health,Guys and St Thomas NHS Foundation Trust,07/08/2020,(80205) Drug Costs,(id:42273) Haematology,HEALTHCARE AT HOME LTD,id:13236299 ,    16607.00
Department of Health,Guys and St Thomas NHS Foundation Trust,07/08/2020,(80205) Drug Costs,(id:42273) Haematology,HEALTHCARE AT HOME LTD,id:13235734 ,    22627.00
Department of Health,Guys and St Thomas NHS Foundation Trust,07/08/2020,(80205) Drug Costs,(id:42273) Haematology,HEALTHCARE AT HOME LTD,id:13235684 ,    24277.00
Department of Health,Guys and St Thomas NHS Foundation Trust,21/08/2020,(80205) Drug Costs,(id:42273) Haematology,HEALTHCARE AT HOME LTD,id:13272095 ,3007.00
Department of Health,Guys and St Thomas NHS Foundation Trust,21/08/2020,(80205) Drug Costs,(id:42273) Haematology,HEALTHCARE AT HOME LTD,id:13271614 ,3837.00
Department of Health,Guys and St Thomas NHS Foundation Trust,21/08/2020,(80205) Drug Costs,(id:42273) Haematology,HEALTHCARE AT HOME LTD,id:13271578 ,4927.00
Department of Health,Guys and St Thomas NHS Foundation Trust,21/08/2020,(80205) Drug Costs,(id:42273) Haematology,HEALTHCARE AT HOME LTD,id:13271957 ,6752.00
Department of Health,Guys and St Thomas NHS Foundation Trust,21/08/2020,(80205) Drug Costs,(id:42273) Haematology,HEALTHCARE AT HOME LTD,id:13271955 ,8047.00
Department of Health,Guys and St Thomas NHS Foundation Trust,21/08/2020,(80205) Drug Costs,(id:42273) Haematology,HEALTHCARE AT HOME LTD,id:13271994 ,9097.00
Department of Health,Guys and St Thomas NHS Foundation Trust,26/08/2020,(80205) Drug Costs,(id:42273) Haematology,HEALTHCARE AT HOME LTD,id:13272054 ,    61727.00
Department of Health,Guys and St Thomas NHS Foundation Trust,07/08/2020,(54052) Technical Officers,(id:42128) Haematology,TOTAL ASSIST RECRUITMENT LTD,id:13236055  ,1144.09
Department of Health,Guys and St Thomas NHS Foundation Trust,14/08/2020,(83610) IT Costs,(id:4631423) Haematology,SCC PLC)SPECIALIST COMPUTER CENTRES,id:13121968   , 525.00
Department of Health,Guys and St Thomas NHS Foundation Trust,18/08/2020,(52062) Radiographers,(id:42258) Oncology Services,PRICEWATERHOUSECOOPERS LLP,id:13268716   ,3818.55
Department of Health,Guys and St Thomas NHS Foundation Trust,18/08/2020,(52062) Radiographers,(id:42258) Oncology Services,PRICEWATERHOUSECOOPERS LLP,id:13268194   ,2530.72
Department of Health,Guys and St Thomas NHS Foundation Trust,07/08/2020,(81000) Surgical Appliances,(id:42257) Oncology Services,TALAR MADE ORTHOTICS LTD,id:13234714    , 446.82
Department of Health,Guys and St Thomas NHS Foundation Trust,27/08/2020,(81000) Surgical Appliances,(id:42261) Oncology Services,TALAR MADE ORTHOTICS LTD,id:13288918    ,  42.48
Department of Health,Guys and St Thomas NHS Foundation Trust,07/08/2020,(81200) Medical Surgical Supplies & Equipment,(id:42260) Oncology Services,KIMAL PLC,id:13231260 ,4410.62
Department of Health,Guys and St Thomas NHS Foundation Trust,21/08/2020,(81200) Medical Surgical Supplies & Equipment,(id:42260) Oncology Services,KIMAL PLC,id:13274414 ,    -4410.62
Department of Health,Guys and St Thomas NHS Foundation Trust,14/08/2020,(81400) Medical Surgical Supplies & Equipment,(id:42260) Oncology Services,NHS SUPPLY CHAIN ( CAPITAL FUND ONLY),id:13255175   ,1456.35
Department of Health,Guys and St Thomas NHS Foundation Trust,21/08/2020,(81700) Lab Equipment Purchase,(id:42260) Oncology Services,NHS SUPPLY CHAIN (MAIDSTONE),id:13162263  , 286.06
Department of Health,Guys and St Thomas NHS Foundation Trust,21/08/2020,(82000) Provisions & Kitchens,(id:42259) Oncology Services,NHS SUPPLY CHAIN (MAIDSTONE),id:13150574   , 425.09
Department of Health,Guys and St Thomas NHS Foundation Trust,21/08/2020,(82800) Bedding & Linen,(id:42259) Oncology Services,NHS SUPPLY CHAIN (MAIDSTONE),id:13162263    , 158.70
Department of Health,Guys and St Thomas NHS Foundation Trust,21/08/2020,(81700) Lab Equipment Purchase,(id:42259) Oncology Services,NHS SUPPLY CHAIN (MAIDSTONE),id:13150574  ,  22.08
Department of Health,Guys and St Thomas NHS Foundation Trust,21/08/2020,(81255) Medical Surgical Supplies & Equipment,(id:42259) Oncology Services,NHS SUPPLY CHAIN (MAIDSTONE),id:13162263  ,   5.02
Department of Health,Guys and St Thomas NHS Foundation Trust,21/08/2020,(81200) Medical Surgical Supplies & Equipment,(id:42280) Surgical Oncology,NHS SUPPLY CHAIN (MAIDSTONE),id:13150574  ,  88.80
Department of Health,Guys and St Thomas NHS Foundation Trust,27/08/2020,(81200) Medical Surgical Supplies & Equipment,(id:42280) Surgical Oncology,SQUADRON MEDICAL LTD,id:13250914, 319.21
Department of Health,Guys and St Thomas NHS Foundation Trust,07/08/2020,(81200) Medical Surgical Supplies & Equipment,(id:42280) Surgical Oncology,SQUADRON MEDICAL LTD,id:13209277, 319.21
Department of Health,Guys and St Thomas NHS Foundation Trust,07/08/2020,(81200) Medical Surgical Supplies & Equipment,(id:42280) Surgical Oncology,JOHNSON & JOHNSON MEDICAL LTD,id:13209197 , 354.49
Department of Health,Guys and St Thomas NHS Foundation Trust,21/08/2020,(81200) Medical Surgical Supplies & Equipment,(id:243406) Surgical Oncology,NHS SUPPLY CHAIN (MAIDSTONE),id:13162263 , 892.33
Department of Health,Guys and St Thomas NHS Foundation Trust,21/08/2020,(81255) Medical Surgical Supplies & Equipment,(id:243406) Surgical Oncology,NHS SUPPLY CHAIN (MAIDSTONE),id:13150574 ,   2.50
Department of Health,Guys and St Thomas NHS Foundation Trust,07/08/2020,(81000) Surgical Appliances,(id:42477) Surgical Oncology,TALAR MADE ORTHOTICS LTD,id:13220963    ,  26.74
Department of Health,Guys and St Thomas NHS Foundation Trust,21/08/2020,(81200) Medical Surgical Supplies & Equipment,(id:42474) Surgical Oncology,NHS SUPPLY CHAIN (MAIDSTONE),id:13162263  ,  45.79
Department of Health,Guys and St Thomas NHS Foundation Trust,21/08/2020,(81200) Medical Surgical Supplies & Equipment,(id:42474) Surgical Oncology,NHS SUPPLY CHAIN (MAIDSTONE),id:13150574  , 353.85
Department of Health,Guys and St Thomas NHS Foundation Trust,21/08/2020,(81200) Medical Surgical Supplies & Equipment,(id:42473) Surgical Oncology,MEDTRONIC LTD,id:13253174  , 510.00
Department of Health,Guys and St Thomas NHS Foundation Trust,07/08/2020,(81215) Medical Surgical Supplies & Equipment,(id:42475) Surgical Oncology,ADVANCED BIONICS SARL (AND UK LTD),id:13218134 ,6840.00
Department of Health,Guys and St Thomas NHS Foundation Trust,14/08/2020,(81215) Medical Surgical Supplies & Equipment,(id:42475) Surgical Oncology,CONNEVANS LTD,id:13258115  ,1604.34
Department of Health,Guys and St Thomas NHS Foundation Trust,21/08/2020,(81215) Medical Surgical Supplies & Equipment,(id:42475) Surgical Oncology,NHS SUPPLY CHAIN (MAIDSTONE),id:13150574  ,6918.42
Department of Health,Guys and St Thomas NHS Foundation Trust,21/08/2020,(81225) Medical Surgical Supplies & Equipment,(id:42475) Surgical Oncology,NHS SUPPLY CHAIN (MAIDSTONE),id:13150574  ,1707.60
Department of Health,Guys and St Thomas NHS Foundation Trust,27/08/2020,(81225) Medical Surgical Supplies & Equipment,(id:42475) Surgical Oncology,COCHLEAR EUROPE LTD,id:13291274 ,    19203.60
Department of Health,Guys and St Thomas NHS Foundation Trust,14/08/2020,(81225) Medical Surgical Supplies & Equipment,(id:42475) Surgical Oncology,COCHLEAR EUROPE LTD,id:13238722 ,    10788.00
Department of Health,Guys and St Thomas NHS Foundation Trust,14/08/2020,(81225) Medical Surgical Supplies & Equipment,(id:42475) Surgical Oncology,COCHLEAR EUROPE LTD,id:13238629 ,    11100.00
Department of Health,Guys and St Thomas NHS Foundation Trust,14/08/2020,(81225) Medical Surgical Supplies & Equipment,(id:42475) Surgical Oncology,COCHLEAR EUROPE LTD,id:13245841 ,    -7168.80
Department of Health,Guys and St Thomas NHS Foundation Trust,14/08/2020,(81225) Medical Surgical Supplies & Equipment,(id:42475) Surgical Oncology,COCHLEAR EUROPE LTD,id:13238626 ,1251.60
Department of Health,Guys and St Thomas NHS Foundation Trust,07/08/2020,(81225) Medical Surgical Supplies & Equipment,(id:42475) Surgical Oncology,COCHLEAR EUROPE LTD,id:13218274 ,    11100.00
Department of Health,Guys and St Thomas NHS Foundation Trust,21/08/2020,(81400) Medical Surgical Supplies & Equipment,(id:42286) Surgical Oncology,LYNTON SERVICES,id:13170754,2680.00
Department of Health,Guys and St Thomas NHS Foundation Trust,27/08/2020,(83400) Office Equipment,(id:42286) Surgical Oncology,THERMO FISHER SCIENTIFIC,id:12820703  , 684.00
Department of Health,Guys and St Thomas NHS Foundation Trust,21/08/2020,(81200) Medical Surgical Supplies & Equipment,(id:42286) Surgical Oncology,NHS SUPPLY CHAIN (MAIDSTONE),id:13150574  ,5799.24
Department of Health,Guys and St Thomas NHS Foundation Trust,27/08/2020,(81200) Medical Surgical Supplies & Equipment,(id:42470) Surgical Oncology,KAPITEX HEALTHCARE LTD,id:13254999   , 911.40
Department of Health,Guys and St Thomas NHS Foundation Trust,21/08/2020,(81225) Medical Surgical Supplies & Equipment,(id:42470) Surgical Oncology,NHS SUPPLY CHAIN (MAIDSTONE),id:13162263  ,  19.39
Department of Health,Guys and St Thomas NHS Foundation Trust,21/08/2020,(82700) Uniforms & Clothing,(id:2182419) Medicine,NHS SUPPLY CHAIN (MAIDSTONE),id:13162263  , 136.36
Department of Health,Guys and St Thomas NHS Foundation Trust,21/08/2020,(81255) Medical Surgical Supplies & Equipment,(id:2182419) Medicine,NHS SUPPLY CHAIN (MAIDSTONE),id:13162263    ,  11.58
Department of Health,Guys and St Thomas NHS Foundation Trust,21/08/2020,(81200) Medical Surgical Supplies & Equipment,(id:2182419) Medicine,NHS SUPPLY CHAIN (MAIDSTONE),id:13150574    ,2018.08
Department of Health,Guys and St Thomas NHS Foundation Trust,14/08/2020,(50552) Qualified Nursing Staff,(id:2182419) Medicine,CARE PROVIDERS HEALTHCARE,id:13260631 , 652.52
Department of Health,Guys and St Thomas NHS Foundation Trust,21/08/2020,(50552) Qualified Nursing Staff,(id:2182419) Medicine,MSI GROUP LTD,id:13282175   , 352.36
Department of Health,Guys and St Thomas NHS Foundation Trust,21/08/2020,(81100) Dressings,(id:41860) Medicine,NHS SUPPLY CHAIN (MAIDSTONE),id:13150574    , 250.89
Department of Health,Guys and St Thomas NHS Foundation Trust,21/08/2020,(50552) Qualified Nursing Staff,(id:41860) Medicine,GLOBE LOCUMS LTD,id:13279916  , 277.24
Department of Health,Guys and St Thomas NHS Foundation Trust,21/08/2020,(50552) Qualified Nursing Staff,(id:41860) Medicine,PULSE HEALTHCARE LIMITED,id:13279678    , 654.47
Department of Health,Guys and St Thomas NHS Foundation Trust,21/08/2020,(81255) Medical Surgical Supplies & Equipment,(id:41860) Medicine,NHS SUPPLY CHAIN (MAIDSTONE),id:13162263 ,   3.11
Department of Health,Guys and St Thomas NHS Foundation Trust,21/08/2020,(50522) Unqualified Nursing Staff,(id:41860) Medicine,MSI GROUP LTD,id:13279828   , 416.54
Department of Health,Guys and St Thomas NHS Foundation Trust,21/08/2020,(50522) Unqualified Nursing Staff,(id:41860) Medicine,MSI GROUP LTD,id:13279887   , 208.27
Department of Health,Guys and St Thomas NHS Foundation Trust,21/08/2020,(81225) Medical Surgical Supplies & Equipment,(id:41860) Medicine,NHS SUPPLY CHAIN (MAIDSTONE),id:13150574 ,   6.12
Department of Health,Guys and St Thomas NHS Foundation Trust,21/08/2020,(82000) Provisions & Kitchens,(id:41859) Medicine,NHS SUPPLY CHAIN (MAIDSTONE),id:13150574  ,  53.65
Department of Health,Guys and St Thomas NHS Foundation Trust,21/08/2020,(81100) Dressings,(id:41859) Medicine,NHS SUPPLY CHAIN (MAIDSTONE),id:13150574    , 159.51
Department of Health,Guys and St Thomas NHS Foundation Trust,27/08/2020,(50552) Qualified Nursing Staff,(id:41859) Medicine,CARE PROVIDERS HEALTHCARE,id:13294427   , 755.44
Department of Health,Guys and St Thomas NHS Foundation Trust,21/08/2020,(50522) Unqualified Nursing Staff,(id:41859) Medicine,MSI GROUP LTD,id:13279677   , 299.70
Department of Health,Guys and St Thomas NHS Foundation Trust,27/08/2020,(50552) Qualified Nursing Staff,(id:41858) Medicine,MSI GROUP LTD,id:13292753, 335.18
Department of Health,Guys and St Thomas NHS Foundation Trust,21/08/2020,(81225) Medical Surgical Supplies & Equipment,(id:41858) Medicine,NHS SUPPLY CHAIN (MAIDSTONE),id:13150574 ,  30.80
Department of Health,Guys and St Thomas NHS Foundation Trust,21/08/2020,(82000) Provisions & Kitchens,(id:860419) Medicine,NHS SUPPLY CHAIN (MAIDSTONE),id:13162263 ,  10.14
Department of Health,Guys and St Thomas NHS Foundation Trust,27/08/2020,(81000) Surgical Appliances,(id:41872) Medicine,TALAR MADE ORTHOTICS LTD,id:13288855   ,  46.50
Department of Health,Guys and St Thomas NHS Foundation Trust,07/08/2020,(50552) Qualified Nursing Staff,(id:41872) Medicine,CONTINENTAL NURSE LTD,id:13236054  ,2786.56
Department of Health,Guys and St Thomas NHS Foundation Trust,14/08/2020,(50552) Qualified Nursing Staff,(id:41872) Medicine,CONTINENTAL NURSE LTD,id:13257290  ,2599.07
Department of Health,Guys and St Thomas NHS Foundation Trust,07/08/2020,(50570) Qualified Nursing Staff,(id:41872) Medicine,SOUTH LONDON AND MAUDSLEY NHS FOUNDATION TRUST,id:13213591  ,    11595.00
Department of Health,Guys and St Thomas NHS Foundation Trust,21/08/2020,(82000) Provisions & Kitchens,(id:41869) Medicine,NHS SUPPLY CHAIN (MAIDSTONE),id:13150574  ,  60.48
Department of Health,Guys and St Thomas NHS Foundation Trust,14/08/2020,(83400) Office Equipment,(id:41869) Medicine,SQUADRON MEDICAL LTD,id:13219451, 175.34
Department of Health,Guys and St Thomas NHS Foundation Trust,21/08/2020,(82800) Bedding & Linen,(id:41869) Medicine,NHS SUPPLY CHAIN (MAIDSTONE),id:13150574   , 256.04
Department of Health,Guys and St Thomas NHS Foundation Trust,21/08/2020,(82800) Bedding & Linen,(id:41869) Medicine,NHS SUPPLY CHAIN (MAIDSTONE),id:13162263   , 577.29
Department of Health,Guys and St Thomas NHS Foundation Trust,07/08/2020,(81200) Medical Surgical Supplies & Equipment,(id:41869) Medicine,SQUADRON MEDICAL LTD,id:13209276    , 713.83
Department of Health,Guys and St Thomas NHS Foundation Trust,14/08/2020,(81200) Medical Surgical Supplies & Equipment,(id:41869) Medicine,SQUADRON MEDICAL LTD,id:13232511    , 569.54
Department of Health,Guys and St Thomas NHS Foundation Trust,21/08/2020,(81100) Dressings,(id:41869) Medicine,SQUADRON MEDICAL LTD,id:13241793  ,  38.77
Department of Health,Guys and St Thomas NHS Foundation Trust,14/08/2020,(81100) Dressings,(id:41869) Medicine,SQUADRON MEDICAL LTD,id:13228019  , 264.03
Department of Health,Guys and St Thomas NHS Foundation Trust,14/08/2020,(81100) Dressings,(id:41869) Medicine,SQUADRON MEDICAL LTD,id:13219414  ,  60.58
Department of Health,Guys and St Thomas NHS Foundation Trust,14/08/2020,(81700) Lab Equipment Purchase,(id:41869) Medicine,SQUADRON MEDICAL LTD,id:13219451    ,  62.71
Department of Health,Guys and St Thomas NHS Foundation Trust,21/08/2020,(81100) Dressings,(id:41868) Medicine,NHS SUPPLY CHAIN (MAIDSTONE),id:13162263    , 591.38
Department of Health,Guys and St Thomas NHS Foundation Trust,21/08/2020,(81200) Medical Surgical Supplies & Equipment,(id:41868) Medicine,NHS SUPPLY CHAIN (MAIDSTONE),id:13150574 ,   5.40
Department of Health,Guys and St Thomas NHS Foundation Trust,07/08/2020,(83500) Furniture & Fittings,(id:41882) Medicine,TECHNIBLINDS LTD,id:13220440, 583.80
Department of Health,Guys and St Thomas NHS Foundation Trust,21/08/2020,(82000) Provisions & Kitchens,(id:41880) Medicine,NHS SUPPLY CHAIN (MAIDSTONE),id:13150574  , 317.13
Department of Health,Guys and St Thomas NHS Foundation Trust,21/08/2020,(81200) Medical Surgical Supplies & Equipment,(id:41879) Medicine,NHS SUPPLY CHAIN (MAIDSTONE),id:13162263 , 536.58
Department of Health,Guys and St Thomas NHS Foundation Trust,21/08/2020,(81100) Dressings,(id:41878) Medicine,NHS SUPPLY CHAIN (MAIDSTONE),id:13150574    , 952.70
Department of Health,Guys and St Thomas NHS Foundation Trust,21/08/2020,(81700) Lab Equipment Purchase,(id:41878) Medicine,NHS SUPPLY CHAIN (MAIDSTONE),id:13162263 ,   5.93
Department of Health,Guys and St Thomas NHS Foundation Trust,27/08/2020,(81000) Surgical Appliances,(id:41876) Medicine,TALAR MADE ORTHOTICS LTD,id:13288873   ,  26.41
Department of Health,Guys and St Thomas NHS Foundation Trust,07/08/2020,(50552) Qualified Nursing Staff,(id:41881) Medicine,MEDICSPRO LTD,id:13235940, 936.55
Department of Health,Guys and St Thomas NHS Foundation Trust,21/08/2020,(81200) Medical Surgical Supplies & Equipment,(id:41881) Medicine,NHS SUPPLY CHAIN (MAIDSTONE),id:13162263 , 773.58
Department of Health,Guys and St Thomas NHS Foundation Trust,21/08/2020,(81225) Medical Surgical Supplies & Equipment,(id:41881) Medicine,NHS SUPPLY CHAIN (MAIDSTONE),id:13150574 ,  16.30
Department of Health,Guys and St Thomas NHS Foundation Trust,27/08/2020,(83880) Building & Engineering,(id:4631419) Integrated Therapies and Rehabilitation,LAZERBEAM FIRE AND SECURITY LTD,id:13285674,1580.00
Department of Health,Guys and St Thomas NHS Foundation Trust,21/08/2020,(81225) Medical Surgical Supplies & Equipment,(id:42239) Integrated Therapies and Rehabilitation,PERFORMANCE HEALTH INTERNATIONAL LTD (PATTERSON),id:13254957, 502.28
Department of Health,Guys and St Thomas NHS Foundation Trust,21/08/2020,(83400) Office Equipment,(id:590490) Integrated Therapies and Rehabilitation,NHS SUPPLY CHAIN (MAIDSTONE),id:13162263,  42.72
Department of Health,Guys and St Thomas NHS Foundation Trust,27/08/2020,(83610) IT Costs,(id:590500) Integrated Therapies and Rehabilitation,SMARTBOX ASSISTIVE TECHNOLOGY LTD,id:13286979   ,    11058.00
Department of Health,Guys and St Thomas NHS Foundation Trust,27/08/2020,(81200) Medical Surgical Supplies & Equipment,(id:590499) Integrated Therapies and Rehabilitation,INVACARE LTD,id:13263334,1484.40
Department of Health,Guys and St Thomas NHS Foundation Trust,14/08/2020,(81225) Medical Surgical Supplies & Equipment,(id:590499) Integrated Therapies and Rehabilitation,INVACARE LTD,id:13165968, 757.40
Department of Health,Guys and St Thomas NHS Foundation Trust,21/08/2020,(50200) Consultants,(id:590498) Integrated Therapies and Rehabilitation,KING'S COLLEGE HOSPITAL NHS FOUNDATION TRUST,id:12241811    ,1519.03
Department of Health,Guys and St Thomas NHS Foundation Trust,14/08/2020,(81225) Medical Surgical Supplies & Equipment,(id:590498) Integrated Therapies and Rehabilitation,JANE SAUNDERS & MANNING LTD,id:13227414, 643.41
Department of Health,Guys and St Thomas NHS Foundation Trust,21/08/2020,(81000) Surgical Appliances,(id:590498) Integrated Therapies and Rehabilitation,THUASNE UK LTD,id:13265254 ,1140.00
Department of Health,Guys and St Thomas NHS Foundation Trust,14/08/2020,(81000) Surgical Appliances,(id:590498) Integrated Therapies and Rehabilitation,BEAGLE ORTHOPAEDIC LTD,id:13227254   , 782.77
Department of Health,Guys and St Thomas NHS Foundation Trust,07/08/2020,(86300) Healthcare from non-NHS bodies,(id:590579) Integrated Local Services,MONTE FIELDS,id:13226714 , 680.00
Department of Health,Guys and St Thomas NHS Foundation Trust,21/08/2020,(82800) Bedding & Linen,(id:1885424) Integrated Local Services,NHS SUPPLY CHAIN (MAIDSTONE),id:13162263    , 100.80
Department of Health,Guys and St Thomas NHS Foundation Trust,18/08/2020,(51462) Occupational Therapists,(id:1371419) Integrated Local Services,PRICEWATERHOUSECOOPERS LLP,id:13268194   ,1004.60
Department of Health,Guys and St Thomas NHS Foundation Trust,07/08/2020,(50562) Qualified Nursing Staff,(id:1371419) Integrated Local Services,MSI GROUP LTD,id:13235980 ,1065.09
Department of Health,Guys and St Thomas NHS Foundation Trust,14/08/2020,(50562) Qualified Nursing Staff,(id:1371419) Integrated Local Services,MSI GROUP LTD,id:13257508 ,1611.17
Department of Health,Guys and St Thomas NHS Foundation Trust,07/08/2020,(50562) Qualified Nursing Staff,(id:699422) Integrated Local Services,MSI GROUP LTD,id:13235954  ,1267.81
Department of Health,Guys and St Thomas NHS Foundation Trust,25/08/2020,(51832) Physiotherapists,(id:699422) Integrated Local Services,PRICEWATERHOUSECOOPERS LLP,id:13288926 ,2685.70
Department of Health,Guys and St Thomas NHS Foundation Trust,18/08/2020,(51472) Occupational Therapists,(id:699422) Integrated Local Services,PRICEWATERHOUSECOOPERS LLP,id:13268194    ,2208.67
Department of Health,Guys and St Thomas NHS Foundation Trust,17/08/2020,(51462) Occupational Therapists,(id:590492) Integrated Local Services,PRICEWATERHOUSECOOPERS LLP,id:13267854    ,1154.70
Department of Health,Guys and St Thomas NHS Foundation Trust,18/08/2020,(51462) Occupational Therapists,(id:590492) Integrated Local Services,PRICEWATERHOUSECOOPERS LLP,id:13268194    ,2028.26
Department of Health,Guys and St Thomas NHS Foundation Trust,17/08/2020,(53072) Speech Therapists,(id:1888419) Integrated Local Services,PRICEWATERHOUSECOOPERS LLP,id:13267854    ,1447.92
Department of Health,Guys and St Thomas NHS Foundation Trust,21/08/2020,(81100) Dressings,(id:684420) Integrated Local Services,NHS SUPPLY CHAIN (MAIDSTONE),id:13150574 ,  83.88
Department of Health,Guys and St Thomas NHS Foundation Trust,17/08/2020,(51862) Physiotherapists,(id:684419) Integrated Local Services,PRICEWATERHOUSECOOPERS LLP,id:13267854 ,2520.40
Department of Health,Guys and St Thomas NHS Foundation Trust,18/08/2020,(51862) Physiotherapists,(id:684419) Integrated Local Services,PRICEWATERHOUSECOOPERS LLP,id:13268716 ,2006.09
Department of Health,Guys and St Thomas NHS Foundation Trust,17/08/2020,(51842) Physiotherapists,(id:684419) Integrated Local Services,PRICEWATERHOUSECOOPERS LLP,id:13267854 ,1668.12
Department of Health,Guys and St Thomas NHS Foundation Trust,18/08/2020,(51842) Physiotherapists,(id:684419) Integrated Local Services,PRICEWATERHOUSECOOPERS LLP,id:13268194 ,1605.41
Department of Health,Guys and St Thomas NHS Foundation Trust,07/08/2020,(50552) Qualified Nursing Staff,(id:4460419) Integrated Local Services,MSI GROUP LTD,id:13236052 ,1003.50
Department of Health,Guys and St Thomas NHS Foundation Trust,07/08/2020,(84500) Establishment,(id:590522) Integrated Local Services,CDP  PRINT MANAGEMENT,id:13234335    ,3084.00
Department of Health,Guys and St Thomas NHS Foundation Trust,21/08/2020,(81200) Medical Surgical Supplies & Equipment,(id:590521) Integrated Local Services,NHS SUPPLY CHAIN (MAIDSTONE),id:13162263   ,  72.48
Department of Health,Guys and St Thomas NHS Foundation Trust,14/08/2020,(50552) Qualified Nursing Staff,(id:590521) Integrated Local Services,MSI GROUP LTD,id:13257364  , 594.19
Department of Health,Guys and St Thomas NHS Foundation Trust,07/08/2020,(50552) Qualified Nursing Staff,(id:590520) Integrated Local Services,YOUR WORLD RECRUITMENT LIMITED(YOUR WORLD HEALTHCARE),id:13212592  , 987.75
Department of Health,Guys and St Thomas NHS Foundation Trust,21/08/2020,(81700) Lab Equipment Purchase,(id:590535) Integrated Local Services,NHS SUPPLY CHAIN (MAIDSTONE),id:13150574   ,  19.09
Department of Health,Guys and St Thomas NHS Foundation Trust,21/08/2020,(81200) Medical Surgical Supplies & Equipment,(id:590535) Integrated Local Services,NHS SUPPLY CHAIN (MAIDSTONE),id:13150574   ,  25.99
Department of Health,Guys and St Thomas NHS Foundation Trust,21/08/2020,(82800) Bedding & Linen,(id:590535) Integrated Local Services,NHS SUPPLY CHAIN (MAIDSTONE),id:13162263,  25.20
Department of Health,Guys and St Thomas NHS Foundation Trust,14/08/2020,(81200) Medical Surgical Supplies & Equipment,(id:590527) Integrated Local Services,ARJO UK LIMITED,id:11270591 ,2120.40
Department of Health,Guys and St Thomas NHS Foundation Trust,21/08/2020,(81200) Medical Surgical Supplies & Equipment,(id:590527) Integrated Local Services,NHS SUPPLY CHAIN (MAIDSTONE),id:13150574   , 113.28
Department of Health,Guys and St Thomas NHS Foundation Trust,21/08/2020,(81100) Dressings,(id:590526) Integrated Local Services,NHS SUPPLY CHAIN (MAIDSTONE),id:13150574 , 128.87
Department of Health,Guys and St Thomas NHS Foundation Trust,21/08/2020,(50522) Unqualified Nursing Staff,(id:590526) Integrated Local Services,MSI GROUP LTD,id:13279887, 208.27
Department of Health,Guys and St Thomas NHS Foundation Trust,18/08/2020,(51872) Physiotherapists,(id:903421) Integrated Local Services,PRICEWATERHOUSECOOPERS LLP,id:13268716 ,1506.37
Department of Health,Guys and St Thomas NHS Foundation Trust,18/08/2020,(51872) Physiotherapists,(id:903421) Integrated Local Services,PRICEWATERHOUSECOOPERS LLP,id:13268194 ,2208.44
Department of Health,Guys and St Thomas NHS Foundation Trust,07/08/2020,(80040) Drug Costs,(id:590491) Integrated Local Services,NHS BUSINESS SERVICES AUTHORITY,id:13220723  ,    81888.47
Department of Health,Guys and St Thomas NHS Foundation Trust,21/08/2020,(81100) Dressings,(id:42518) Evelina Womens Services,NHS SUPPLY CHAIN (MAIDSTONE),id:13150574    ,  19.00
Department of Health,Guys and St Thomas NHS Foundation Trust,21/08/2020,(84500) Establishment,(id:42517) Evelina Womens Services,OFFICE DEPOT UK LTD,id:13227816    ,  33.05
Department of Health,Guys and St Thomas NHS Foundation Trust,14/08/2020,(84657) Establishment,(id:42517) Evelina Womens Services,IRON MOUNTAIN (UK) LTD,id:13219795 ,1140.41
Department of Health,Guys and St Thomas NHS Foundation Trust,07/08/2020,(81200) Medical Surgical Supplies & Equipment,(id:42517) Evelina Womens Services,BOC LTD :02107500,id:13194574  ,2079.73
Department of Health,Guys and St Thomas NHS Foundation Trust,27/08/2020,(81200) Medical Surgical Supplies & Equipment,(id:42517) Evelina Womens Services,ARGON MEDICAL DEVICES UK LTD (FORMERLY)MANA-TECH LTD,id:13288224  ,1320.00
Department of Health,Guys and St Thomas NHS Foundation Trust,21/08/2020,(83400) Office Equipment,(id:42514) Evelina Womens Services,NHS SUPPLY CHAIN (MAIDSTONE),id:13162263  ,  29.45
Department of Health,Guys and St Thomas NHS Foundation Trust,14/08/2020,(89000) Other - Training courses and conferences,(id:42514) Evelina Womens Services,PREGNANCY EXPECTATIONS TRAUMA AND LOSS SOCIETY  (PETALS),id:13194351,3150.00
Department of Health,Guys and St Thomas NHS Foundation Trust,21/08/2020,(82800) Bedding & Linen,(id:42513) Evelina Womens Services,NHS SUPPLY CHAIN (MAIDSTONE),id:13162263   ,  32.14
Department of Health,Guys and St Thomas NHS Foundation Trust,21/08/2020,(82800) Bedding & Linen,(id:42513) Evelina Womens Services,NHS SUPPLY CHAIN (MAIDSTONE),id:13150574   ,  86.19
Department of Health,Guys and St Thomas NHS Foundation Trust,21/08/2020,(82700) Uniforms & Clothing,(id:42513) Evelina Womens Services,NHS SUPPLY CHAIN (MAIDSTONE),id:13150574    ,  70.62
Department of Health,Guys and St Thomas NHS Foundation Trust,21/08/2020,(82800) Bedding & Linen,(id:42510) Evelina Womens Services,NHS SUPPLY CHAIN (MAIDSTONE),id:13150574   ,  79.35
Department of Health,Guys and St Thomas NHS Foundation Trust,21/08/2020,(82800) Bedding & Linen,(id:42510) Evelina Womens Services,NHS SUPPLY CHAIN (MAIDSTONE),id:13162263   ,  42.05
Department of Health,Guys and St Thomas NHS Foundation Trust,07/08/2020,(81200) Medical Surgical Supplies & Equipment,(id:42509) Evelina Womens Services,SQUADRON MEDICAL LTD,id:13208798    , 285.14
Department of Health,Guys and St Thomas NHS Foundation Trust,21/08/2020,(81200) Medical Surgical Supplies & Equipment,(id:42509) Evelina Womens Services,NHS SUPPLY CHAIN (MAIDSTONE),id:13162263 , 281.52
Department of Health,Guys and St Thomas NHS Foundation Trust,27/08/2020,(81200) Medical Surgical Supplies & Equipment,(id:42509) Evelina Womens Services,STRYKER UK LTD,id:13282413,1699.20
Department of Health,Guys and St Thomas NHS Foundation Trust,21/08/2020,(82800) Bedding & Linen,(id:42486) Evelina Womens Services,NHS SUPPLY CHAIN (MAIDSTONE),id:13162263   ,  25.20
Department of Health,Guys and St Thomas NHS Foundation Trust,14/08/2020,(81900) Lab Equipment Purchase,(id:42486) Evelina Womens Services,VIAPATH ANALYTICS LLP,id:13204734   ,4121.00
Department of Health,Guys and St Thomas NHS Foundation Trust,21/08/2020,(50562) Qualified Nursing Staff,(id:42503) Evelina Womens Services,CARE PROVIDERS HEALTHCARE,id:13281015   , 450.91
Department of Health,Guys and St Thomas NHS Foundation Trust,14/08/2020,(50562) Qualified Nursing Staff,(id:42497) Evelina Womens Services,CARE PROVIDERS HEALTHCARE,id:13257528   , 431.60
Department of Health,Guys and St Thomas NHS Foundation Trust,21/08/2020,(82000) Provisions & Kitchens,(id:42493) Evelina Womens Services,NHS SUPPLY CHAIN (MAIDSTONE),id:13162263  ,  21.92
Department of Health,Guys and St Thomas NHS Foundation Trust,21/08/2020,(83400) Office Equipment,(id:42493) Evelina Womens Services,NHS SUPPLY CHAIN (MAIDSTONE),id:13162263  ,  59.07
Department of Health,Guys and St Thomas NHS Foundation Trust,21/08/2020,(81200) Medical Surgical Supplies & Equipment,(id:42493) Evelina Womens Services,NHS SUPPLY CHAIN (MAIDSTONE),id:13150574 , 474.09
Department of Health,Guys and St Thomas NHS Foundation Trust,21/08/2020,(82700) Uniforms & Clothing,(id:42492) Evelina Womens Services,NHS SUPPLY CHAIN (MAIDSTONE),id:13150574    ,  69.32
Department of Health,Guys and St Thomas NHS Foundation Trust,21/08/2020,(82800) Bedding & Linen,(id:42492) Evelina Womens Services,NHS SUPPLY CHAIN (MAIDSTONE),id:13162263   , 976.86
Department of Health,Guys and St Thomas NHS Foundation Trust,21/08/2020,(82800) Bedding & Linen,(id:42492) Evelina Womens Services,NHS SUPPLY CHAIN (MAIDSTONE),id:13150574   ,2022.32
Department of Health,Guys and St Thomas NHS Foundation Trust,21/08/2020,(81200) Medical Surgical Supplies & Equipment,(id:42492) Evelina Womens Services,NHS SUPPLY CHAIN (MAIDSTONE),id:13162263 ,5327.79
Department of Health,Guys and St Thomas NHS Foundation Trust,14/08/2020,(81200) Medical Surgical Supplies & Equipment,(id:42492) Evelina Womens Services,SQUADRON MEDICAL LTD,id:13232497    , 964.80
Department of Health,Guys and St Thomas NHS Foundation Trust,27/08/2020,(81200) Medical Surgical Supplies & Equipment,(id:42492) Evelina Womens Services,SQUADRON MEDICAL LTD,id:13259055    , 737.22
Department of Health,Guys and St Thomas NHS Foundation Trust,21/08/2020,(81700) Lab Equipment Purchase,(id:42492) Evelina Womens Services,NHS SUPPLY CHAIN (MAIDSTONE),id:13162263 ,  46.70
Department of Health,Guys and St Thomas NHS Foundation Trust,21/08/2020,(50562) Qualified Nursing Staff,(id:42492) Evelina Womens Services,CARE PROVIDERS HEALTHCARE,id:13279783   , 904.10
Department of Health,Guys and St Thomas NHS Foundation Trust,14/08/2020,(89000) Other - Training courses and conferences,(id:42505) Evelina Womens Services,170COMMUNITY PROJECT,id:13245974 ,6883.11
Department of Health,Guys and St Thomas NHS Foundation Trust,14/08/2020,(89000) Other - Training courses and conferences,(id:42505) Evelina Womens Services,170COMMUNITY PROJECT,id:13245995 ,7883.48
Department of Health,Guys and St Thomas NHS Foundation Trust,07/08/2020,(89595) Non-Healthcare from Foundation Trusts,(id:42504) Evelina Womens Services,UNIVERSITY COLLEGE LONDON HOSPITALS NHS FOUNDATION TRUST,id:13071757   ,2181.37
Department of Health,Guys and St Thomas NHS Foundation Trust,21/08/2020,(84500) Establishment,(id:42348) Evelina Central,NHS SUPPLY CHAIN (MAIDSTONE),id:13162263   ,  59.88
Department of Health,Guys and St Thomas NHS Foundation Trust,21/08/2020,(81200) Medical Surgical Supplies & Equipment,(id:42348) Evelina Central,NHS SUPPLY CHAIN (MAIDSTONE),id:13150574    , 602.37
Department of Health,Guys and St Thomas NHS Foundation Trust,21/08/2020,(81700) Lab Equipment Purchase,(id:42348) Evelina Central,NHS SUPPLY CHAIN (MAIDSTONE),id:13162263    ,  95.52
Department of Health,Guys and St Thomas NHS Foundation Trust,21/08/2020,(81700) Lab Equipment Purchase,(id:42348) Evelina Central,NHS SUPPLY CHAIN (MAIDSTONE),id:13150574    ,  19.93
Department of Health,Guys and St Thomas NHS Foundation Trust,21/08/2020,(82800) Bedding & Linen,(id:42331) Evelina Central,NHS SUPPLY CHAIN (MAIDSTONE),id:13162263 , 124.63
Department of Health,Guys and St Thomas NHS Foundation Trust,21/08/2020,(83400) Office Equipment,(id:42325) Evelina Central,NHS SUPPLY CHAIN (MAIDSTONE),id:13150574,  86.40
Department of Health,Guys and St Thomas NHS Foundation Trust,21/08/2020,(81200) Medical Surgical Supplies & Equipment,(id:42325) Evelina Central,JOHNSON & JOHNSON MEDICAL LTD,id:13250684   , 694.71
Department of Health,Guys and St Thomas NHS Foundation Trust,27/08/2020,(81200) Medical Surgical Supplies & Equipment,(id:2965419) Evelina Central,AYA-CREATIVE LTD (PREV. ANDREW YOUNGER AND ASSOCIATES),id:13288294 ,  60.00
Department of Health,Guys and St Thomas NHS Foundation Trust,18/08/2020,(53062) Speech Therapists,(id:590451) Evelina Community Services,PRICEWATERHOUSECOOPERS LLP,id:13268194    ,3289.37
Department of Health,Guys and St Thomas NHS Foundation Trust,21/08/2020,(81200) Medical Surgical Supplies & Equipment,(id:590449) Evelina Community Services,NHS SUPPLY CHAIN (MAIDSTONE),id:13162263  , 144.00
Department of Health,Guys and St Thomas NHS Foundation Trust,21/08/2020,(82800) Bedding & Linen,(id:590417) Evelina Community Services,NHS SUPPLY CHAIN (MAIDSTONE),id:13162263    ,  15.98
Department of Health,Guys and St Thomas NHS Foundation Trust,07/08/2020,(50562) Qualified Nursing Staff,(id:590416) Evelina Community Services,MSI GROUP LTD,id:13236008 ,1001.09
Department of Health,Guys and St Thomas NHS Foundation Trust,07/08/2020,(50562) Qualified Nursing Staff,(id:590542) Evelina Community Services,ARTHUR RAI MEDICAL SERVICES LTD,id:13212474   ,1317.00
Department of Health,Guys and St Thomas NHS Foundation Trust,21/08/2020,(50562) Qualified Nursing Staff,(id:590542) Evelina Community Services,ARTHUR RAI MEDICAL SERVICES LTD,id:13279696   ,1317.00
Department of Health,Guys and St Thomas NHS Foundation Trust,21/08/2020,(80150) Drug Costs,(id:42350) Evelina Medicine & Neonatology,NHS SUPPLY CHAIN (MAIDSTONE),id:13150574 , 144.00
Department of Health,Guys and St Thomas NHS Foundation Trust,14/08/2020,(50200) Consultants,(id:42349) Evelina Medicine & Neonatology,NORTH MIDDLESEX UNIVERSITY HOSPITAL NHS TRUST,id:11736751   ,3524.00
Department of Health,Guys and St Thomas NHS Foundation Trust,14/08/2020,(50200) Consultants,(id:42335) Evelina Medicine & Neonatology,KING'S COLLEGE HOSPITAL NHS FOUNDATION TRUST,id:12559303    ,7921.02
Department of Health,Guys and St Thomas NHS Foundation Trust,14/08/2020,(50200) Consultants,(id:42335) Evelina Medicine & Neonatology,KING'S COLLEGE HOSPITAL NHS FOUNDATION TRUST,id:11316374    ,7923.16
Department of Health,Guys and St Thomas NHS Foundation Trust,21/08/2020,(81200) Medical Surgical Supplies & Equipment,(id:42335) Evelina Medicine & Neonatology,NHS SUPPLY CHAIN (MAIDSTONE),id:13162263    ,   2.15
Department of Health,Guys and St Thomas NHS Foundation Trust,14/08/2020,(80100) Drug Costs,(id:42335) Evelina Medicine & Neonatology,BOC LTD :02107500,id:13180754  , 895.72
Department of Health,Guys and St Thomas NHS Foundation Trust,27/08/2020,(81000) Surgical Appliances,(id:42335) Evelina Medicine & Neonatology,TALAR MADE ORTHOTICS LTD,id:13288855 , 190.00
Department of Health,Guys and St Thomas NHS Foundation Trust,21/08/2020,(82700) Uniforms & Clothing,(id:42327) Evelina Medicine & Neonatology,NHS SUPPLY CHAIN (MAIDSTONE),id:13150574  ,  55.61
Department of Health,Guys and St Thomas NHS Foundation Trust,21/08/2020,(82000) Provisions & Kitchens,(id:42327) Evelina Medicine & Neonatology,NHS SUPPLY CHAIN (MAIDSTONE),id:13150574, 166.72
Department of Health,Guys and St Thomas NHS Foundation Trust,21/08/2020,(81100) Dressings,(id:42327) Evelina Medicine & Neonatology,NHS SUPPLY CHAIN (MAIDSTONE),id:13162263  , 479.18
Department of Health,Guys and St Thomas NHS Foundation Trust,14/08/2020,(81200) Medical Surgical Supplies & Equipment,(id:42327) Evelina Medicine & Neonatology,SQUADRON MEDICAL LTD,id:13228161  ,1114.81
Department of Health,Guys and St Thomas NHS Foundation Trust,21/08/2020,(81200) Medical Surgical Supplies & Equipment,(id:42327) Evelina Medicine & Neonatology,NHS SUPPLY CHAIN (MAIDSTONE),id:13162263    ,7759.82
Department of Health,Guys and St Thomas NHS Foundation Trust,14/08/2020,(84500) Establishment,(id:42327) Evelina Medicine & Neonatology,OFFICE DEPOT UK LTD,id:13224833  ,   8.93
Department of Health,Guys and St Thomas NHS Foundation Trust,14/08/2020,(83400) Office Equipment,(id:1196420) Evelina Medicine & Neonatology,INSULET INTERNATIONAL LTD,id:13255374 , 708.24
Department of Health,Guys and St Thomas NHS Foundation Trust,21/08/2020,(81200) Medical Surgical Supplies & Equipment,(id:2496419) Evelina Medicine & Neonatology,NHS SUPPLY CHAIN (MAIDSTONE),id:13162263  ,1196.48
Department of Health,Guys and St Thomas NHS Foundation Trust,21/08/2020,(82800) Bedding & Linen,(id:2496419) Evelina Medicine & Neonatology,NHS SUPPLY CHAIN (MAIDSTONE),id:13150574    ,  80.35
Department of Health,Guys and St Thomas NHS Foundation Trust,21/08/2020,(82800) Bedding & Linen,(id:41874) Evelina Medicine & Neonatology,NHS SUPPLY CHAIN (MAIDSTONE),id:13150574 ,   5.33
Department of Health,Guys and St Thomas NHS Foundation Trust,21/08/2020,(81200) Medical Surgical Supplies & Equipment,(id:42315) Evelina Medicine & Neonatology,NHS SUPPLY CHAIN (MAIDSTONE),id:13150574    , 874.24
Department of Health,Guys and St Thomas NHS Foundation Trust,21/08/2020,(82600) Uniforms & Clothing,(id:2499419) Evelina Surgery Theatres & PICU,NHS SUPPLY CHAIN (MAIDSTONE),id:13150574    ,   3.78
Department of Health,Guys and St Thomas NHS Foundation Trust,27/08/2020,(81245) Medical Surgical Supplies & Equipment,(id:42312) Evelina Surgery Theatres & PICU,ABBOTT MEDICAL UK LTD,id:13292982,7440.00
Department of Health,Guys and St Thomas NHS Foundation Trust,21/08/2020,(81200) Medical Surgical Supplies & Equipment,(id:42312) Evelina Surgery Theatres & PICU,NHS SUPPLY CHAIN (MAIDSTONE),id:13150574   ,4494.00
Department of Health,Guys and St Thomas NHS Foundation Trust,27/08/2020,(81200) Medical Surgical Supplies & Equipment,(id:42312) Evelina Surgery Theatres & PICU,REAM SURGICAL LTD,id:13290375    ,3860.34
Department of Health,Guys and St Thomas NHS Foundation Trust,27/08/2020,(81280) Medical Surgical Supplies & Equipment,(id:42312) Evelina Surgery Theatres & PICU,ABBOTT MEDICAL UK LTD,id:13169135, 258.00
Department of Health,Guys and St Thomas NHS Foundation Trust,27/08/2020,(81280) Medical Surgical Supplies & Equipment,(id:42312) Evelina Surgery Theatres & PICU,AQUILANT LTD,id:13288976    ,-852.00
Department of Health,Guys and St Thomas NHS Foundation Trust,21/08/2020,(81235) Medical Surgical Supplies & Equipment,(id:42312) Evelina Surgery Theatres & PICU,BARD LTD,id:13225050   , 545.88
Department of Health,Guys and St Thomas NHS Foundation Trust,21/08/2020,(81200) Medical Surgical Supplies & Equipment,(id:41914) Evelina Surgery Theatres & PICU,SQUADRON MEDICAL LTD,id:13209054 ,  35.99
Department of Health,Guys and St Thomas NHS Foundation Trust,21/08/2020,(50562) Qualified Nursing Staff,(id:41914) Evelina Surgery Theatres & PICU,PULSE HEALTHCARE LIMITED,id:13279913 , 533.92
Department of Health,Guys and St Thomas NHS Foundation Trust,14/08/2020,(50562) Qualified Nursing Staff,(id:41914) Evelina Surgery Theatres & PICU,PULSE HEALTHCARE LIMITED,id:13257410 ,1134.60
Department of Health,Guys and St Thomas NHS Foundation Trust,14/08/2020,(81100) Dressings,(id:41914) Evelina Surgery Theatres & PICU,SQUADRON MEDICAL LTD,id:13219459    ,  69.85
Department of Health,Guys and St Thomas NHS Foundation Trust,21/08/2020,(81100) Dressings,(id:41914) Evelina Surgery Theatres & PICU,ELIS UK LIMITED,id:13265614    , 425.95
Department of Health,Guys and St Thomas NHS Foundation Trust,21/08/2020,(81200) Medical Surgical Supplies & Equipment,(id:41910) Evelina Surgery Theatres & PICU,NHS SUPPLY CHAIN (MAIDSTONE),id:13162263   ,2717.67
Department of Health,Guys and St Thomas NHS Foundation Trust,21/08/2020,(81200) Medical Surgical Supplies & Equipment,(id:41910) Evelina Surgery Theatres & PICU,SQUADRON MEDICAL LTD,id:13209438 , 323.67
Department of Health,Guys and St Thomas NHS Foundation Trust,21/08/2020,(81230) Medical Surgical Supplies & Equipment,(id:41910) Evelina Surgery Theatres & PICU,SQUADRON MEDICAL LTD,id:13241769 ,  26.51
Department of Health,Guys and St Thomas NHS Foundation Trust,21/08/2020,(83400) Office Equipment,(id:41910) Evelina Surgery Theatres & PICU,SQUADRON MEDICAL LTD,id:13241769  , 134.88
Department of Health,Guys and St Thomas NHS Foundation Trust,07/08/2020,(81200) Medical Surgical Supplies & Equipment,(id:1196421) Evelina Surgery Theatres & PICU,NUVASIVE UK LTD,id:13100958    ,2290.92
Department of Health,Guys and St Thomas NHS Foundation Trust,21/08/2020,(81200) Medical Surgical Supplies & Equipment,(id:431409) Evelina Surgery Theatres & PICU,SQUADRON MEDICAL LTD,id:13209054,  26.28
Department of Health,Guys and St Thomas NHS Foundation Trust,21/08/2020,(81000) Surgical Appliances,(id:431409) Evelina Surgery Theatres & PICU,JOHN FLORENCE LTD,id:13269074 , 614.11
Department of Health,Guys and St Thomas NHS Foundation Trust,21/08/2020,(81200) Medical Surgical Supplies & Equipment,(id:468410) Evelina Surgery Theatres & PICU,NHS SUPPLY CHAIN (MAIDSTONE),id:13162263  ,  31.61
Department of Health,Guys and St Thomas NHS Foundation Trust,21/08/2020,(81200) Medical Surgical Supplies & Equipment,(id:468410) Evelina Surgery Theatres & PICU,JOHNSON & JOHNSON MEDICAL LTD,id:13236570 , 626.83
Department of Health,Guys and St Thomas NHS Foundation Trust,21/08/2020,(83400) Office Equipment,(id:468410) Evelina Surgery Theatres & PICU,NHS SUPPLY CHAIN (MAIDSTONE),id:13162263   ,   8.52
Department of Health,Guys and St Thomas NHS Foundation Trust,21/08/2020,(81200) Medical Surgical Supplies & Equipment,(id:468409) Evelina Surgery Theatres & PICU,SQUADRON MEDICAL LTD,id:13241769,  93.46
Department of Health,Guys and St Thomas NHS Foundation Trust,21/08/2020,(81200) Medical Surgical Supplies & Equipment,(id:468409) Evelina Surgery Theatres & PICU,NHS SUPPLY CHAIN (MAIDSTONE),id:13162263  , 227.27
Department of Health,Guys and St Thomas NHS Foundation Trust,21/08/2020,(81200) Medical Surgical Supplies & Equipment,(id:42347) Evelina Surgery Theatres & PICU,NHS SUPPLY CHAIN (MAIDSTONE),id:13150574   , 366.72
Department of Health,Guys and St Thomas NHS Foundation Trust,14/08/2020,(81200) Medical Surgical Supplies & Equipment,(id:42347) Evelina Surgery Theatres & PICU,SQUADRON MEDICAL LTD,id:13232720 ,  50.32
Department of Health,Guys and St Thomas NHS Foundation Trust,27/08/2020,(81200) Medical Surgical Supplies & Equipment,(id:42344) Evelina Surgery Theatres & PICU,SMITHS MEDICAL INTERNATIONAL LTD:69519000,id:13291315, 576.00
Department of Health,Guys and St Thomas NHS Foundation Trust,14/08/2020,(81200) Medical Surgical Supplies & Equipment,(id:42339) Evelina Surgery Theatres & PICU,REAM SURGICAL LTD,id:13253819    ,1549.68
Department of Health,Guys and St Thomas NHS Foundation Trust,07/08/2020,(81200) Medical Surgical Supplies & Equipment,(id:42339) Evelina Surgery Theatres & PICU,EDWARDS LIFESCIENCES LTD,id:13179275  , 596.64
Department of Health,Guys and St Thomas NHS Foundation Trust,07/08/2020,(81200) Medical Surgical Supplies & Equipment,(id:42339) Evelina Surgery Theatres & PICU,INTERSURGICAL LTD,id:13057337    , 828.00
Department of Health,Guys and St Thomas NHS Foundation Trust,07/08/2020,(81200) Medical Surgical Supplies & Equipment,(id:42339) Evelina Surgery Theatres & PICU,INTERSURGICAL LTD,id:13115375    ,1316.16
Department of Health,Guys and St Thomas NHS Foundation Trust,21/08/2020,(81230) Medical Surgical Supplies & Equipment,(id:42339) Evelina Surgery Theatres & PICU,NHS SUPPLY CHAIN (MAIDSTONE),id:13150574   , 804.84
Department of Health,Guys and St Thomas NHS Foundation Trust,21/08/2020,(81225) Medical Surgical Supplies & Equipment,(id:42339) Evelina Surgery Theatres & PICU,NHS SUPPLY CHAIN (MAIDSTONE),id:13150574   ,  57.60
Department of Health,Guys and St Thomas NHS Foundation Trust,21/08/2020,(81700) Lab Equipment Purchase,(id:42339) Evelina Surgery Theatres & PICU,NHS SUPPLY CHAIN (MAIDSTONE),id:13162263   , 281.00
Department of Health,Guys and St Thomas NHS Foundation Trust,21/08/2020,(50552) Qualified Nursing Staff,(id:41958) Gastrointestinal Medicine & Surgery,CONTINENTAL NURSE LTD,id:13282200,3000.21
Department of Health,Guys and St Thomas NHS Foundation Trust,21/08/2020,(82700) Uniforms & Clothing,(id:41954) Gastrointestinal Medicine & Surgery,NHS SUPPLY CHAIN (MAIDSTONE),id:13150574  ,  81.18
Department of Health,Guys and St Thomas NHS Foundation Trust,27/08/2020,(81200) Medical Surgical Supplies & Equipment,(id:41949) Gastrointestinal Medicine & Surgery,SQUADRON MEDICAL LTD,id:13264505  ,1239.95
Department of Health,Guys and St Thomas NHS Foundation Trust,27/08/2020,(81200) Medical Surgical Supplies & Equipment,(id:41949) Gastrointestinal Medicine & Surgery,SQUADRON MEDICAL LTD,id:13258744  ,1412.23
Department of Health,Guys and St Thomas NHS Foundation Trust,07/08/2020,(81200) Medical Surgical Supplies & Equipment,(id:41949) Gastrointestinal Medicine & Surgery,SQUADRON MEDICAL LTD,id:13088393  ,5712.96
Department of Health,Guys and St Thomas NHS Foundation Trust,07/08/2020,(81200) Medical Surgical Supplies & Equipment,(id:41949) Gastrointestinal Medicine & Surgery,MEDTRONIC LTD,id:13210635    , 986.54
Department of Health,Guys and St Thomas NHS Foundation Trust,07/08/2020,(81200) Medical Surgical Supplies & Equipment,(id:41949) Gastrointestinal Medicine & Surgery,SQUADRON MEDICAL LTD,id:13202184  ,4519.10
Department of Health,Guys and St Thomas NHS Foundation Trust,21/08/2020,(81200) Medical Surgical Supplies & Equipment,(id:41949) Gastrointestinal Medicine & Surgery,MEDTRONIC LTD,id:13259534    ,3611.81
Department of Health,Guys and St Thomas NHS Foundation Trust,21/08/2020,(81200) Medical Surgical Supplies & Equipment,(id:41949) Gastrointestinal Medicine & Surgery,SQUADRON MEDICAL LTD,id:12846261  ,  43.20
Department of Health,Guys and St Thomas NHS Foundation Trust,21/08/2020,(81200) Medical Surgical Supplies & Equipment,(id:41949) Gastrointestinal Medicine & Surgery,SQUADRON MEDICAL LTD,id:13247065  , 590.53
Department of Health,Guys and St Thomas NHS Foundation Trust,21/08/2020,(81200) Medical Surgical Supplies & Equipment,(id:41949) Gastrointestinal Medicine & Surgery,SQUADRON MEDICAL LTD,id:13213012  ,1124.81
Department of Health,Guys and St Thomas NHS Foundation Trust,21/08/2020,(81200) Medical Surgical Supplies & Equipment,(id:41949) Gastrointestinal Medicine & Surgery,SQUADRON MEDICAL LTD,id:13250825  ,1412.23
Department of Health,Guys and St Thomas NHS Foundation Trust,21/08/2020,(82800) Bedding & Linen,(id:2367419) Gastrointestinal Medicine & Surgery,NHS SUPPLY CHAIN (MAIDSTONE),id:13150574    ,  92.40
Department of Health,Guys and St Thomas NHS Foundation Trust,21/08/2020,(81230) Medical Surgical Supplies & Equipment,(id:2367419) Gastrointestinal Medicine & Surgery,NHS SUPPLY CHAIN (MAIDSTONE),id:13162263  , 269.21
Department of Health,Guys and St Thomas NHS Foundation Trust,21/08/2020,(83400) Office Equipment,(id:41917) Gastrointestinal Medicine & Surgery,NHS SUPPLY CHAIN (MAIDSTONE),id:13162263, 150.48
Department of Health,Guys and St Thomas NHS Foundation Trust,07/08/2020,(81200) Medical Surgical Supplies & Equipment,(id:41917) Gastrointestinal Medicine & Surgery,SYNECTICS MEDICAL LTD (SYNMED),id:13208615  ,2541.60
Department of Health,Guys and St Thomas NHS Foundation Trust,21/08/2020,(81200) Medical Surgical Supplies & Equipment,(id:41917) Gastrointestinal Medicine & Surgery,SYNECTICS MEDICAL LTD (SYNMED),id:13281891  ,1101.60
Department of Health,Guys and St Thomas NHS Foundation Trust,27/08/2020,(81200) Medical Surgical Supplies & Equipment,(id:41917) Gastrointestinal Medicine & Surgery,COOK UK LTD,id:13264641 ,2250.00
Department of Health,Guys and St Thomas NHS Foundation Trust,14/08/2020,(81200) Medical Surgical Supplies & Equipment,(id:41917) Gastrointestinal Medicine & Surgery,SYNECTICS MEDICAL LTD (SYNMED),id:13259777  ,2541.60
Department of Health,Guys and St Thomas NHS Foundation Trust,14/08/2020,(83610) IT Costs,(id:2717419) Cancer Strategy,OFFICE DEPOT UK LTD,id:13224867, 453.53
Department of Health,Guys and St Thomas NHS Foundation Trust,21/08/2020,(89270) Establishment,(id:42282) Cancer Strategy,TAIPAN CONSULTING LIMITED,id:13273578 ,6650.00
Department of Health,Guys and St Thomas NHS Foundation Trust,07/08/2020,(81900) Lab Equipment Purchase,(id:42282) Cancer Strategy,VIAPATH ANALYTICS LLP,id:12956465 ,3625.95
Department of Health,Guys and St Thomas NHS Foundation Trust,21/08/2020,(83400) Office Equipment,(id:780420) Cardiovascular Services,NHS SUPPLY CHAIN (MAIDSTONE),id:13162263 ,  14.94
Department of Health,Guys and St Thomas NHS Foundation Trust,21/08/2020,(50552) Qualified Nursing Staff,(id:780420) Cardiovascular Services,CARE PROVIDERS HEALTHCARE,id:13279848  , 609.50
Department of Health,Guys and St Thomas NHS Foundation Trust,21/08/2020,(81250) Medical Surgical Supplies & Equipment,(id:639421) Cardiovascular Services,COOK UK LTD,id:13209034  ,    16800.00
Department of Health,Guys and St Thomas NHS Foundation Trust,21/08/2020,(82000) Provisions & Kitchens,(id:41953) Cardiovascular Services,NHS SUPPLY CHAIN (MAIDSTONE),id:13162263  ,  21.20
Department of Health,Guys and St Thomas NHS Foundation Trust,21/08/2020,(83400) Office Equipment,(id:41953) Cardiovascular Services,NHS SUPPLY CHAIN (MAIDSTONE),id:13162263  ,  95.82
Department of Health,Guys and St Thomas NHS Foundation Trust,21/08/2020,(82800) Bedding & Linen,(id:41953) Cardiovascular Services,NHS SUPPLY CHAIN (MAIDSTONE),id:13162263   , 125.48
Department of Health,Guys and St Thomas NHS Foundation Trust,21/08/2020,(81225) Medical Surgical Supplies & Equipment,(id:41953) Cardiovascular Services,NHS SUPPLY CHAIN (MAIDSTONE),id:13162263 ,  14.54
Department of Health,Guys and St Thomas NHS Foundation Trust,21/08/2020,(81700) Lab Equipment Purchase,(id:41953) Cardiovascular Services,NHS SUPPLY CHAIN (MAIDSTONE),id:13162263 ,  69.30
Department of Health,Guys and St Thomas NHS Foundation Trust,21/08/2020,(81200) Medical Surgical Supplies & Equipment,(id:41952) Cardiovascular Services,NHS SUPPLY CHAIN (MAIDSTONE),id:13150574 ,  67.06
Department of Health,Guys and St Thomas NHS Foundation Trust,21/08/2020,(81200) Medical Surgical Supplies & Equipment,(id:41950) Cardiovascular Services,NHS SUPPLY CHAIN (MAIDSTONE),id:13162263 , 170.52
Department of Health,Guys and St Thomas NHS Foundation Trust,27/08/2020,(81000) Surgical Appliances,(id:41950) Cardiovascular Services,TALAR MADE ORTHOTICS LTD,id:13283354   ,  25.49
Department of Health,Guys and St Thomas NHS Foundation Trust,27/08/2020,(81000) Surgical Appliances,(id:41950) Cardiovascular Services,TALAR MADE ORTHOTICS LTD,id:13288910   , 267.90
Department of Health,Guys and St Thomas NHS Foundation Trust,27/08/2020,(81000) Surgical Appliances,(id:41950) Cardiovascular Services,TALAR MADE ORTHOTICS LTD,id:13288840   , 744.00
Department of Health,Guys and St Thomas NHS Foundation Trust,07/08/2020,(81000) Surgical Appliances,(id:41950) Cardiovascular Services,TALAR MADE ORTHOTICS LTD,id:13234235   , 228.00
Department of Health,Guys and St Thomas NHS Foundation Trust,21/08/2020,(81100) Dressings,(id:41948) Cardiovascular Services,NHS SUPPLY CHAIN (MAIDSTONE),id:13162263    ,1950.48
Department of Health,Guys and St Thomas NHS Foundation Trust,21/08/2020,(83500) Furniture & Fittings,(id:42305) Cardiovascular Services,OCURA HEALTHCARE FURNITURE,id:13177539,1570.80
Department of Health,Guys and St Thomas NHS Foundation Trust,17/08/2020,(54072) Technical Officers,(id:1243420) Cardiovascular Services,PRICEWATERHOUSECOOPERS LLP,id:13267854,7882.89
Department of Health,Guys and St Thomas NHS Foundation Trust,14/08/2020,(81245) Medical Surgical Supplies & Equipment,(id:42303) Cardiovascular Services,AMBU LIMITED,id:13155060  ,2587.14
Department of Health,Guys and St Thomas NHS Foundation Trust,14/08/2020,(81200) Medical Surgical Supplies & Equipment,(id:42303) Cardiovascular Services,SPACELABS HEALTHCARE LTD,id:13260394,4824.60
Department of Health,Guys and St Thomas NHS Foundation Trust,25/08/2020,(54072) Technical Officers,(id:42303) Cardiovascular Services,PRICEWATERHOUSECOOPERS LLP,id:13288926  ,3073.17
Department of Health,Guys and St Thomas NHS Foundation Trust,17/08/2020,(51832) Physiotherapists,(id:42303) Cardiovascular Services,PRICEWATERHOUSECOOPERS LLP,id:13267854    , 712.34
Department of Health,Guys and St Thomas NHS Foundation Trust,18/08/2020,(51832) Physiotherapists,(id:42303) Cardiovascular Services,PRICEWATERHOUSECOOPERS LLP,id:13268716    ,1426.01
Department of Health,Guys and St Thomas NHS Foundation Trust,27/08/2020,(83400) Office Equipment,(id:42302) Cardiovascular Services,EDWARDS LIFESCIENCES LTD,id:13262674 ,    25530.00
Department of Health,Guys and St Thomas NHS Foundation Trust,27/08/2020,(83400) Office Equipment,(id:42302) Cardiovascular Services,EDWARDS LIFESCIENCES LTD,id:13266743 ,    25530.00
Department of Health,Guys and St Thomas NHS Foundation Trust,27/08/2020,(83400) Office Equipment,(id:42302) Cardiovascular Services,EDWARDS LIFESCIENCES LTD,id:13279002 ,   -25530.00
Department of Health,Guys and St Thomas NHS Foundation Trust,27/08/2020,(83400) Office Equipment,(id:42302) Cardiovascular Services,EDWARDS LIFESCIENCES LTD,id:13278954 ,   -25530.00
Department of Health,Guys and St Thomas NHS Foundation Trust,27/08/2020,(81200) Medical Surgical Supplies & Equipment,(id:42302) Cardiovascular Services,SQUADRON MEDICAL LTD,id:13268564    ,1372.80
Department of Health,Guys and St Thomas NHS Foundation Trust,21/08/2020,(81200) Medical Surgical Supplies & Equipment,(id:42302) Cardiovascular Services,SQUADRON MEDICAL LTD,id:13209045    , 823.68
Department of Health,Guys and St Thomas NHS Foundation Trust,21/08/2020,(83400) Office Equipment,(id:42301) Cardiovascular Services,NHS SUPPLY CHAIN (MAIDSTONE),id:13162263  ,   3.55
Department of Health,Guys and St Thomas NHS Foundation Trust,21/08/2020,(82000) Provisions & Kitchens,(id:42300) Cardiovascular Services,NHS SUPPLY CHAIN (MAIDSTONE),id:13162263  , 249.00
Department of Health,Guys and St Thomas NHS Foundation Trust,21/08/2020,(82800) Bedding & Linen,(id:42300) Cardiovascular Services,NHS SUPPLY CHAIN (MAIDSTONE),id:13150574   ,  35.30
Department of Health,Guys and St Thomas NHS Foundation Trust,21/08/2020,(81100) Dressings,(id:42300) Cardiovascular Services,NHS SUPPLY CHAIN (MAIDSTONE),id:13150574    , 137.76
Department of Health,Guys and St Thomas NHS Foundation Trust,21/08/2020,(81255) Medical Surgical Supplies & Equipment,(id:42300) Cardiovascular Services,NHS SUPPLY CHAIN (MAIDSTONE),id:13162263 ,   4.06
Department of Health,Guys and St Thomas NHS Foundation Trust,21/08/2020,(83400) Office Equipment,(id:42298) Cardiovascular Services,NHS SUPPLY CHAIN (MAIDSTONE),id:13162263  ,  39.31
Department of Health,Guys and St Thomas NHS Foundation Trust,07/08/2020,(81200) Medical Surgical Supplies & Equipment,(id:42298) Cardiovascular Services,ABBOTT MEDICAL UK LTD,id:13200034   , 702.00
Department of Health,Guys and St Thomas NHS Foundation Trust,07/08/2020,(81200) Medical Surgical Supplies & Equipment,(id:42298) Cardiovascular Services,ABBOTT MEDICAL UK LTD,id:13199902   , 300.00
Department of Health,Guys and St Thomas NHS Foundation Trust,07/08/2020,(81200) Medical Surgical Supplies & Equipment,(id:42298) Cardiovascular Services,ABBOTT MEDICAL UK LTD,id:13219214   , 882.00
Department of Health,Guys and St Thomas NHS Foundation Trust,07/08/2020,(81200) Medical Surgical Supplies & Equipment,(id:42298) Cardiovascular Services,MEDTRONIC LTD,id:12986794 ,5760.00
Department of Health,Guys and St Thomas NHS Foundation Trust,14/08/2020,(81200) Medical Surgical Supplies & Equipment,(id:42298) Cardiovascular Services,JOHNSON & JOHNSON MEDICAL LTD,id:13225636,1304.56
Department of Health,Guys and St Thomas NHS Foundation Trust,14/08/2020,(81200) Medical Surgical Supplies & Equipment,(id:42298) Cardiovascular Services,JOHNSON & JOHNSON MEDICAL LTD,id:13232423, 929.11
Department of Health,Guys and St Thomas NHS Foundation Trust,14/08/2020,(81200) Medical Surgical Supplies & Equipment,(id:42298) Cardiovascular Services,MEDTRONIC LTD,id:13234274 , 960.00
Department of Health,Guys and St Thomas NHS Foundation Trust,14/08/2020,(81200) Medical Surgical Supplies & Equipment,(id:42298) Cardiovascular Services,MEDTRONIC LTD,id:13235474 ,    14334.00
Department of Health,Guys and St Thomas NHS Foundation Trust,21/08/2020,(81200) Medical Surgical Supplies & Equipment,(id:42298) Cardiovascular Services,JOHNSON & JOHNSON MEDICAL LTD,id:13250681, 509.11
Department of Health,Guys and St Thomas NHS Foundation Trust,21/08/2020,(81200) Medical Surgical Supplies & Equipment,(id:42298) Cardiovascular Services,SPECTRANETICS UK,id:13207394   ,2848.80
Department of Health,Guys and St Thomas NHS Foundation Trust,21/08/2020,(81200) Medical Surgical Supplies & Equipment,(id:42298) Cardiovascular Services,TELEFLEX MEDICAL,id:13261095   ,-720.00
Department of Health,Guys and St Thomas NHS Foundation Trust,27/08/2020,(81280) Medical Surgical Supplies & Equipment,(id:42298) Cardiovascular Services,ABBOTT MEDICAL UK LTD,id:13238336   , 258.00
Department of Health,Guys and St Thomas NHS Foundation Trust,07/08/2020,(81240) Medical Surgical Supplies & Equipment,(id:42298) Cardiovascular Services,MEDTRONIC LTD,id:13198640 ,6300.00
Department of Health,Guys and St Thomas NHS Foundation Trust,07/08/2020,(81240) Medical Surgical Supplies & Equipment,(id:42298) Cardiovascular Services,MEDTRONIC LTD,id:12986794 ,    12213.60
Department of Health,Guys and St Thomas NHS Foundation Trust,07/08/2020,(81240) Medical Surgical Supplies & Equipment,(id:42298) Cardiovascular Services,ABBOTT MEDICAL UK LTD,id:13213856   ,4050.00
Department of Health,Guys and St Thomas NHS Foundation Trust,27/08/2020,(81240) Medical Surgical Supplies & Equipment,(id:42298) Cardiovascular Services,MEDTRONIC LTD,id:13283079 ,2160.00
Department of Health,Guys and St Thomas NHS Foundation Trust,27/08/2020,(81240) Medical Surgical Supplies & Equipment,(id:42298) Cardiovascular Services,ABBOTT MEDICAL UK LTD,id:13292958   ,7800.00
Department of Health,Guys and St Thomas NHS Foundation Trust,21/08/2020,(83400) Office Equipment,(id:42291) Cardiovascular Services,NHS SUPPLY CHAIN (MAIDSTONE),id:13150574  ,  93.54
Department of Health,Guys and St Thomas NHS Foundation Trust,21/08/2020,(82700) Uniforms & Clothing,(id:42291) Cardiovascular Services,NHS SUPPLY CHAIN (MAIDSTONE),id:13150574    ,  99.00
Department of Health,Guys and St Thomas NHS Foundation Trust,21/08/2020,(81700) Lab Equipment Purchase,(id:42291) Cardiovascular Services,NHS SUPPLY CHAIN (MAIDSTONE),id:13150574 ,  84.10
Department of Health,Guys and St Thomas NHS Foundation Trust,21/08/2020,(81700) Lab Equipment Purchase,(id:42291) Cardiovascular Services,NHS SUPPLY CHAIN (MAIDSTONE),id:13162263 ,  93.88
Department of Health,Guys and St Thomas NHS Foundation Trust,21/08/2020,(81200) Medical Surgical Supplies & Equipment,(id:42290) Cardiovascular Services,NHS SUPPLY CHAIN (MAIDSTONE),id:13162263 , 577.30
Department of Health,Guys and St Thomas NHS Foundation Trust,21/08/2020,(81100) Dressings,(id:42290) Cardiovascular Services,KCI MEDICAL LTD,id:13263874  ,2031.84
Department of Health,Guys and St Thomas NHS Foundation Trust,14/08/2020,(81100) Dressings,(id:42290) Cardiovascular Services,KCI MEDICAL LTD,id:13256101  , 609.81
Department of Health,Guys and St Thomas NHS Foundation Trust,21/08/2020,(81225) Medical Surgical Supplies & Equipment,(id:42290) Cardiovascular Services,NHS SUPPLY CHAIN (MAIDSTONE),id:13150574 ,   9.70
Department of Health,Guys and St Thomas NHS Foundation Trust,21/08/2020,(83400) Office Equipment,(id:42293) Cardiovascular Services,NHS SUPPLY CHAIN (MAIDSTONE),id:13150574  , 188.78
Department of Health,Guys and St Thomas NHS Foundation Trust,21/08/2020,(81200) Medical Surgical Supplies & Equipment,(id:42293) Cardiovascular Services,SQUADRON MEDICAL LTD,id:12915783    , 442.49
Department of Health,Guys and St Thomas NHS Foundation Trust,21/08/2020,(81200) Medical Surgical Supplies & Equipment,(id:42293) Cardiovascular Services,PIERSON SURGICAL LTD,id:13261934    , 702.00
Department of Health,Guys and St Thomas NHS Foundation Trust,21/08/2020,(81200) Medical Surgical Supplies & Equipment,(id:42293) Cardiovascular Services,SQUADRON MEDICAL LTD,id:12846247    , 844.59
Department of Health,Guys and St Thomas NHS Foundation Trust,07/08/2020,(81200) Medical Surgical Supplies & Equipment,(id:42293) Cardiovascular Services,SQUADRON MEDICAL LTD,id:13209281    , 502.00
Department of Health,Guys and St Thomas NHS Foundation Trust,27/08/2020,(81200) Medical Surgical Supplies & Equipment,(id:42293) Cardiovascular Services,EDWARDS LIFESCIENCES LTD,id:13242134,1056.00
Department of Health,Guys and St Thomas NHS Foundation Trust,27/08/2020,(81200) Medical Surgical Supplies & Equipment,(id:42293) Cardiovascular Services,CRYOLIFE EUROPA LTD,id:13287776,    14400.00
Department of Health,Guys and St Thomas NHS Foundation Trust,14/08/2020,(81200) Medical Surgical Supplies & Equipment,(id:42293) Cardiovascular Services,SQUADRON MEDICAL LTD,id:13223104    , 581.18
Department of Health,Guys and St Thomas NHS Foundation Trust,14/08/2020,(81200) Medical Surgical Supplies & Equipment,(id:42293) Cardiovascular Services,MAQUET LIMITED,id:13232294, 636.00
Department of Health,Guys and St Thomas NHS Foundation Trust,14/08/2020,(81200) Medical Surgical Supplies & Equipment,(id:42293) Cardiovascular Services,AQUILANT CRITICAL CARE,id:13251135  , 922.80
Department of Health,Guys and St Thomas NHS Foundation Trust,07/08/2020,(81280) Medical Surgical Supplies & Equipment,(id:42293) Cardiovascular Services,EDWARDS LIFESCIENCES LTD,id:13229843,5640.00
Department of Health,Guys and St Thomas NHS Foundation Trust,07/08/2020,(81280) Medical Surgical Supplies & Equipment,(id:42293) Cardiovascular Services,EDWARDS LIFESCIENCES LTD,id:13214945,1056.00
Department of Health,Guys and St Thomas NHS Foundation Trust,07/08/2020,(81280) Medical Surgical Supplies & Equipment,(id:42293) Cardiovascular Services,EDWARDS LIFESCIENCES LTD,id:13202274,1440.00
Department of Health,Guys and St Thomas NHS Foundation Trust,07/08/2020,(81280) Medical Surgical Supplies & Equipment,(id:42293) Cardiovascular Services,CRYOLIFE EUROPA LTD,id:13222914,1440.00
Department of Health,Guys and St Thomas NHS Foundation Trust,27/08/2020,(81280) Medical Surgical Supplies & Equipment,(id:42293) Cardiovascular Services,NHS BLOOD AND TRANSPLANT,id:13267514,5228.31
Department of Health,Guys and St Thomas NHS Foundation Trust,27/08/2020,(81280) Medical Surgical Supplies & Equipment,(id:42293) Cardiovascular Services,EDWARDS LIFESCIENCES LTD,id:13254620,4296.00
Department of Health,Guys and St Thomas NHS Foundation Trust,27/08/2020,(81280) Medical Surgical Supplies & Equipment,(id:42293) Cardiovascular Services,EDWARDS LIFESCIENCES LTD,id:13254597,3420.00
Department of Health,Guys and St Thomas NHS Foundation Trust,27/08/2020,(81280) Medical Surgical Supplies & Equipment,(id:42293) Cardiovascular Services,ABBOTT MEDICAL UK LTD,id:13254495   ,    -1620.00
Department of Health,Guys and St Thomas NHS Foundation Trust,07/08/2020,(81200) Medical Surgical Supplies & Equipment,(id:42292) Cardiovascular Services,LIVANOVA UK LTD,id:13197979    ,1337.76
Department of Health,Guys and St Thomas NHS Foundation Trust,07/08/2020,(81200) Medical Surgical Supplies & Equipment,(id:42292) Cardiovascular Services,LIVANOVA UK LTD,id:13207585    , 670.46
Department of Health,Guys and St Thomas NHS Foundation Trust,07/08/2020,(81200) Medical Surgical Supplies & Equipment,(id:42292) Cardiovascular Services,LIVANOVA UK LTD,id:13218020    , 622.08
Department of Health,Guys and St Thomas NHS Foundation Trust,27/08/2020,(81200) Medical Surgical Supplies & Equipment,(id:42292) Cardiovascular Services,LIVANOVA UK LTD,id:13280454    , 608.40
Department of Health,Guys and St Thomas NHS Foundation Trust,14/08/2020,(81200) Medical Surgical Supplies & Equipment,(id:42292) Cardiovascular Services,LIVANOVA UK LTD,id:13248918    , 755.57
Department of Health,Guys and St Thomas NHS Foundation Trust,14/08/2020,(81200) Medical Surgical Supplies & Equipment,(id:42292) Cardiovascular Services,LIVANOVA UK LTD,id:13234297    , 741.89
Department of Health,Guys and St Thomas NHS Foundation Trust,14/08/2020,(81200) Medical Surgical Supplies & Equipment,(id:42292) Cardiovascular Services,MAQUET LIMITED,id:13252488, 475.20
Department of Health,Guys and St Thomas NHS Foundation Trust,07/08/2020,(81270) Medical Surgical Supplies & Equipment,(id:42292) Cardiovascular Services,MAQUET LIMITED,id:13200254, 180.00
Department of Health,Guys and St Thomas NHS Foundation Trust,21/08/2020,(82000) Provisions & Kitchens,(id:42287) Cardiovascular Services,NHS SUPPLY CHAIN (MAIDSTONE),id:13150574  ,   9.59
Department of Health,Guys and St Thomas NHS Foundation Trust,21/08/2020,(81200) Medical Surgical Supplies & Equipment,(id:42287) Cardiovascular Services,NHS SUPPLY CHAIN (MAIDSTONE),id:13150574 , 124.83
Department of Health,Guys and St Thomas NHS Foundation Trust,21/08/2020,(81100) Dressings,(id:42287) Cardiovascular Services,NHS SUPPLY CHAIN (MAIDSTONE),id:13150574    ,  62.90
Department of Health,Guys and St Thomas NHS Foundation Trust,21/08/2020,(82800) Bedding & Linen,(id:42367) Clinical Imaging & Med Physics,NHS SUPPLY CHAIN (MAIDSTONE),id:13150574 , 127.73
Department of Health,Guys and St Thomas NHS Foundation Trust,27/08/2020,(81100) Dressings,(id:42367) Clinical Imaging & Med Physics,SQUADRON MEDICAL LTD,id:13271342,2434.40
Department of Health,Guys and St Thomas NHS Foundation Trust,21/08/2020,(81100) Dressings,(id:42367) Clinical Imaging & Med Physics,NHS SUPPLY CHAIN (MAIDSTONE),id:13150574  ,  77.36
Department of Health,Guys and St Thomas NHS Foundation Trust,14/08/2020,(81400) Medical Surgical Supplies & Equipment,(id:42367) Clinical Imaging & Med Physics,H & C CONTRACTS LIMITED CIS5,id:13251194    ,3286.00
Department of Health,Guys and St Thomas NHS Foundation Trust,14/08/2020,(81400) Medical Surgical Supplies & Equipment,(id:42367) Clinical Imaging & Med Physics,H & C CONTRACTS LIMITED CIS5,id:13253114    ,    12105.00
Department of Health,Guys and St Thomas NHS Foundation Trust,07/08/2020,(81200) Medical Surgical Supplies & Equipment,(id:42367) Clinical Imaging & Med Physics,COOK UK LTD,id:13202224 , 439.20
Department of Health,Guys and St Thomas NHS Foundation Trust,14/08/2020,(81200) Medical Surgical Supplies & Equipment,(id:42367) Clinical Imaging & Med Physics,GBUK ENTERAL UK,id:13252516  , 880.80
Department of Health,Guys and St Thomas NHS Foundation Trust,21/08/2020,(81200) Medical Surgical Supplies & Equipment,(id:42367) Clinical Imaging & Med Physics,VYGON (UK) LTD,id:13241716   , 715.20
Department of Health,Guys and St Thomas NHS Foundation Trust,27/08/2020,(81200) Medical Surgical Supplies & Equipment,(id:42367) Clinical Imaging & Med Physics,MACROMED (UK) LTD,id:13274617,2070.00
Department of Health,Guys and St Thomas NHS Foundation Trust,27/08/2020,(81200) Medical Surgical Supplies & Equipment,(id:42367) Clinical Imaging & Med Physics,SQUADRON MEDICAL LTD,id:13259061  , 518.57
Department of Health,Guys and St Thomas NHS Foundation Trust,27/08/2020,(81200) Medical Surgical Supplies & Equipment,(id:42367) Clinical Imaging & Med Physics,SQUADRON MEDICAL LTD,id:13268262  ,1992.06
Department of Health,Guys and St Thomas NHS Foundation Trust,27/08/2020,(81200) Medical Surgical Supplies & Equipment,(id:42367) Clinical Imaging & Med Physics,SQUADRON MEDICAL LTD,id:13264377  , 867.36
Department of Health,Guys and St Thomas NHS Foundation Trust,27/08/2020,(81200) Medical Surgical Supplies & Equipment,(id:42367) Clinical Imaging & Med Physics,AQUILANT LTD,id:13261204,2908.80
Department of Health,Guys and St Thomas NHS Foundation Trust,21/08/2020,(81230) Medical Surgical Supplies & Equipment,(id:42367) Clinical Imaging & Med Physics,SQUADRON MEDICAL LTD,id:13241799  ,  60.05
Department of Health,Guys and St Thomas NHS Foundation Trust,21/08/2020,(82800) Bedding & Linen,(id:42366) Clinical Imaging & Med Physics,NHS SUPPLY CHAIN (MAIDSTONE),id:13162263 , 509.98
Department of Health,Guys and St Thomas NHS Foundation Trust,21/08/2020,(81200) Medical Surgical Supplies & Equipment,(id:42366) Clinical Imaging & Med Physics,UK MEDICAL LTD,id:13273477   ,1506.00
Department of Health,Guys and St Thomas NHS Foundation Trust,27/08/2020,(81500) X Ray Equipment Purchase,(id:42366) Clinical Imaging & Med Physics,BAYER PLC,id:13283416 ,4651.20
Department of Health,Guys and St Thomas NHS Foundation Trust,21/08/2020,(81700) Lab Equipment Purchase,(id:42366) Clinical Imaging & Med Physics,NHS SUPPLY CHAIN (MAIDSTONE),id:13150574    ,  11.75
Department of Health,Guys and St Thomas NHS Foundation Trust,21/08/2020,(83400) Office Equipment,(id:4187419) Clinical Imaging & Med Physics,BAYER PLC,id:13277257  ,2112.00
Department of Health,Guys and St Thomas NHS Foundation Trust,21/08/2020,(83400) Office Equipment,(id:4187419) Clinical Imaging & Med Physics,BAYER PLC,id:13277295  ,2112.00
Department of Health,Guys and St Thomas NHS Foundation Trust,21/08/2020,(83400) Office Equipment,(id:4187419) Clinical Imaging & Med Physics,BAYER PLC,id:13277274  ,2112.00
Department of Health,Guys and St Thomas NHS Foundation Trust,21/08/2020,(83400) Office Equipment,(id:42372) Clinical Imaging & Med Physics,NHS SUPPLY CHAIN (MAIDSTONE),id:13162263,  64.82
Department of Health,Guys and St Thomas NHS Foundation Trust,21/08/2020,(82800) Bedding & Linen,(id:42372) Clinical Imaging & Med Physics,NHS SUPPLY CHAIN (MAIDSTONE),id:13150574 ,  14.06
Department of Health,Guys and St Thomas NHS Foundation Trust,21/08/2020,(81400) Medical Surgical Supplies & Equipment,(id:42379) Clinical Imaging & Med Physics,SPACELABS HEALTHCARE LTD,id:13260535   , 405.00
Department of Health,Guys and St Thomas NHS Foundation Trust,07/08/2020,(81200) Medical Surgical Supplies & Equipment,(id:42379) Clinical Imaging & Med Physics,TENACORE UK LTD,id:13146000  ,  24.00
Department of Health,Guys and St Thomas NHS Foundation Trust,07/08/2020,(81200) Medical Surgical Supplies & Equipment,(id:42379) Clinical Imaging & Med Physics,CABLEMED LTD,id:13221877, 828.00
Department of Health,Guys and St Thomas NHS Foundation Trust,27/08/2020,(81200) Medical Surgical Supplies & Equipment,(id:42379) Clinical Imaging & Med Physics,KCI MEDICAL LTD,id:13217836  ,1237.81
Department of Health,Guys and St Thomas NHS Foundation Trust,27/08/2020,(81200) Medical Surgical Supplies & Equipment,(id:42379) Clinical Imaging & Med Physics,HAMILTON MEDICAL UK (A DIVISION OF HAMILTON SALES & SERVICE UK LTD),id:13244994,5007.07
Department of Health,Guys and St Thomas NHS Foundation Trust,27/08/2020,(81500) X Ray Equipment Purchase,(id:42378) Clinical Imaging & Med Physics,ONCOLOGY SYSTEMS LTD,id:13123223,1486.80
Department of Health,Guys and St Thomas NHS Foundation Trust,07/08/2020,(81700) Lab Equipment Purchase,(id:42378) Clinical Imaging & Med Physics,JOHN WILEY & SONS LTD,id:13229014 , 540.00
Department of Health,Guys and St Thomas NHS Foundation Trust,18/08/2020,(52062) Radiographers,(id:42377) Clinical Imaging & Med Physics,PRICEWATERHOUSECOOPERS LLP,id:13268716,1263.82
Department of Health,Guys and St Thomas NHS Foundation Trust,14/08/2020,(83610) IT Costs,(id:42375) Clinical Imaging & Med Physics,OFFICE DEPOT UK LTD,id:13224317  , 569.96
Department of Health,Guys and St Thomas NHS Foundation Trust,07/08/2020,(89120) Other - Legal fees,(id:42375) Clinical Imaging & Med Physics,BEACHCROFT LLP OFFICE ACCOUNT,id:13228734  ,1230.00
Department of Health,Guys and St Thomas NHS Foundation Trust,27/08/2020,(81250) Medical Surgical Supplies & Equipment,(id:1348419) Clinical Imaging & Med Physics,AQUILANT LTD,id:12799276   , 949.84
Department of Health,Guys and St Thomas NHS Foundation Trust,27/08/2020,(81250) Medical Surgical Supplies & Equipment,(id:1348419) Clinical Imaging & Med Physics,AQUILANT LTD,id:13288967   ,-949.84
Department of Health,Guys and St Thomas NHS Foundation Trust,07/08/2020,(81200) Medical Surgical Supplies & Equipment,(id:1348419) Clinical Imaging & Med Physics,ABBOTT MEDICAL UK LTD,id:13190695    , 726.00
Department of Health,Guys and St Thomas NHS Foundation Trust,21/08/2020,(50552) Qualified Nursing Staff,(id:42419) Transplant Renal and Urology,MSI GROUP LTD,id:13279902, 339.44
Department of Health,Guys and St Thomas NHS Foundation Trust,21/08/2020,(50552) Qualified Nursing Staff,(id:42419) Transplant Renal and Urology,MSI GROUP LTD,id:13279773, 377.15
Department of Health,Guys and St Thomas NHS Foundation Trust,21/08/2020,(83400) Office Equipment,(id:42419) Transplant Renal and Urology,NHS SUPPLY CHAIN (MAIDSTONE),id:13162263  , 256.34
Department of Health,Guys and St Thomas NHS Foundation Trust,21/08/2020,(81400) Medical Surgical Supplies & Equipment,(id:2882419) Transplant Renal and Urology,NHS SUPPLY CHAIN (MAIDSTONE),id:13150574    ,3458.28
Department of Health,Guys and St Thomas NHS Foundation Trust,21/08/2020,(82000) Provisions & Kitchens,(id:969419) Transplant Renal and Urology,NHS SUPPLY CHAIN (MAIDSTONE),id:13162263 ,  23.62
Department of Health,Guys and St Thomas NHS Foundation Trust,14/08/2020,(81200) Medical Surgical Supplies & Equipment,(id:42450) Transplant Renal and Urology,SQUADRON MEDICAL LTD,id:13219436    , 398.99
Department of Health,Guys and St Thomas NHS Foundation Trust,21/08/2020,(81100) Dressings,(id:42449) Transplant Renal and Urology,NHS SUPPLY CHAIN (MAIDSTONE),id:13150574    ,  12.00
Department of Health,Guys and St Thomas NHS Foundation Trust,21/08/2020,(82800) Bedding & Linen,(id:42447) Transplant Renal and Urology,NHS SUPPLY CHAIN (MAIDSTONE),id:13150574   ,  64.42
Department of Health,Guys and St Thomas NHS Foundation Trust,21/08/2020,(81100) Dressings,(id:42447) Transplant Renal and Urology,NHS SUPPLY CHAIN (MAIDSTONE),id:13150574    ,  35.76
Department of Health,Guys and St Thomas NHS Foundation Trust,21/08/2020,(81200) Medical Surgical Supplies & Equipment,(id:42446) Transplant Renal and Urology,NHS SUPPLY CHAIN (MAIDSTONE),id:13150574 ,   4.96
Department of Health,Guys and St Thomas NHS Foundation Trust,21/08/2020,(81200) Medical Surgical Supplies & Equipment,(id:42446) Transplant Renal and Urology,STRYKER UK LTD,id:13260735, 504.00
Department of Health,Guys and St Thomas NHS Foundation Trust,14/08/2020,(81200) Medical Surgical Supplies & Equipment,(id:42446) Transplant Renal and Urology,MEDTRONIC LTD,id:13223015 ,1973.09
Department of Health,Guys and St Thomas NHS Foundation Trust,27/08/2020,(81400) Medical Surgical Supplies & Equipment,(id:42446) Transplant Renal and Urology,KARL STORZ ENDOSCOPY UK LTD,id:13269276  , 833.85
Department of Health,Guys and St Thomas NHS Foundation Trust,25/08/2020,(52062) Radiographers,(id:42444) Transplant Renal and Urology,PRICEWATERHOUSECOOPERS LLP,id:13288926  ,1312.14
Department of Health,Guys and St Thomas NHS Foundation Trust,21/08/2020,(82000) Provisions & Kitchens,(id:42443) Transplant Renal and Urology,NHS SUPPLY CHAIN (MAIDSTONE),id:13150574  ,  74.11
Department of Health,Guys and St Thomas NHS Foundation Trust,21/08/2020,(81200) Medical Surgical Supplies & Equipment,(id:42443) Transplant Renal and Urology,NHS SUPPLY CHAIN (MAIDSTONE),id:13150574 , 645.40
Department of Health,Guys and St Thomas NHS Foundation Trust,21/08/2020,(81225) Medical Surgical Supplies & Equipment,(id:42443) Transplant Renal and Urology,NHS SUPPLY CHAIN (MAIDSTONE),id:13150574 ,  38.78
Department of Health,Guys and St Thomas NHS Foundation Trust,21/08/2020,(81100) Dressings,(id:42442) Transplant Renal and Urology,NHS SUPPLY CHAIN (MAIDSTONE),id:13150574    ,  90.27
Department of Health,Guys and St Thomas NHS Foundation Trust,21/08/2020,(81200) Medical Surgical Supplies & Equipment,(id:3671419) Transplant Renal and Urology,BAXTER HEALTHCARE LTD,id:13229915 ,2502.71
Department of Health,Guys and St Thomas NHS Foundation Trust,21/08/2020,(81200) Medical Surgical Supplies & Equipment,(id:2653419) Transplant Renal and Urology,NHS SUPPLY CHAIN (MAIDSTONE),id:13162263    ,  46.92
Department of Health,Guys and St Thomas NHS Foundation Trust,21/08/2020,(82800) Bedding & Linen,(id:42435) Transplant Renal and Urology,NHS SUPPLY CHAIN (MAIDSTONE),id:13150574   , 264.56
Department of Health,Guys and St Thomas NHS Foundation Trust,14/08/2020,(81500) X Ray Equipment Purchase,(id:42433) Transplant Renal and Urology,ANETIC AID LTD,id:13250343   , 888.00
Department of Health,Guys and St Thomas NHS Foundation Trust,07/08/2020,(81200) Medical Surgical Supplies & Equipment,(id:42433) Transplant Renal and Urology,SQUADRON MEDICAL LTD,id:13209277    , 134.40
Department of Health,Guys and St Thomas NHS Foundation Trust,07/08/2020,(81200) Medical Surgical Supplies & Equipment,(id:42430) Transplant Renal and Urology,LATIS SCIENTIFIC LTD,id:13111697    ,1821.50
Department of Health,Guys and St Thomas NHS Foundation Trust,21/08/2020,(81200) Medical Surgical Supplies & Equipment,(id:42430) Transplant Renal and Urology,CAPITAL WATER TREATMENT LTD,id:13263854  ,1010.00
Department of Health,Guys and St Thomas NHS Foundation Trust,14/08/2020,(81200) Medical Surgical Supplies & Equipment,(id:42430) Transplant Renal and Urology,BAXTER HEALTHCARE LTD,id:13256577   ,3528.07
Department of Health,Guys and St Thomas NHS Foundation Trust,14/08/2020,(81200) Medical Surgical Supplies & Equipment,(id:42430) Transplant Renal and Urology,LATIS SCIENTIFIC LTD,id:13238628    ,2627.65
Department of Health,Guys and St Thomas NHS Foundation Trust,27/08/2020,(81200) Medical Surgical Supplies & Equipment,(id:42430) Transplant Renal and Urology,B.BRAUN MEDICAL LTD,id:13287797, 653.38
Department of Health,Guys and St Thomas NHS Foundation Trust,21/08/2020,(81200) Medical Surgical Supplies & Equipment,(id:42420) Transplant Renal and Urology,BAXTER HEALTHCARE LTD,id:13256474   ,1220.54
Department of Health,Guys and St Thomas NHS Foundation Trust,07/08/2020,(81200) Medical Surgical Supplies & Equipment,(id:42420) Transplant Renal and Urology,SQUADRON MEDICAL LTD,id:13191922    ,2182.64
Department of Health,Guys and St Thomas NHS Foundation Trust,21/08/2020,(81700) Lab Equipment Purchase,(id:42420) Transplant Renal and Urology,NHS SUPPLY CHAIN (MAIDSTONE),id:13150574 , 842.88
Department of Health,Guys and St Thomas NHS Foundation Trust,21/08/2020,(82800) Bedding & Linen,(id:42438) Transplant Renal and Urology,NHS SUPPLY CHAIN (MAIDSTONE),id:13162263   , 243.07
Department of Health,Guys and St Thomas NHS Foundation Trust,14/08/2020,(86300) Healthcare from non-NHS bodies,(id:42438) Transplant Renal and Urology,DIAVERUM UK LTD,id:13255674 ,    68884.99
Department of Health,Guys and St Thomas NHS Foundation Trust,21/08/2020,(81700) Lab Equipment Purchase,(id:42427) Transplant Renal and Urology,NHS SUPPLY CHAIN (MAIDSTONE),id:13150574 ,  39.06
Department of Health,Guys and St Thomas NHS Foundation Trust,07/08/2020,(81200) Medical Surgical Supplies & Equipment,(id:42425) Transplant Renal and Urology,SQUADRON MEDICAL LTD,id:13212806    ,1171.32
Department of Health,Guys and St Thomas NHS Foundation Trust,07/08/2020,(81200) Medical Surgical Supplies & Equipment,(id:42422) Transplant Renal and Urology,NXSTAGE MEDICAL UK LIMITED,id:13098654   ,1636.80
Department of Health,Guys and St Thomas NHS Foundation Trust,07/08/2020,(81200) Medical Surgical Supplies & Equipment,(id:42422) Transplant Renal and Urology,NXSTAGE MEDICAL UK LIMITED,id:12988301   ,1276.33
Department of Health,Guys and St Thomas NHS Foundation Trust,07/08/2020,(81200) Medical Surgical Supplies & Equipment,(id:42422) Transplant Renal and Urology,NXSTAGE MEDICAL UK LIMITED,id:13095194   ,1309.44
Department of Health,Guys and St Thomas NHS Foundation Trust,07/08/2020,(81200) Medical Surgical Supplies & Equipment,(id:42422) Transplant Renal and Urology,NXSTAGE MEDICAL UK LIMITED,id:13095514   ,1276.33
Department of Health,Guys and St Thomas NHS Foundation Trust,07/08/2020,(81200) Medical Surgical Supplies & Equipment,(id:42422) Transplant Renal and Urology,NXSTAGE MEDICAL UK LIMITED,id:13123235   ,1636.80
Department of Health,Guys and St Thomas NHS Foundation Trust,07/08/2020,(81200) Medical Surgical Supplies & Equipment,(id:42422) Transplant Renal and Urology,NXSTAGE MEDICAL UK LIMITED,id:13166121   ,1636.80
Department of Health,Guys and St Thomas NHS Foundation Trust,21/08/2020,(81200) Medical Surgical Supplies & Equipment,(id:42421) Transplant Renal and Urology,NHS SUPPLY CHAIN (MAIDSTONE),id:13150574 ,  10.70
Department of Health,Guys and St Thomas NHS Foundation Trust,14/08/2020,(83765) Rent,(id:4622425) Transplant Renal and Urology,FRESENIUS MEDICAL CARE RENAL SERVICES LT,id:13248054,1200.00
Department of Health,Guys and St Thomas NHS Foundation Trust,07/08/2020,(83610) IT Costs,(id:42417) Transplant Renal and Urology,COMPUTACENTER UK LTD,id:13194198   ,2173.33
Department of Health,Guys and St Thomas NHS Foundation Trust,21/08/2020,(81200) Medical Surgical Supplies & Equipment,(id:42034) Dental Services,ASCHERL CERAMICS LTD,id:13268694  ,    19087.77
Department of Health,Guys and St Thomas NHS Foundation Trust,21/08/2020,(81200) Medical Surgical Supplies & Equipment,(id:42037) Dental Services,NHS SUPPLY CHAIN (MAIDSTONE),id:13162263    , 565.19
Department of Health,Guys and St Thomas NHS Foundation Trust,07/08/2020,(81200) Medical Surgical Supplies & Equipment,(id:42007) Dental Services,HENRY SCHEIN,id:13207590, 869.41
Department of Health,Guys and St Thomas NHS Foundation Trust,07/08/2020,(81200) Medical Surgical Supplies & Equipment,(id:42007) Dental Services,HENRY SCHEIN,id:13207683, 722.40
Department of Health,Guys and St Thomas NHS Foundation Trust,07/08/2020,(81200) Medical Surgical Supplies & Equipment,(id:42007) Dental Services,HENRY SCHEIN,id:13187434, 722.40
Department of Health,Guys and St Thomas NHS Foundation Trust,21/08/2020,(83400) Office Equipment,(id:42007) Dental Services,NHS SUPPLY CHAIN (MAIDSTONE),id:13150574, 128.96
Department of Health,Guys and St Thomas NHS Foundation Trust,21/08/2020,(83400) Office Equipment,(id:42028) Dental Services,NHS SUPPLY CHAIN (MAIDSTONE),id:13162263, 253.99
Department of Health,Guys and St Thomas NHS Foundation Trust,21/08/2020,(81700) Lab Equipment Purchase,(id:42028) Dental Services,NHS SUPPLY CHAIN (MAIDSTONE),id:13162263    ,   1.32
Department of Health,Guys and St Thomas NHS Foundation Trust,07/08/2020,(81200) Medical Surgical Supplies & Equipment,(id:42016) Dental Services,STRAUMANN LTD,id:13221834    , 605.94
Department of Health,Guys and St Thomas NHS Foundation Trust,07/08/2020,(81200) Medical Surgical Supplies & Equipment,(id:42016) Dental Services,DENTSPLY IH LTD,id:13211440  , 546.85
Department of Health,Guys and St Thomas NHS Foundation Trust,21/08/2020,(81200) Medical Surgical Supplies & Equipment,(id:42016) Dental Services,NOBEL BIOCARE UK LTD,id:13274514  , 615.48
Department of Health,Guys and St Thomas NHS Foundation Trust,21/08/2020,(82600) Uniforms & Clothing,(id:1634433) Dental Services,NHS SUPPLY CHAIN (MAIDSTONE),id:13150574, 127.37
Department of Health,Guys and St Thomas NHS Foundation Trust,27/08/2020,(81200) Medical Surgical Supplies & Equipment,(id:1634432) Dental Services,HENRY SCHEIN,id:13281878   , 937.15
Department of Health,Guys and St Thomas NHS Foundation Trust,21/08/2020,(83400) Office Equipment,(id:1634429) Dental Services,NHS SUPPLY CHAIN (MAIDSTONE),id:13162263   , 265.03
Department of Health,Guys and St Thomas NHS Foundation Trust,21/08/2020,(81200) Medical Surgical Supplies & Equipment,(id:1634429) Dental Services,HENRY SCHEIN,id:13261068   , 941.56
Department of Health,Guys and St Thomas NHS Foundation Trust,21/08/2020,(81200) Medical Surgical Supplies & Equipment,(id:1634429) Dental Services,HENRY SCHEIN,id:13260894   , 852.05
Department of Health,Guys and St Thomas NHS Foundation Trust,21/08/2020,(81200) Medical Surgical Supplies & Equipment,(id:1650421) Dental Services,COMPLETE DENTAL SOLUTIONS LAB T/A PREMPLUS DENTAL LABS,id:13267914 , 816.50
Department of Health,Guys and St Thomas NHS Foundation Trust,27/08/2020,(81200) Medical Surgical Supplies & Equipment,(id:42011) Dental Services,SKILLBOND  DIRECT LTD,id:13288395 ,2320.82
Department of Health,Guys and St Thomas NHS Foundation Trust,21/08/2020,(89440) Research and Development,(id:2953419) Specialist Ambulatory Services,ICARSIS LTD,id:13266534  ,    10000.00
Department of Health,Guys and St Thomas NHS Foundation Trust,21/08/2020,(81700) Lab Equipment Purchase,(id:379409) Specialist Ambulatory Services,VWR INTERNATIONAL LTD,id:12970038, 998.40
Department of Health,Guys and St Thomas NHS Foundation Trust,27/08/2020,(81000) Surgical Appliances,(id:42195) Specialist Ambulatory Services,TALAR MADE ORTHOTICS LTD,id:13288910 ,  46.50
Department of Health,Guys and St Thomas NHS Foundation Trust,21/08/2020,(81200) Medical Surgical Supplies & Equipment,(id:42193) Specialist Ambulatory Services,NHS SUPPLY CHAIN (MAIDSTONE),id:13162263    , 163.99
Department of Health,Guys and St Thomas NHS Foundation Trust,07/08/2020,(50552) Qualified Nursing Staff,(id:42193) Specialist Ambulatory Services,CONTINENTAL NURSE LTD,id:13236163,1882.34
Department of Health,Guys and St Thomas NHS Foundation Trust,21/08/2020,(83400) Office Equipment,(id:42193) Specialist Ambulatory Services,NHS SUPPLY CHAIN (MAIDSTONE),id:13162263, 291.29
Department of Health,Guys and St Thomas NHS Foundation Trust,07/08/2020,(81000) Surgical Appliances,(id:42193) Specialist Ambulatory Services,TALAR MADE ORTHOTICS LTD,id:13220963 ,  28.80
Department of Health,Guys and St Thomas NHS Foundation Trust,07/08/2020,(50200) Consultants,(id:42099) Specialist Ambulatory Services,CROYDON HEALTH SERVICES NHS TRUST,id:11753511, 936.83
Department of Health,Guys and St Thomas NHS Foundation Trust,07/08/2020,(50200) Consultants,(id:42099) Specialist Ambulatory Services,CROYDON HEALTH SERVICES NHS TRUST,id:11917123, 936.83
Department of Health,Guys and St Thomas NHS Foundation Trust,07/08/2020,(50200) Consultants,(id:42099) Specialist Ambulatory Services,CROYDON HEALTH SERVICES NHS TRUST,id:13159796,1091.52
Department of Health,Guys and St Thomas NHS Foundation Trust,07/08/2020,(50200) Consultants,(id:42099) Specialist Ambulatory Services,CROYDON HEALTH SERVICES NHS TRUST,id:12918758,1512.00
Department of Health,Guys and St Thomas NHS Foundation Trust,21/08/2020,(81200) Medical Surgical Supplies & Equipment,(id:42088) Specialist Ambulatory Services,NHS SUPPLY CHAIN (MAIDSTONE),id:13150574    ,  42.00
Department of Health,Guys and St Thomas NHS Foundation Trust,21/08/2020,(83400) Office Equipment,(id:42065) Specialist Ambulatory Services,NHS SUPPLY CHAIN (MAIDSTONE),id:13150574,   6.50
Department of Health,Guys and St Thomas NHS Foundation Trust,21/08/2020,(50200) Consultants,(id:42065) Specialist Ambulatory Services,LEWISHAM AND GREENWICH NHS TRUST,id:12974874 ,2318.16
Department of Health,Guys and St Thomas NHS Foundation Trust,21/08/2020,(82800) Bedding & Linen,(id:42079) Specialist Ambulatory Services,NHS SUPPLY CHAIN (MAIDSTONE),id:13150574 ,   3.52
Department of Health,Guys and St Thomas NHS Foundation Trust,21/08/2020,(81100) Dressings,(id:42079) Specialist Ambulatory Services,NHS SUPPLY CHAIN (MAIDSTONE),id:13150574  , 237.00
Department of Health,Guys and St Thomas NHS Foundation Trust,21/08/2020,(81100) Dressings,(id:42079) Specialist Ambulatory Services,NHS SUPPLY CHAIN (MAIDSTONE),id:13162263  , 130.57
Department of Health,Guys and St Thomas NHS Foundation Trust,27/08/2020,(81275) Medical Surgical Supplies & Equipment,(id:42079) Specialist Ambulatory Services,THERAKOS (UK) LIMITED,id:13274234 ,-748.80
Department of Health,Guys and St Thomas NHS Foundation Trust,21/08/2020,(83400) Office Equipment,(id:42079) Specialist Ambulatory Services,NHS SUPPLY CHAIN (MAIDSTONE),id:13162263,  37.48
Department of Health,Guys and St Thomas NHS Foundation Trust,21/08/2020,(81200) Medical Surgical Supplies & Equipment,(id:391417) Specialist Ambulatory Services,NHS SUPPLY CHAIN (MAIDSTONE),id:13150574   ,  20.35
Department of Health,Guys and St Thomas NHS Foundation Trust,21/08/2020,(81225) Medical Surgical Supplies & Equipment,(id:42064) Specialist Ambulatory Services,NHS SUPPLY CHAIN (MAIDSTONE),id:13162263    ,  51.83
Department of Health,Guys and St Thomas NHS Foundation Trust,21/08/2020,(81200) Medical Surgical Supplies & Equipment,(id:42064) Specialist Ambulatory Services,NHS SUPPLY CHAIN (MAIDSTONE),id:13162263    , 369.60
Department of Health,Guys and St Thomas NHS Foundation Trust,27/08/2020,(83630) IT Costs,(id:42061) Specialist Ambulatory Services,ICARSIS LTD,id:13267034,8000.00
Department of Health,Guys and St Thomas NHS Foundation Trust,27/08/2020,(83630) IT Costs,(id:42061) Specialist Ambulatory Services,ICARSIS LTD,id:13267035,4000.00
Department of Health,Guys and St Thomas NHS Foundation Trust,21/08/2020,(81200) Medical Surgical Supplies & Equipment,(id:42057) Specialist Ambulatory Services,ALLOGA UK,id:13262776   ,1077.00
Department of Health,Guys and St Thomas NHS Foundation Trust,14/08/2020,(83400) Office Equipment,(id:42055) Specialist Ambulatory Services,WAREHOUSE EXPRESS T/A WEX PHOTOGRAPHIC,id:13239634, 598.31
Department of Health,Guys and St Thomas NHS Foundation Trust,07/08/2020,(84657) Establishment,(id:42054) Specialist Ambulatory Services,IRON MOUNTAIN (UK) LTD,id:13133254    , 671.17
Department of Health,Guys and St Thomas NHS Foundation Trust,21/08/2020,(81225) Medical Surgical Supplies & Equipment,(id:42050) Specialist Ambulatory Services,NHS SUPPLY CHAIN (MAIDSTONE),id:13150574    ,  53.66
Department of Health,Guys and St Thomas NHS Foundation Trust,21/08/2020,(81700) Lab Equipment Purchase,(id:42050) Specialist Ambulatory Services,NHS SUPPLY CHAIN (MAIDSTONE),id:13162263    ,  29.59
Department of Health,Guys and St Thomas NHS Foundation Trust,07/08/2020,(53662) Pharmacists,(id:818419) Pharmacy,TFS HEALTHCARE,id:13222114,1195.20
Department of Health,Guys and St Thomas NHS Foundation Trust,07/08/2020,(53662) Pharmacists,(id:818419) Pharmacy,TFS HEALTHCARE,id:13236117,1494.00
Department of Health,Guys and St Thomas NHS Foundation Trust,07/08/2020,(53662) Pharmacists,(id:818419) Pharmacy,TFS HEALTHCARE,id:13236152,1494.00
Department of Health,Guys and St Thomas NHS Foundation Trust,07/08/2020,(53662) Pharmacists,(id:818419) Pharmacy,TFS HEALTHCARE,id:13236043,1494.00
Department of Health,Guys and St Thomas NHS Foundation Trust,14/08/2020,(83400) Office Equipment,(id:581409) Pharmacy,AQUILANT DISTRIBUTION,id:13240854   ,2701.92
Department of Health,Guys and St Thomas NHS Foundation Trust,18/08/2020,(53672) Pharmacists,(id:42159) Pharmacy,PRICEWATERHOUSECOOPERS LLP,id:13268716    , 994.97
Department of Health,Guys and St Thomas NHS Foundation Trust,25/08/2020,(53672) Pharmacists,(id:42159) Pharmacy,PRICEWATERHOUSECOOPERS LLP,id:13288926    ,2848.13
Department of Health,Guys and St Thomas NHS Foundation Trust,14/08/2020,(81400) Medical Surgical Supplies & Equipment,(id:42159) Pharmacy,COPLEY SCIENTIFIC LTD,id:13259856   ,1455.00
Department of Health,Guys and St Thomas NHS Foundation Trust,14/08/2020,(81275) Medical Surgical Supplies & Equipment,(id:42159) Pharmacy,GEMINI DATA LOGGERS (UK) LIMITED,id:13257855  ,1181.94
Department of Health,Guys and St Thomas NHS Foundation Trust,27/08/2020,(81700) Lab Equipment Purchase,(id:42159) Pharmacy,NORTH TEES AND HARTLEPOOL NHS FOUNDATION TRUST,id:13289040   , 531.53
Department of Health,Guys and St Thomas NHS Foundation Trust,21/08/2020,(82800) Bedding & Linen,(id:42160) Pharmacy,NHS SUPPLY CHAIN (MAIDSTONE),id:13150574   ,  25.20
Department of Health,Guys and St Thomas NHS Foundation Trust,07/08/2020,(53672) Pharmacists,(id:42164) Pharmacy,TFS HEALTHCARE,id:13222124 ,1943.62
Department of Health,Guys and St Thomas NHS Foundation Trust,27/08/2020,(84655) Establishment,(id:478416) Medical Specialties,LANGUAGE LINE LTD,id:13292978    , 484.73
Department of Health,Guys and St Thomas NHS Foundation Trust,27/08/2020,(84655) Establishment,(id:478416) Medical Specialties,LANGUAGE LINE LTD,id:13285234    ,3816.67
Department of Health,Guys and St Thomas NHS Foundation Trust,07/08/2020,(84655) Establishment,(id:42178) Medical Specialties,LANGUAGE CONNECT,id:13227054 , 995.09
Department of Health,Guys and St Thomas NHS Foundation Trust,21/08/2020,(83400) Office Equipment,(id:42217) Medical Specialties,NHS SUPPLY CHAIN (MAIDSTONE),id:13162263 ,  72.82
Department of Health,Guys and St Thomas NHS Foundation Trust,07/08/2020,(81200) Medical Surgical Supplies & Equipment,(id:42223) Medical Specialties,BLINK MEDICAL LTD,id:13211588 ,4886.40
Department of Health,Guys and St Thomas NHS Foundation Trust,14/08/2020,(81400) Medical Surgical Supplies & Equipment,(id:42223) Medical Specialties,OPTOS PLC,id:13257075    ,5250.00
Department of Health,Guys and St Thomas NHS Foundation Trust,14/08/2020,(81200) Medical Surgical Supplies & Equipment,(id:42222) Medical Specialties,ALCON EYE CARE UK LIMITED,id:13235777   ,4032.00
Department of Health,Guys and St Thomas NHS Foundation Trust,21/08/2020,(82800) Bedding & Linen,(id:42221) Medical Specialties,NHS SUPPLY CHAIN (MAIDSTONE),id:13150574  ,  14.04
Department of Health,Guys and St Thomas NHS Foundation Trust,07/08/2020,(81225) Medical Surgical Supplies & Equipment,(id:42221) Medical Specialties,CARL ZEISS LTD,id:13215354    ,1200.00
Department of Health,Guys and St Thomas NHS Foundation Trust,27/08/2020,(81000) Surgical Appliances,(id:42213) Medical Specialties,TALAR MADE ORTHOTICS LTD,id:13293108  ,  14.40
Department of Health,Guys and St Thomas NHS Foundation Trust,27/08/2020,(81000) Surgical Appliances,(id:42213) Medical Specialties,TALAR MADE ORTHOTICS LTD,id:13283274  , 160.50
Department of Health,Guys and St Thomas NHS Foundation Trust,21/08/2020,(81200) Medical Surgical Supplies & Equipment,(id:42209) Medical Specialties,MEDTRONIC LTD,id:13256394, 567.00
Department of Health,Guys and St Thomas NHS Foundation Trust,07/08/2020,(81200) Medical Surgical Supplies & Equipment,(id:42209) Medical Specialties,MEDTRONIC LTD,id:13207696, 567.00
Department of Health,Guys and St Thomas NHS Foundation Trust,27/08/2020,(81000) Surgical Appliances,(id:42209) Medical Specialties,TALAR MADE ORTHOTICS LTD,id:13293103  , 135.09
Department of Health,Guys and St Thomas NHS Foundation Trust,21/08/2020,(81200) Medical Surgical Supplies & Equipment,(id:42208) Medical Specialties,DEXCOM INTERNATIONAL LTD,id:13272878    , 793.50
Department of Health,Guys and St Thomas NHS Foundation Trust,21/08/2020,(81200) Medical Surgical Supplies & Equipment,(id:42208) Medical Specialties,DEXCOM INTERNATIONAL LTD,id:13071422    , 793.50
Department of Health,Guys and St Thomas NHS Foundation Trust,27/08/2020,(81200) Medical Surgical Supplies & Equipment,(id:42208) Medical Specialties,MEDTRONIC LTD,id:13193574, 524.06
Department of Health,Guys and St Thomas NHS Foundation Trust,27/08/2020,(81200) Medical Surgical Supplies & Equipment,(id:42208) Medical Specialties,MEDTRONIC LTD,id:13169014, 517.20
Department of Health,Guys and St Thomas NHS Foundation Trust,27/08/2020,(81200) Medical Surgical Supplies & Equipment,(id:42208) Medical Specialties,MEDTRONIC LTD,id:13287175, 599.34
Department of Health,Guys and St Thomas NHS Foundation Trust,27/08/2020,(81200) Medical Surgical Supplies & Equipment,(id:42208) Medical Specialties,DEXCOM INTERNATIONAL LTD,id:13272935    , 793.50
Department of Health,Guys and St Thomas NHS Foundation Trust,27/08/2020,(81200) Medical Surgical Supplies & Equipment,(id:42208) Medical Specialties,DEXCOM INTERNATIONAL LTD,id:13272880    , 793.50
Department of Health,Guys and St Thomas NHS Foundation Trust,27/08/2020,(81200) Medical Surgical Supplies & Equipment,(id:42208) Medical Specialties,INSULET INTERNATIONAL LTD,id:13254995   , 712.08
Department of Health,Guys and St Thomas NHS Foundation Trust,27/08/2020,(81200) Medical Surgical Supplies & Equipment,(id:42208) Medical Specialties,INSULET INTERNATIONAL LTD,id:13255274   , 712.08
Department of Health,Guys and St Thomas NHS Foundation Trust,27/08/2020,(81200) Medical Surgical Supplies & Equipment,(id:42208) Medical Specialties,INSULET INTERNATIONAL LTD,id:13271054   , 712.08
Department of Health,Guys and St Thomas NHS Foundation Trust,27/08/2020,(81200) Medical Surgical Supplies & Equipment,(id:42208) Medical Specialties,INSULET INTERNATIONAL LTD,id:13235494   , 712.08
Department of Health,Guys and St Thomas NHS Foundation Trust,27/08/2020,(81200) Medical Surgical Supplies & Equipment,(id:42208) Medical Specialties,INSULET INTERNATIONAL LTD,id:13288714   , 712.08
Department of Health,Guys and St Thomas NHS Foundation Trust,27/08/2020,(81200) Medical Surgical Supplies & Equipment,(id:42208) Medical Specialties,DEXCOM INTERNATIONAL LTD,id:13272916    ,1392.00
Department of Health,Guys and St Thomas NHS Foundation Trust,07/08/2020,(81200) Medical Surgical Supplies & Equipment,(id:42208) Medical Specialties,DEXCOM INTERNATIONAL LTD,id:13220538    , 793.50
Department of Health,Guys and St Thomas NHS Foundation Trust,07/08/2020,(81200) Medical Surgical Supplies & Equipment,(id:42208) Medical Specialties,DEXCOM INTERNATIONAL LTD,id:13198578    , 793.50
Department of Health,Guys and St Thomas NHS Foundation Trust,07/08/2020,(81200) Medical Surgical Supplies & Equipment,(id:42208) Medical Specialties,DEXCOM INTERNATIONAL LTD,id:13214399    , 793.50
Department of Health,Guys and St Thomas NHS Foundation Trust,27/08/2020,(81200) Medical Surgical Supplies & Equipment,(id:42208) Medical Specialties,MEDTRONIC LTD,id:13221510,3600.00
Department of Health,Guys and St Thomas NHS Foundation Trust,21/08/2020,(81700) Lab Equipment Purchase,(id:42208) Medical Specialties,NHS SUPPLY CHAIN (MAIDSTONE),id:13162263,  25.78
Department of Health,Guys and St Thomas NHS Foundation Trust,14/08/2020,(84656) Establishment,(id:42204) Medical Specialties,DICT8 LIMITED,id:13245215    ,1334.76
Department of Health,Guys and St Thomas NHS Foundation Trust,21/08/2020,(81200) Medical Surgical Supplies & Equipment,(id:42205) Medical Specialties,NHS SUPPLY CHAIN (MAIDSTONE),id:13162263, 226.65
Department of Health,Guys and St Thomas NHS Foundation Trust,07/08/2020,(81200) Medical Surgical Supplies & Equipment,(id:41937) Medical Specialties,OPTIMUS MEDICAL LTD,id:13218039    , 660.00
Department of Health,Guys and St Thomas NHS Foundation Trust,07/08/2020,(81200) Medical Surgical Supplies & Equipment,(id:41937) Medical Specialties,BOSTON SCIENTIFIC LTD,id:13197535  ,    12600.00
Department of Health,Guys and St Thomas NHS Foundation Trust,14/08/2020,(81200) Medical Surgical Supplies & Equipment,(id:41937) Medical Specialties,MEDTRONIC LTD,id:13224975,    10959.60
Department of Health,Guys and St Thomas NHS Foundation Trust,07/08/2020,(81225) Medical Surgical Supplies & Equipment,(id:41937) Medical Specialties,ENEURA (UK) LTD,id:13236312   ,1612.00
Department of Health,Guys and St Thomas NHS Foundation Trust,07/08/2020,(81225) Medical Surgical Supplies & Equipment,(id:41937) Medical Specialties,ENEURA (UK) LTD,id:13236316   ,1612.00
Department of Health,Guys and St Thomas NHS Foundation Trust,14/08/2020,(81200) Medical Surgical Supplies & Equipment,(id:41897) TAP,JOHNSON & JOHNSON MEDICAL LTD,id:13227850,1082.05
Department of Health,Guys and St Thomas NHS Foundation Trust,27/08/2020,(81200) Medical Surgical Supplies & Equipment,(id:41897) TAP,SQUADRON MEDICAL LTD,id:13268477    ,  23.84
Department of Health,Guys and St Thomas NHS Foundation Trust,21/08/2020,(81200) Medical Surgical Supplies & Equipment,(id:41897) TAP,ALPHA LABORATORIES LTD,id:13207589  ,1217.66
Department of Health,Guys and St Thomas NHS Foundation Trust,27/08/2020,(81100) Dressings,(id:41897) TAP,ELIS UK LIMITED,id:13282335  , 623.45
Department of Health,Guys and St Thomas NHS Foundation Trust,21/08/2020,(81100) Dressings,(id:41897) TAP,NHS SUPPLY CHAIN (MAIDSTONE),id:13162263    , 891.56
Department of Health,Guys and St Thomas NHS Foundation Trust,21/08/2020,(81225) Medical Surgical Supplies & Equipment,(id:41897) TAP,NHS SUPPLY CHAIN (MAIDSTONE),id:13150574 ,  48.49
Department of Health,Guys and St Thomas NHS Foundation Trust,21/08/2020,(82000) Provisions & Kitchens,(id:41897) TAP,NHS SUPPLY CHAIN (MAIDSTONE),id:13150574  ,  16.06
Department of Health,Guys and St Thomas NHS Foundation Trust,07/08/2020,(83500) Furniture & Fittings,(id:41896) TAP,OFFICE FURNITURE ONLINE,id:13222174   , 942.00
Department of Health,Guys and St Thomas NHS Foundation Trust,21/08/2020,(82800) Bedding & Linen,(id:41894) TAP,NHS SUPPLY CHAIN (MAIDSTONE),id:13150574   ,  13.53
Department of Health,Guys and St Thomas NHS Foundation Trust,21/08/2020,(83400) Office Equipment,(id:41894) TAP,NHS SUPPLY CHAIN (MAIDSTONE),id:13162263  ,  77.99
Department of Health,Guys and St Thomas NHS Foundation Trust,27/08/2020,(83400) Office Equipment,(id:41894) TAP,SQUADRON MEDICAL LTD,id:13268392,  26.05
Department of Health,Guys and St Thomas NHS Foundation Trust,07/08/2020,(81200) Medical Surgical Supplies & Equipment,(id:41894) TAP,SQUADRON MEDICAL LTD,id:13209281    ,   3.64
Department of Health,Guys and St Thomas NHS Foundation Trust,21/08/2020,(81200) Medical Surgical Supplies & Equipment,(id:41894) TAP,NHS SUPPLY CHAIN (MAIDSTONE),id:13150574 , 481.91
Department of Health,Guys and St Thomas NHS Foundation Trust,21/08/2020,(81200) Medical Surgical Supplies & Equipment,(id:41894) TAP,NHS SUPPLY CHAIN (MAIDSTONE),id:13162263 , 336.10
Department of Health,Guys and St Thomas NHS Foundation Trust,21/08/2020,(81200) Medical Surgical Supplies & Equipment,(id:41894) TAP,SQUADRON MEDICAL LTD,id:12915783    , 228.87
Department of Health,Guys and St Thomas NHS Foundation Trust,14/08/2020,(81200) Medical Surgical Supplies & Equipment,(id:41894) TAP,SQUADRON MEDICAL LTD,id:13219480    ,   3.96
Department of Health,Guys and St Thomas NHS Foundation Trust,21/08/2020,(81200) Medical Surgical Supplies & Equipment,(id:41894) TAP,SQUADRON MEDICAL LTD,id:13236697    , 578.82
Department of Health,Guys and St Thomas NHS Foundation Trust,21/08/2020,(82800) Bedding & Linen,(id:41883) TAP,NHS SUPPLY CHAIN (MAIDSTONE),id:13150574   , 170.57
Department of Health,Guys and St Thomas NHS Foundation Trust,07/08/2020,(81100) Dressings,(id:41883) TAP,ELIS UK LIMITED,id:13214118  , 457.44
Department of Health,Guys and St Thomas NHS Foundation Trust,14/08/2020,(81100) Dressings,(id:41883) TAP,SQUADRON MEDICAL LTD,id:13219472  , 165.58
Department of Health,Guys and St Thomas NHS Foundation Trust,07/08/2020,(83400) Office Equipment,(id:41883) TAP,LAZERBEAM FIRE AND SECURITY LTD,id:13215814    ,1950.00
Department of Health,Guys and St Thomas NHS Foundation Trust,21/08/2020,(82800) Bedding & Linen,(id:41907) TAP,NHS SUPPLY CHAIN (MAIDSTONE),id:13150574   , 173.52
Department of Health,Guys and St Thomas NHS Foundation Trust,07/08/2020,(81200) Medical Surgical Supplies & Equipment,(id:41907) TAP,SQUADRON MEDICAL LTD,id:13208779    , 247.76
Department of Health,Guys and St Thomas NHS Foundation Trust,07/08/2020,(81200) Medical Surgical Supplies & Equipment,(id:41907) TAP,MEDTRONIC LTD,id:13221457 ,1122.00
Department of Health,Guys and St Thomas NHS Foundation Trust,27/08/2020,(81200) Medical Surgical Supplies & Equipment,(id:41907) TAP,MEDTRONIC LTD,id:13288402 ,2244.00
Department of Health,Guys and St Thomas NHS Foundation Trust,21/08/2020,(81100) Dressings,(id:41907) TAP,NHS SUPPLY CHAIN (MAIDSTONE),id:13150574    ,  37.17
Department of Health,Guys and St Thomas NHS Foundation Trust,21/08/2020,(81550) X Ray Equipment Purchase,(id:41906) TAP,NHS SUPPLY CHAIN (MAIDSTONE),id:13150574    , 232.80
Department of Health,Guys and St Thomas NHS Foundation Trust,21/08/2020,(82600) Uniforms & Clothing,(id:41906) TAP,NHS SUPPLY CHAIN (MAIDSTONE),id:13150574    ,  95.25
Department of Health,Guys and St Thomas NHS Foundation Trust,21/08/2020,(81200) Medical Surgical Supplies & Equipment,(id:41905) TAP,SQUADRON MEDICAL LTD,id:13232467    , 699.60
Department of Health,Guys and St Thomas NHS Foundation Trust,21/08/2020,(81200) Medical Surgical Supplies & Equipment,(id:41905) TAP,NHS SUPPLY CHAIN (MAIDSTONE),id:13150574 ,4770.20
Department of Health,Guys and St Thomas NHS Foundation Trust,21/08/2020,(83400) Office Equipment,(id:41905) TAP,NHS SUPPLY CHAIN (MAIDSTONE),id:13162263  ,   1.08
Department of Health,Guys and St Thomas NHS Foundation Trust,21/08/2020,(81255) Medical Surgical Supplies & Equipment,(id:41913) TAP,NHS SUPPLY CHAIN (MAIDSTONE),id:13150574 ,  28.15
Department of Health,Guys and St Thomas NHS Foundation Trust,07/08/2020,(81200) Medical Surgical Supplies & Equipment,(id:41918) TAP,SQUADRON MEDICAL LTD,id:13208798    , 137.24
Department of Health,Guys and St Thomas NHS Foundation Trust,27/08/2020,(81200) Medical Surgical Supplies & Equipment,(id:41918) TAP,SQUADRON MEDICAL LTD,id:13236852    , 518.03
Department of Health,Guys and St Thomas NHS Foundation Trust,27/08/2020,(81200) Medical Surgical Supplies & Equipment,(id:41918) TAP,SQUADRON MEDICAL LTD,id:13264505    , 559.45
Department of Health,Guys and St Thomas NHS Foundation Trust,27/08/2020,(81200) Medical Surgical Supplies & Equipment,(id:41918) TAP,SQUADRON MEDICAL LTD,id:13259013    , 157.75
Department of Health,Guys and St Thomas NHS Foundation Trust,07/08/2020,(81200) Medical Surgical Supplies & Equipment,(id:41916) TAP,SQUADRON MEDICAL LTD,id:13212920    , 628.48
Department of Health,Guys and St Thomas NHS Foundation Trust,21/08/2020,(81100) Dressings,(id:884419) Surgery,NHS SUPPLY CHAIN (MAIDSTONE),id:13162263    ,1093.77
Department of Health,Guys and St Thomas NHS Foundation Trust,21/08/2020,(83400) Office Equipment,(id:42485) Surgery,NHS SUPPLY CHAIN (MAIDSTONE),id:13150574   , 287.31
Department of Health,Guys and St Thomas NHS Foundation Trust,07/08/2020,(81000) Surgical Appliances,(id:42485) Surgery,TALAR MADE ORTHOTICS LTD,id:13234314    ,  29.40
Department of Health,Guys and St Thomas NHS Foundation Trust,07/08/2020,(81000) Surgical Appliances,(id:42485) Surgery,TALAR MADE ORTHOTICS LTD,id:13234235    ,  43.80
Department of Health,Guys and St Thomas NHS Foundation Trust,14/08/2020,(81200) Medical Surgical Supplies & Equipment,(id:42484) Surgery,HEALTHCARE 21 LTD,id:13249354   , 954.00
Department of Health,Guys and St Thomas NHS Foundation Trust,21/08/2020,(81200) Medical Surgical Supplies & Equipment,(id:42484) Surgery,HEALTHCARE 21 LTD,id:13266755   , 636.00
Department of Health,Guys and St Thomas NHS Foundation Trust,27/08/2020,(81200) Medical Surgical Supplies & Equipment,(id:42484) Surgery,MERCIAN SURGICAL SUPPLY CO LTD,id:13277395, 696.00
Department of Health,Guys and St Thomas NHS Foundation Trust,07/08/2020,(81200) Medical Surgical Supplies & Equipment,(id:42484) Surgery,ADVANTECH SURGICAL LTD,id:13234834   , 610.99
Department of Health,Guys and St Thomas NHS Foundation Trust,07/08/2020,(81200) Medical Surgical Supplies & Equipment,(id:42484) Surgery,SEVERN HEALTHCARE TECHNOLOGIES LTD,id:13221355 ,1362.00
Department of Health,Guys and St Thomas NHS Foundation Trust,07/08/2020,(81200) Medical Surgical Supplies & Equipment,(id:42484) Surgery,HEALTHCARE 21 LTD,id:13218974   ,3696.00
Department of Health,Guys and St Thomas NHS Foundation Trust,21/08/2020,(81100) Dressings,(id:42483) Surgery,NHS SUPPLY CHAIN (MAIDSTONE),id:13162263, 359.71
Department of Health,Guys and St Thomas NHS Foundation Trust,14/08/2020,(81200) Medical Surgical Supplies & Equipment,(id:42467) Surgery,LEDA ORTHOPAEDICS LTD,id:13258234    ,1596.00
Department of Health,Guys and St Thomas NHS Foundation Trust,14/08/2020,(81200) Medical Surgical Supplies & Equipment,(id:42467) Surgery,JOHNSON & JOHNSON MEDICAL LTD,id:13224978 ,1351.94
Department of Health,Guys and St Thomas NHS Foundation Trust,21/08/2020,(81200) Medical Surgical Supplies & Equipment,(id:42467) Surgery,JOHNSON & JOHNSON MEDICAL LTD,id:13241724 , 510.13
Department of Health,Guys and St Thomas NHS Foundation Trust,21/08/2020,(81200) Medical Surgical Supplies & Equipment,(id:42467) Surgery,JOHNSON & JOHNSON MEDICAL LTD,id:13241719 , 576.28
Department of Health,Guys and St Thomas NHS Foundation Trust,21/08/2020,(81200) Medical Surgical Supplies & Equipment,(id:42467) Surgery,JOHNSON & JOHNSON MEDICAL LTD,id:13246803 , 592.27
Department of Health,Guys and St Thomas NHS Foundation Trust,07/08/2020,(81200) Medical Surgical Supplies & Equipment,(id:42467) Surgery,ORTHOFIX LTD,id:13199184   ,1303.89
Department of Health,Guys and St Thomas NHS Foundation Trust,07/08/2020,(81200) Medical Surgical Supplies & Equipment,(id:42467) Surgery,JOHNSON & JOHNSON MEDICAL LTD,id:13201885 , 724.50
Department of Health,Guys and St Thomas NHS Foundation Trust,07/08/2020,(81200) Medical Surgical Supplies & Equipment,(id:42467) Surgery,ACUMED LTD,id:13163554,2098.02
Department of Health,Guys and St Thomas NHS Foundation Trust,21/08/2020,(83400) Office Equipment,(id:42467) Surgery,SQUADRON MEDICAL LTD,id:13213011 , 204.17
Department of Health,Guys and St Thomas NHS Foundation Trust,21/08/2020,(82800) Bedding & Linen,(id:42466) Surgery,NHS SUPPLY CHAIN (MAIDSTONE),id:13162263    ,  40.18
Department of Health,Guys and St Thomas NHS Foundation Trust,21/08/2020,(83400) Office Equipment,(id:42465) Surgery,NHS SUPPLY CHAIN (MAIDSTONE),id:13162263   , 109.89
Department of Health,Guys and St Thomas NHS Foundation Trust,27/08/2020,(81000) Surgical Appliances,(id:42465) Surgery,TALAR MADE ORTHOTICS LTD,id:13293108    ,  46.50
Department of Health,Guys and St Thomas NHS Foundation Trust,07/08/2020,(80010) Drug Costs,(id:42464) Surgery,INOMED NEUROCARE LIMITED,id:13186436   ,1140.00
Department of Health,Guys and St Thomas NHS Foundation Trust,21/08/2020,(83400) Office Equipment,(id:42464) Surgery,DICTATE IT,id:13240494 , 973.50
Department of Health,Guys and St Thomas NHS Foundation Trust,21/08/2020,(81000) Surgical Appliances,(id:42463) Surgery,NHS SUPPLY CHAIN (MAIDSTONE),id:13150574, 672.53
Department of Health,Guys and St Thomas NHS Foundation Trust,21/08/2020,(81200) Medical Surgical Supplies & Equipment,(id:42463) Surgery,NHS SUPPLY CHAIN (MAIDSTONE),id:13162263  , 206.48
Department of Health,Guys and St Thomas NHS Foundation Trust,21/08/2020,(83400) Office Equipment,(id:42463) Surgery,SQUADRON MEDICAL LTD,id:13209441 ,1225.01
Department of Health,Guys and St Thomas NHS Foundation Trust,21/08/2020,(81100) Dressings,(id:42463) Surgery,NHS SUPPLY CHAIN (MAIDSTONE),id:13162263,  10.26
Department of Health,Guys and St Thomas NHS Foundation Trust,21/08/2020,(81225) Medical Surgical Supplies & Equipment,(id:42461) Surgery,NHS SUPPLY CHAIN (MAIDSTONE),id:13150574  , 157.20
Department of Health,Guys and St Thomas NHS Foundation Trust,27/08/2020,(81000) Surgical Appliances,(id:42461) Surgery,TALAR MADE ORTHOTICS LTD,id:13288866    ,  29.40
Department of Health,Guys and St Thomas NHS Foundation Trust,27/08/2020,(81000) Surgical Appliances,(id:42461) Surgery,TALAR MADE ORTHOTICS LTD,id:13288903    ,1248.99
Department of Health,Guys and St Thomas NHS Foundation Trust,07/08/2020,(81000) Surgical Appliances,(id:42461) Surgery,TALAR MADE ORTHOTICS LTD,id:13234854    ,  14.40
Department of Health,Guys and St Thomas NHS Foundation Trust,21/08/2020,(81000) Surgical Appliances,(id:42461) Surgery,TALAR MADE ORTHOTICS LTD,id:13267774    , 126.39
Department of Health,Guys and St Thomas NHS Foundation Trust,21/08/2020,(81000) Surgical Appliances,(id:42461) Surgery,TALAR MADE ORTHOTICS LTD,id:13267674    , 516.00
Department of Health,Guys and St Thomas NHS Foundation Trust,27/08/2020,(81000) Surgical Appliances,(id:42458) Surgery,TALAR MADE ORTHOTICS LTD,id:13283234    ,  14.40
Department of Health,Guys and St Thomas NHS Foundation Trust,21/08/2020,(83400) Office Equipment,(id:42458) Surgery,NHS SUPPLY CHAIN (MAIDSTONE),id:13150574   ,  12.49
Department of Health,Guys and St Thomas NHS Foundation Trust,27/08/2020,(81200) Medical Surgical Supplies & Equipment,(id:41863) PACCS,RESMED (UK) LTD,id:13288385  ,4800.00
Department of Health,Guys and St Thomas NHS Foundation Trust,27/08/2020,(81200) Medical Surgical Supplies & Equipment,(id:41863) PACCS,RESMED (UK) LTD,id:13288473  ,4800.00
Department of Health,Guys and St Thomas NHS Foundation Trust,21/08/2020,(81200) Medical Surgical Supplies & Equipment,(id:41863) PACCS,RESMED (UK) LTD,id:13269095  ,4735.20
Department of Health,Guys and St Thomas NHS Foundation Trust,21/08/2020,(81200) Medical Surgical Supplies & Equipment,(id:41863) PACCS,RESMED (UK) LTD,id:13268016  ,4800.00
Department of Health,Guys and St Thomas NHS Foundation Trust,21/08/2020,(81200) Medical Surgical Supplies & Equipment,(id:41863) PACCS,RESMED (UK) LTD,id:13269014  ,1530.00
Department of Health,Guys and St Thomas NHS Foundation Trust,21/08/2020,(81200) Medical Surgical Supplies & Equipment,(id:41935) PACCS,NHS SUPPLY CHAIN (MAIDSTONE),id:13150574    ,3117.52
Department of Health,Guys and St Thomas NHS Foundation Trust,07/08/2020,(81000) Surgical Appliances,(id:41935) PACCS,TALAR MADE ORTHOTICS LTD,id:13234314 ,  29.40
Department of Health,Guys and St Thomas NHS Foundation Trust,21/08/2020,(81000) Surgical Appliances,(id:41935) PACCS,TALAR MADE ORTHOTICS LTD,id:13269757 ,5900.88
Department of Health,Guys and St Thomas NHS Foundation Trust,21/08/2020,(81000) Surgical Appliances,(id:41935) PACCS,TALAR MADE ORTHOTICS LTD,id:13267774 ,  69.60
Department of Health,Guys and St Thomas NHS Foundation Trust,21/08/2020,(82800) Bedding & Linen,(id:1842421) PACCS,NHS SUPPLY CHAIN (MAIDSTONE),id:13162263    ,  53.14
Department of Health,Guys and St Thomas NHS Foundation Trust,21/08/2020,(81255) Medical Surgical Supplies & Equipment,(id:1842421) PACCS,NHS SUPPLY CHAIN (MAIDSTONE),id:13162263  ,   3.12
Department of Health,Guys and St Thomas NHS Foundation Trust,14/08/2020,(81200) Medical Surgical Supplies & Equipment,(id:863419) PACCS,MAQUET LIMITED,id:13252434  , 360.00
Department of Health,Guys and St Thomas NHS Foundation Trust,21/08/2020,(82600) Uniforms & Clothing,(id:41931) PACCS,NHS SUPPLY CHAIN (MAIDSTONE),id:13150574  ,  10.20
Department of Health,Guys and St Thomas NHS Foundation Trust,21/08/2020,(81100) Dressings,(id:41931) PACCS,NHS SUPPLY CHAIN (MAIDSTONE),id:13150574  , 107.80
Department of Health,Guys and St Thomas NHS Foundation Trust,21/08/2020,(50552) Qualified Nursing Staff,(id:41931) PACCS,MSI GROUP LTD,id:13279878   , 322.10
Department of Health,Guys and St Thomas NHS Foundation Trust,14/08/2020,(50552) Qualified Nursing Staff,(id:41931) PACCS,CARE PROVIDERS HEALTHCARE,id:13257310 , 679.88
Department of Health,Guys and St Thomas NHS Foundation Trust,21/08/2020,(50522) Unqualified Nursing Staff,(id:41931) PACCS,MSI GROUP LTD,id:13282190 , 447.02
Department of Health,Guys and St Thomas NHS Foundation Trust,07/08/2020,(50522) Unqualified Nursing Staff,(id:41931) PACCS,MSI GROUP LTD,id:13236088 , 269.22
Department of Health,Guys and St Thomas NHS Foundation Trust,21/08/2020,(81700) Lab Equipment Purchase,(id:41931) PACCS,NHS SUPPLY CHAIN (MAIDSTONE),id:13162263    ,  12.68
Department of Health,Guys and St Thomas NHS Foundation Trust,21/08/2020,(81255) Medical Surgical Supplies & Equipment,(id:41931) PACCS,NHS SUPPLY CHAIN (MAIDSTONE),id:13150574    ,   4.80
Department of Health,Guys and St Thomas NHS Foundation Trust,21/08/2020,(83400) Office Equipment,(id:41928) PACCS,SQUADRON MEDICAL LTD,id:13246985   ,  65.59
Department of Health,Guys and St Thomas NHS Foundation Trust,07/08/2020,(83500) Furniture & Fittings,(id:41928) PACCS,SCC PLC)SPECIALIST COMPUTER CENTRES,id:13206134    ,    10549.71
Department of Health,Guys and St Thomas NHS Foundation Trust,21/08/2020,(82800) Bedding & Linen,(id:41928) PACCS,NHS SUPPLY CHAIN (MAIDSTONE),id:13150574 ,1284.89
Department of Health,Guys and St Thomas NHS Foundation Trust,21/08/2020,(80100) Drug Costs,(id:41928) PACCS,BOC LTD :02107500,id:13252216  ,4008.00
Department of Health,Guys and St Thomas NHS Foundation Trust,21/08/2020,(81200) Medical Surgical Supplies & Equipment,(id:41928) PACCS,SQUADRON MEDICAL LTD,id:13246985  , 740.74
Department of Health,Guys and St Thomas NHS Foundation Trust,27/08/2020,(81200) Medical Surgical Supplies & Equipment,(id:41928) PACCS,KAPITEX HEALTHCARE LTD,id:13288676, 905.78
Department of Health,Guys and St Thomas NHS Foundation Trust,14/08/2020,(81200) Medical Surgical Supplies & Equipment,(id:41928) PACCS,HAMILTON MEDICAL UK (A DIVISION OF HAMILTON SALES & SERVICE UK LTD),id:13239714,1713.60
Department of Health,Guys and St Thomas NHS Foundation Trust,21/08/2020,(50552) Qualified Nursing Staff,(id:41928) PACCS,GLOBE LOCUMS LTD,id:13279764, 313.83
Department of Health,Guys and St Thomas NHS Foundation Trust,21/08/2020,(50552) Qualified Nursing Staff,(id:41928) PACCS,MSI GROUP LTD,id:13279806   , 356.47
Department of Health,Guys and St Thomas NHS Foundation Trust,27/08/2020,(50552) Qualified Nursing Staff,(id:41928) PACCS,MSI GROUP LTD,id:13292892   , 344.85
Department of Health,Guys and St Thomas NHS Foundation Trust,14/08/2020,(50522) Unqualified Nursing Staff,(id:41928) PACCS,CARE PROVIDERS HEALTHCARE,id:13257434    , 708.49
Department of Health,Guys and St Thomas NHS Foundation Trust,21/08/2020,(81255) Medical Surgical Supplies & Equipment,(id:41928) PACCS,NHS SUPPLY CHAIN (MAIDSTONE),id:13150574    ,   1.87
Department of Health,Guys and St Thomas NHS Foundation Trust,14/08/2020,(86010) Audit Fees,(id:41928) PACCS,ICNARC,id:13248674   ,2760.00
Department of Health,Guys and St Thomas NHS Foundation Trust,21/08/2020,(81230) Medical Surgical Supplies & Equipment,(id:41928) PACCS,NHS SUPPLY CHAIN (MAIDSTONE),id:13150574    , 468.32
Department of Health,Guys and St Thomas NHS Foundation Trust,27/08/2020,(81000) Surgical Appliances,(id:41928) PACCS,TALAR MADE ORTHOTICS LTD,id:13288840 ,  46.50
Department of Health,Guys and St Thomas NHS Foundation Trust,27/08/2020,(81000) Surgical Appliances,(id:41928) PACCS,TALAR MADE ORTHOTICS LTD,id:13288758 , 208.93
Department of Health,Guys and St Thomas NHS Foundation Trust,27/08/2020,(81000) Surgical Appliances,(id:41928) PACCS,TALAR MADE ORTHOTICS LTD,id:13288873 , 325.50
Department of Health,Guys and St Thomas NHS Foundation Trust,27/08/2020,(81000) Surgical Appliances,(id:41928) PACCS,TALAR MADE ORTHOTICS LTD,id:13288795 , 371.40
Department of Health,Guys and St Thomas NHS Foundation Trust,07/08/2020,(81000) Surgical Appliances,(id:41928) PACCS,TALAR MADE ORTHOTICS LTD,id:13234314 ,  93.00
Department of Health,Guys and St Thomas NHS Foundation Trust,21/08/2020,(81700) Lab Equipment Purchase,(id:41928) PACCS,NHS SUPPLY CHAIN (MAIDSTONE),id:13162263    ,  78.20
Department of Health,Guys and St Thomas NHS Foundation Trust,07/08/2020,(50562) Qualified Nursing Staff,(id:41928) PACCS,MEDICSPRO LTD,id:13235977   , 421.20
Department of Health,Guys and St Thomas NHS Foundation Trust,07/08/2020,(50562) Qualified Nursing Staff,(id:41928) PACCS,JUST NURSES (NURSCO HEALTHCARE LIMITED),id:13222131  , 444.86
Department of Health,Guys and St Thomas NHS Foundation Trust,07/08/2020,(50562) Qualified Nursing Staff,(id:41928) PACCS,JUST NURSES (NURSCO HEALTHCARE LIMITED),id:13222132  , 459.00
Department of Health,Guys and St Thomas NHS Foundation Trust,21/08/2020,(50562) Qualified Nursing Staff,(id:41928) PACCS,PULSE HEALTHCARE LIMITED,id:13279912  , 431.60
Department of Health,Guys and St Thomas NHS Foundation Trust,21/08/2020,(50562) Qualified Nursing Staff,(id:41928) PACCS,JUST NURSES (NURSCO HEALTHCARE LIMITED),id:13279872  , 480.21
Department of Health,Guys and St Thomas NHS Foundation Trust,14/08/2020,(50562) Qualified Nursing Staff,(id:41928) PACCS,JUST NURSES (NURSCO HEALTHCARE LIMITED),id:13257422  , 843.75
Department of Health,Guys and St Thomas NHS Foundation Trust,14/08/2020,(50562) Qualified Nursing Staff,(id:41928) PACCS,JUST NURSES (NURSCO HEALTHCARE LIMITED),id:13257455  , 444.86
Department of Health,Guys and St Thomas NHS Foundation Trust,14/08/2020,(50562) Qualified Nursing Staff,(id:41928) PACCS,JUST NURSES (NURSCO HEALTHCARE LIMITED),id:13257545  , 459.00
Department of Health,Guys and St Thomas NHS Foundation Trust,14/08/2020,(50562) Qualified Nursing Staff,(id:41928) PACCS,JUST NURSES (NURSCO HEALTHCARE LIMITED),id:13260633  , 512.02
Department of Health,Guys and St Thomas NHS Foundation Trust,21/08/2020,(82000) Provisions & Kitchens,(id:41927) PACCS,NHS SUPPLY CHAIN (MAIDSTONE),id:13150574,   8.64
Department of Health,Guys and St Thomas NHS Foundation Trust,21/08/2020,(81100) Dressings,(id:41927) PACCS,COOK UK LTD,id:13258534    , 193.20
Department of Health,Guys and St Thomas NHS Foundation Trust,21/08/2020,(81700) Lab Equipment Purchase,(id:41927) PACCS,NHS SUPPLY CHAIN (MAIDSTONE),id:13150574    ,  12.61
Department of Health,Guys and St Thomas NHS Foundation Trust,21/08/2020,(82600) Uniforms & Clothing,(id:41919) PACCS,NHS SUPPLY CHAIN (MAIDSTONE),id:13150574  ,  12.77
Department of Health,Guys and St Thomas NHS Foundation Trust,21/08/2020,(82800) Bedding & Linen,(id:41864) PACCS,NHS SUPPLY CHAIN (MAIDSTONE),id:13162263 ,  46.82
Department of Health,Guys and St Thomas NHS Foundation Trust,07/08/2020,(81200) Medical Surgical Supplies & Equipment,(id:41864) PACCS,BARD LTD,id:13237075    , 765.00
Department of Health,Guys and St Thomas NHS Foundation Trust,07/08/2020,(89270) Establishment,(id:42680) Chief Executive,TAYLOR JONES CONSULTANTS LTD,id:13228514   , 900.00
Department of Health,Guys and St Thomas NHS Foundation Trust,07/08/2020,(89570) Other – Other Operating Expenditure,(id:987420) Hosted Services,NHS WANDSWORTH CCG,id:12777893    ,    10000.00
Department of Health,Guys and St Thomas NHS Foundation Trust,21/08/2020,(89280) Other - Consultancy costs,(id:987420) Hosted Services,NHS LAMBETH CCG,id:12501856   ,    67525.00
Department of Health,Guys and St Thomas NHS Foundation Trust,27/08/2020,(89280) Other - Consultancy costs,(id:987420) Hosted Services,KINGSTON UNIVERSITY,id:13294634    ,8996.33
Department of Health,Guys and St Thomas NHS Foundation Trust,14/08/2020,(89280) Other - Consultancy costs,(id:221406) Hosted Services,2020 DELIVERY LIMITED,id:13249734  ,    24525.00
Department of Health,Guys and St Thomas NHS Foundation Trust,07/08/2020,(89270) Establishment,(id:699426) Department of Strategy,SE1 PICTURE FRAMES,id:13231081,1540.00
Department of Health,Guys and St Thomas NHS Foundation Trust,21/08/2020,(82800) Bedding & Linen,(id:49447) Debtors (I&E Rechargable),NHS SUPPLY CHAIN (MAIDSTONE),id:13162263 , 241.06
Department of Health,Guys and St Thomas NHS Foundation Trust,21/08/2020,(82000) Provisions & Kitchens,(id:49447) Debtors (I&E Rechargable),NHS SUPPLY CHAIN (MAIDSTONE),id:13162263,   3.84
Department of Health,Guys and St Thomas NHS Foundation Trust,21/08/2020,(84200) Rental under Operating Lease,(id:590619) Central Services,LEASEPLAN UK LIMITED,id:13281896    ,1479.17
Department of Health,Guys and St Thomas NHS Foundation Trust,27/08/2020,(84200) Rental under Operating Lease,(id:590619) Central Services,LEASEPLAN UK LIMITED,id:13282456    ,    -1078.33
Department of Health,Guys and St Thomas NHS Foundation Trust,21/08/2020,(84200) Rental under Operating Lease,(id:590619) Central Services,LEASEPLAN UK LIMITED,id:13281780    ,    -1229.08
Department of Health,Guys and St Thomas NHS Foundation Trust,21/08/2020,(84200) Rental under Operating Lease,(id:590619) Central Services,LEASEPLAN UK LIMITED,id:13281907    ,    -1247.43
Department of Health,Guys and St Thomas NHS Foundation Trust,21/08/2020,(84200) Rental under Operating Lease,(id:590619) Central Services,LEASEPLAN UK LIMITED,id:12949082    ,    -1450.82
Department of Health,Guys and St Thomas NHS Foundation Trust,21/08/2020,(84200) Rental under Operating Lease,(id:590619) Central Services,LEASEPLAN UK LIMITED,id:12949029    ,    -1450.82
Department of Health,Guys and St Thomas NHS Foundation Trust,14/08/2020,(84400) Transport,(id:42579) Central Services,STARCROSS TRADING LTD T/A BEARS,id:13248334   , 694.50
Department of Health,Guys and St Thomas NHS Foundation Trust,14/08/2020,(84400) Transport,(id:42579) Central Services,STARCROSS TRADING LTD T/A BEARS,id:13248356   ,1700.00
Department of Health,Guys and St Thomas NHS Foundation Trust,14/08/2020,(84400) Transport,(id:42579) Central Services,STARCROSS TRADING LTD T/A BEARS,id:13253594   ,4232.20
Department of Health,Guys and St Thomas NHS Foundation Trust,14/08/2020,(84400) Transport,(id:42579) Central Services,STARCROSS TRADING LTD T/A BEARS,id:13248554   ,4441.10
Department of Health,Guys and St Thomas NHS Foundation Trust,14/08/2020,(84400) Transport,(id:42579) Central Services,STARCROSS TRADING LTD T/A BEARS,id:13253677   ,5220.00
Department of Health,Guys and St Thomas NHS Foundation Trust,14/08/2020,(84400) Transport,(id:42579) Central Services,STARCROSS TRADING LTD T/A BEARS,id:13248398   ,6400.00
Department of Health,Guys and St Thomas NHS Foundation Trust,14/08/2020,(84400) Transport,(id:42579) Central Services,STARCROSS TRADING LTD T/A BEARS,id:13248795   ,9842.31
Department of Health,Guys and St Thomas NHS Foundation Trust,14/08/2020,(84400) Transport,(id:42579) Central Services,STARCROSS TRADING LTD T/A BEARS,id:13253634   ,    11031.56
Department of Health,Guys and St Thomas NHS Foundation Trust,14/08/2020,(84400) Transport,(id:42579) Central Services,STARCROSS TRADING LTD T/A BEARS,id:13253578   ,    21046.51
Department of Health,Guys and St Thomas NHS Foundation Trust,21/08/2020,(84400) Transport,(id:42579) Central Services,STARCROSS TRADING LTD T/A BEARS,id:13273465   ,6414.61
Department of Health,Guys and St Thomas NHS Foundation Trust,21/08/2020,(84400) Transport,(id:42579) Central Services,STARCROSS TRADING LTD T/A BEARS,id:13273814   ,7595.67
Department of Health,Guys and St Thomas NHS Foundation Trust,27/08/2020,(84400) Transport,(id:42579) Central Services,STARCROSS TRADING LTD T/A BEARS,id:13291674   ,1355.60
Department of Health,Guys and St Thomas NHS Foundation Trust,27/08/2020,(84400) Transport,(id:42579) Central Services,STARCROSS TRADING LTD T/A BEARS,id:13291754   ,1525.86
Department of Health,Guys and St Thomas NHS Foundation Trust,27/08/2020,(84400) Transport,(id:42579) Central Services,STARCROSS TRADING LTD T/A BEARS,id:13291575   ,1558.50
Department of Health,Guys and St Thomas NHS Foundation Trust,27/08/2020,(84400) Transport,(id:42579) Central Services,STARCROSS TRADING LTD T/A BEARS,id:13291398   ,2765.08
Department of Health,Guys and St Thomas NHS Foundation Trust,27/08/2020,(84400) Transport,(id:42579) Central Services,STARCROSS TRADING LTD T/A BEARS,id:13291454   ,2790.00
Department of Health,Guys and St Thomas NHS Foundation Trust,27/08/2020,(84400) Transport,(id:42579) Central Services,STARCROSS TRADING LTD T/A BEARS,id:13291195   ,3015.37
Department of Health,Guys and St Thomas NHS Foundation Trust,27/08/2020,(84400) Transport,(id:42579) Central Services,STARCROSS TRADING LTD T/A BEARS,id:13291434   ,3330.00
Department of Health,Guys and St Thomas NHS Foundation Trust,27/08/2020,(84400) Transport,(id:42579) Central Services,STARCROSS TRADING LTD T/A BEARS,id:13291775   ,3338.75
Department of Health,Guys and St Thomas NHS Foundation Trust,27/08/2020,(84400) Transport,(id:42579) Central Services,STARCROSS TRADING LTD T/A BEARS,id:13290874   ,7078.88
Department of Health,Guys and St Thomas NHS Foundation Trust,21/08/2020,(84400) Transport,(id:42579) Central Services,STARCROSS TRADING LTD T/A BEARS,id:13273617   , 800.00
Department of Health,Guys and St Thomas NHS Foundation Trust,21/08/2020,(84400) Transport,(id:42579) Central Services,STARCROSS TRADING LTD T/A BEARS,id:13273574   , 835.50
Department of Health,Guys and St Thomas NHS Foundation Trust,21/08/2020,(84400) Transport,(id:42579) Central Services,STARCROSS TRADING LTD T/A BEARS,id:13274094   , 957.00
Department of Health,Guys and St Thomas NHS Foundation Trust,21/08/2020,(84400) Transport,(id:42579) Central Services,STARCROSS TRADING LTD T/A BEARS,id:13273894   ,1017.52
Department of Health,Guys and St Thomas NHS Foundation Trust,21/08/2020,(84400) Transport,(id:42579) Central Services,STARCROSS TRADING LTD T/A BEARS,id:13273492   ,1307.88
Department of Health,Guys and St Thomas NHS Foundation Trust,21/08/2020,(84400) Transport,(id:42579) Central Services,STARCROSS TRADING LTD T/A BEARS,id:13273487   ,2035.01
Department of Health,Guys and St Thomas NHS Foundation Trust,21/08/2020,(84400) Transport,(id:42579) Central Services,STARCROSS TRADING LTD T/A BEARS,id:13273539   ,2375.00
Department of Health,Guys and St Thomas NHS Foundation Trust,21/08/2020,(84400) Transport,(id:42579) Central Services,STARCROSS TRADING LTD T/A BEARS,id:13273478   ,3577.91
Department of Health,Guys and St Thomas NHS Foundation Trust,21/08/2020,(84400) Transport,(id:42579) Central Services,STARCROSS TRADING LTD T/A BEARS,id:13274034   ,3811.50
Department of Health,Guys and St Thomas NHS Foundation Trust,21/08/2020,(84400) Transport,(id:42579) Central Services,STARCROSS TRADING LTD T/A BEARS,id:13273974   ,4112.81
Department of Health,Guys and St Thomas NHS Foundation Trust,21/08/2020,(84400) Transport,(id:42579) Central Services,STARCROSS TRADING LTD T/A BEARS,id:13273489   ,4115.09
Department of Health,Guys and St Thomas NHS Foundation Trust,21/08/2020,(84400) Transport,(id:42579) Central Services,STARCROSS TRADING LTD T/A BEARS,id:13273451   ,5020.29
Department of Health,Guys and St Thomas NHS Foundation Trust,21/08/2020,(84200) Rental under Operating Lease,(id:42579) Central Services,OMD AUTOS LIMITED,id:13253714   ,2000.00
Department of Health,Guys and St Thomas NHS Foundation Trust,21/08/2020,(84200) Rental under Operating Lease,(id:42579) Central Services,LEASEPLAN UK LIMITED,id:13151554,2047.36
Department of Health,Guys and St Thomas NHS Foundation Trust,21/08/2020,(84200) Rental under Operating Lease,(id:42579) Central Services,LEASEPLAN UK LIMITED,id:12946934,3422.01
Department of Health,Guys and St Thomas NHS Foundation Trust,21/08/2020,(84200) Rental under Operating Lease,(id:42579) Central Services,LEASEPLAN UK LIMITED,id:13057399,3696.68
Department of Health,Guys and St Thomas NHS Foundation Trust,21/08/2020,(84200) Rental under Operating Lease,(id:42579) Central Services,LEASEPLAN UK LIMITED,id:13134216,    33675.45
Department of Health,Guys and St Thomas NHS Foundation Trust,21/08/2020,(84200) Rental under Operating Lease,(id:42579) Central Services,LEASEPLAN UK LIMITED,id:13006710,    37267.03
Department of Health,Guys and St Thomas NHS Foundation Trust,21/08/2020,(84200) Rental under Operating Lease,(id:42579) Central Services,LEASEPLAN UK LIMITED,id:13052660,    -1419.94
Department of Health,Guys and St Thomas NHS Foundation Trust,21/08/2020,(84200) Rental under Operating Lease,(id:42579) Central Services,LEASEPLAN UK LIMITED,id:12950064,   -64507.43
Department of Health,Guys and St Thomas NHS Foundation Trust,27/08/2020,(84000) Transport,(id:42579) Central Services,ALLSTAR BUSINESS SOLUTIONS LTD (ARVAL),id:13291974 ,    22510.91
Department of Health,Guys and St Thomas NHS Foundation Trust,21/08/2020,(84100) Transport,(id:42579) Central Services,OMD AUTOS LIMITED,id:13264074  , 905.00
Department of Health,Guys and St Thomas NHS Foundation Trust,21/08/2020,(84100) Transport,(id:42579) Central Services,OMD AUTOS LIMITED,id:13253715  ,1595.00
Department of Health,Guys and St Thomas NHS Foundation Trust,21/08/2020,(84100) Transport,(id:42579) Central Services,OMD AUTOS LIMITED,id:13253694  ,2063.00
Department of Health,Guys and St Thomas NHS Foundation Trust,14/08/2020,(83880) Building & Engineering,(id:42559) Central Services,WOODNUT CONSTRUCTION & DEVELOPMENT LTD,id:13249054   ,1272.00
Department of Health,Guys and St Thomas NHS Foundation Trust,07/08/2020,(82600) Uniforms & Clothing,(id:42535) Central Services,FOSTER REFRIDGERATOR UK LTD,id:13233994  , 504.00
Department of Health,Guys and St Thomas NHS Foundation Trust,21/08/2020,(55422) Ancillary Staff,(id:42524) Central Services,BLUE ARROW LIMITED,id:13279686, 568.68
Department of Health,Guys and St Thomas NHS Foundation Trust,21/08/2020,(82400) Contract Hotel Services,(id:42538) Central Services,ELIS UK LIMITED,id:13276994,1805.27
Department of Health,Guys and St Thomas NHS Foundation Trust,14/08/2020,(83400) Office Equipment,(id:4622428) Central Services,GRANTLEIGH LTD,id:13249794 ,2890.00
Department of Health,Guys and St Thomas NHS Foundation Trust,21/08/2020,(89120) Other - Legal fees,(id:42624) Asset Management,BEACHCROFT LLP OFFICE ACCOUNT,id:13282144 ,1306.00
Department of Health,Guys and St Thomas NHS Foundation Trust,14/08/2020,(84650) Establishment,(id:42603) Essentia Director,THE MANAGEMENT RECRUITMENT GROUP LTD,id:13250994   ,    12073.44
Department of Health,Guys and St Thomas NHS Foundation Trust,14/08/2020,(55082) Admin & Clerical,(id:42603) Essentia Director,VENN GROUP LTD,id:13257293  ,6122.27
Department of Health,Guys and St Thomas NHS Foundation Trust,21/08/2020,(83765) Rent,(id:492412) Essentia Community Services,NHS PROPERTY SERVICES,id:13273448 ,1677.83
Department of Health,Guys and St Thomas NHS Foundation Trust,21/08/2020,(84000) Transport,(id:492412) Essentia Community Services,ALLSTAR BUSINESS SOLUTIONS LTD (ARVAL),id:13280974    , 111.84
Department of Health,Guys and St Thomas NHS Foundation Trust,07/08/2020,(84000) Transport,(id:492412) Essentia Community Services,ALLSTAR BUSINESS SOLUTIONS LTD (ARVAL),id:13234217    ,  81.15
Department of Health,Guys and St Thomas NHS Foundation Trust,07/08/2020,(83110) Energy Costs,(id:1116424) Essentia Community Services,BRITISH GAS BUSINESS:70299300,id:13235755    ,-673.78
Department of Health,Guys and St Thomas NHS Foundation Trust,27/08/2020,(83110) Energy Costs,(id:1116419) Essentia Community Services,BRITISH GAS BUSINESS:70299300,id:13292674    ,1435.17
Department of Health,Guys and St Thomas NHS Foundation Trust,27/08/2020,(83110) Energy Costs,(id:1116419) Essentia Community Services,BRITISH GAS BUSINESS:70299300,id:13292716    ,1510.48
Department of Health,Guys and St Thomas NHS Foundation Trust,27/08/2020,(83110) Energy Costs,(id:1116419) Essentia Community Services,BRITISH GAS BUSINESS:70299300,id:13292640    ,1801.58
Department of Health,Guys and St Thomas NHS Foundation Trust,21/08/2020,(83343) Premises Services,(id:1116419) Essentia Community Services,BYWATERS (LEYTON) LTD,id:13274754  , 599.22
Department of Health,Guys and St Thomas NHS Foundation Trust,21/08/2020,(83755) Rental under Operating Lease,(id:1627432) Essentia Community Services,NHS PROPERTY SERVICES,id:13273354 ,1368.69
Department of Health,Guys and St Thomas NHS Foundation Trust,07/08/2020,(83110) Energy Costs,(id:1116429) Essentia Community Services,EDF ENERGY,id:13236454   ,2031.82
Department of Health,Guys and St Thomas NHS Foundation Trust,07/08/2020,(83110) Energy Costs,(id:1116428) Essentia Community Services,EDF ENERGY,id:13236514   ,2624.40
Department of Health,Guys and St Thomas NHS Foundation Trust,07/08/2020,(83110) Energy Costs,(id:676419) Essentia Community Services,BRITISH GAS BUSINESS:70299300,id:13232214,1119.99
Department of Health,Guys and St Thomas NHS Foundation Trust,07/08/2020,(83110) Energy Costs,(id:676419) Essentia Community Services,BRITISH GAS BUSINESS:70299300,id:13232216,1562.55
Department of Health,Guys and St Thomas NHS Foundation Trust,07/08/2020,(83210) Water & Sewerage,(id:676419) Essentia Community Services,CASTLE WATER LIMITED,id:13237742, 637.98
Department of Health,Guys and St Thomas NHS Foundation Trust,27/08/2020,(84000) Transport,(id:492613) Essentia Community Services,ALLSTAR BUSINESS SOLUTIONS LTD (ARVAL),id:13291394    ,  73.52
Department of Health,Guys and St Thomas NHS Foundation Trust,21/08/2020,(83400) Office Equipment,(id:492593) Essentia Community Services,NHS SUPPLY CHAIN (MAIDSTONE),id:13150574  , 116.03
Department of Health,Guys and St Thomas NHS Foundation Trust,07/08/2020,(84000) Transport,(id:492597) Essentia Community Services,ALLSTAR BUSINESS SOLUTIONS LTD (ARVAL),id:13234217    , 341.47
Department of Health,Guys and St Thomas NHS Foundation Trust,21/08/2020,(83400) Office Equipment,(id:492601) Essentia Community Services,SHRED-IT LTD,id:13281874   , 549.45
Department of Health,Guys and St Thomas NHS Foundation Trust,07/08/2020,(83880) Building & Engineering,(id:492601) Essentia Community Services,SIEMSATEC LIMITED,id:13198631  ,1785.15
Department of Health,Guys and St Thomas NHS Foundation Trust,07/08/2020,(83880) Building & Engineering,(id:492601) Essentia Community Services,M BATCHELOR SERVICES LTD,id:13214390,1543.00
Department of Health,Guys and St Thomas NHS Foundation Trust,07/08/2020,(83881) Building & Engineering,(id:492601) Essentia Community Services,WCS GROUP,id:13163544, 468.00
Department of Health,Guys and St Thomas NHS Foundation Trust,07/08/2020,(83881) Building & Engineering,(id:492601) Essentia Community Services,SIEMSATEC LIMITED,id:13193794  , 723.78
Department of Health,Guys and St Thomas NHS Foundation Trust,27/08/2020,(55622) Maintenance Staff,(id:492418) Essentia Community Services,MORGAN HUNT UK LTD,id:13292766 , 776.26
Department of Health,Guys and St Thomas NHS Foundation Trust,21/08/2020,(84000) Transport,(id:492418) Essentia Community Services,ALLSTAR BUSINESS SOLUTIONS LTD (ARVAL),id:13280974    , 469.45
Department of Health,Guys and St Thomas NHS Foundation Trust,21/08/2020,(84000) Transport,(id:492418) Essentia Community Services,ALLSTAR BUSINESS SOLUTIONS LTD (ARVAL),id:13272403    , 410.45
Department of Health,Guys and St Thomas NHS Foundation Trust,07/08/2020,(83880) Building & Engineering,(id:2528419) Essentia Community Services,REDLAND CONSTRUCTION LIMITED,id:13203414,1430.00
Department of Health,Guys and St Thomas NHS Foundation Trust,07/08/2020,(83343) Premises Services,(id:492421) Essentia Commercial,VEOLIA ES CLEANAWAY UK LTD,id:13229501 , 956.28
Department of Health,Guys and St Thomas NHS Foundation Trust,07/08/2020,(83110) Energy Costs,(id:1051419) Essentia Commercial,BRITISH GAS BUSINESS:70299300,id:13228937  , 936.79
Department of Health,Guys and St Thomas NHS Foundation Trust,27/08/2020,(83342) Premises Services,(id:1051419) Essentia Commercial,SRCL LTD,id:13292334   , 218.35
Department of Health,Guys and St Thomas NHS Foundation Trust,07/08/2020,(83110) Energy Costs,(id:492480) Essentia Commercial,BRITISH GAS BUSINESS:70299300,id:13237256   ,1389.55
Department of Health,Guys and St Thomas NHS Foundation Trust,14/08/2020,(83110) Energy Costs,(id:492478) Essentia Commercial,EDF ENERGY,id:13252444  ,2288.21
Department of Health,Guys and St Thomas NHS Foundation Trust,14/08/2020,(83110) Energy Costs,(id:492455) Essentia Commercial,BRITISH GAS BUSINESS:70299300,id:13247299   , 215.95
Department of Health,Guys and St Thomas NHS Foundation Trust,27/08/2020,(83342) Premises Services,(id:492504) Essentia Commercial,SRCL LTD,id:13292418    ,1618.88
Department of Health,Guys and St Thomas NHS Foundation Trust,07/08/2020,(83220) Water & Sewerage,(id:42626) Essentia Infrastructure,CASTLE WATER LIMITED,id:13237740,    12547.93
Department of Health,Guys and St Thomas NHS Foundation Trust,27/08/2020,(83120) Energy Costs,(id:42627) Essentia Infrastructure,TOTAL GAS & POWER LIMITED,id:13282148    ,    46290.26
Department of Health,Guys and St Thomas NHS Foundation Trust,14/08/2020,(83880) Building & Engineering,(id:4628419) Essentia Infrastructure,ACORN MECHANICAL PIPEWORK SERVICES LTD - ACORM MPS,id:13251134  , 749.39
Department of Health,Guys and St Thomas NHS Foundation Trust,27/08/2020,(83881) Building & Engineering,(id:2507419) Essentia Infrastructure,DRAX (UK) LTD,id:13285034    ,1788.03
Department of Health,Guys and St Thomas NHS Foundation Trust,14/08/2020,(83880) Building & Engineering,(id:1270419) Essentia Infrastructure,REXEL UK LTD,id:13251215, 424.35
Department of Health,Guys and St Thomas NHS Foundation Trust,27/08/2020,(83400) Office Equipment,(id:1270419) Essentia Infrastructure,EDMUNDSON ELECTRICAL LTD,id:13282954    ,3936.00
Department of Health,Guys and St Thomas NHS Foundation Trust,07/08/2020,(83881) Building & Engineering,(id:197407) Essentia Infrastructure,ROSTEK UK LTD,id:13214281, 695.50
Department of Health,Guys and St Thomas NHS Foundation Trust,07/08/2020,(83881) Building & Engineering,(id:197407) Essentia Infrastructure,DRAX (UK) LTD,id:13164515,7526.83
Department of Health,Guys and St Thomas NHS Foundation Trust,27/08/2020,(83880) Building & Engineering,(id:42634) Essentia Infrastructure,MAITLAND ENGINEERING LTD,id:13285954,1587.00
Department of Health,Guys and St Thomas NHS Foundation Trust,14/08/2020,(55652) Maintenance Staff,(id:42633) Essentia Infrastructure,VENN GROUP LTD,id:13257480,6239.11
Department of Health,Guys and St Thomas NHS Foundation Trust,14/08/2020,(83400) Office Equipment,(id:42631) Essentia Infrastructure,RICHMONDS OF LONDON LTD,id:13231079  , 720.72
Department of Health,Guys and St Thomas NHS Foundation Trust,14/08/2020,(83400) Office Equipment,(id:42631) Essentia Infrastructure,RICHMONDS OF LONDON LTD,id:13249194  , 743.82
Department of Health,Guys and St Thomas NHS Foundation Trust,21/08/2020,(83400) Office Equipment,(id:42631) Essentia Infrastructure,RICHMONDS OF LONDON LTD,id:13254134  , 778.80
Department of Health,Guys and St Thomas NHS Foundation Trust,21/08/2020,(83400) Office Equipment,(id:42631) Essentia Infrastructure,RICHMONDS OF LONDON LTD,id:13267636  , 743.82
Department of Health,Guys and St Thomas NHS Foundation Trust,27/08/2020,(83880) Building & Engineering,(id:42631) Essentia Infrastructure,SOCOTEC UK LTD,id:13245274, 670.00
Department of Health,Guys and St Thomas NHS Foundation Trust,21/08/2020,(83880) Building & Engineering,(id:42631) Essentia Infrastructure,BROWNINGS ELECTRIC CO LTD,id:13164561    ,2660.00
Department of Health,Guys and St Thomas NHS Foundation Trust,21/08/2020,(83881) Building & Engineering,(id:197406) Essentia Infrastructure,TESGL LTD,id:13221895    ,4265.50
Department of Health,Guys and St Thomas NHS Foundation Trust,07/08/2020,(83881) Building & Engineering,(id:197406) Essentia Infrastructure,OMEGA RED GROUP LTD,id:13195236    , 450.00
Department of Health,Guys and St Thomas NHS Foundation Trust,07/08/2020,(83881) Building & Engineering,(id:197405) Essentia Infrastructure,ABBEY LIFTCARE LTD,id:13188039,    10718.50
Department of Health,Guys and St Thomas NHS Foundation Trust,27/08/2020,(83880) Building & Engineering,(id:42643) Essentia Infrastructure,MASKOLD ENVIRONMENTAL LTD,id:13220539    , 596.00
Department of Health,Guys and St Thomas NHS Foundation Trust,21/08/2020,(83880) Building & Engineering,(id:42643) Essentia Infrastructure,MASKOLD ENVIRONMENTAL LTD,id:13198644    ,3577.00
Department of Health,Guys and St Thomas NHS Foundation Trust,07/08/2020,(83880) Building & Engineering,(id:42643) Essentia Infrastructure,MASKOLD ENVIRONMENTAL LTD,id:13187934    , 608.40
Department of Health,Guys and St Thomas NHS Foundation Trust,14/08/2020,(82600) Uniforms & Clothing,(id:42642) Essentia Infrastructure,OFFICE DEPOT UK LTD,id:13224715   ,  45.94
Department of Health,Guys and St Thomas NHS Foundation Trust,07/08/2020,(83880) Building & Engineering,(id:42642) Essentia Infrastructure,ARTIC BUILDING SERVICES LTD,id:13214347  ,3060.00
Department of Health,Guys and St Thomas NHS Foundation Trust,27/08/2020,(83400) Office Equipment,(id:42638) Essentia Infrastructure,RICHMONDS OF LONDON LTD,id:13274454  ,1632.49
Department of Health,Guys and St Thomas NHS Foundation Trust,14/08/2020,(83880) Building & Engineering,(id:42638) Essentia Infrastructure,STEVE MORGAN,id:13244854  ,1100.00
Department of Health,Guys and St Thomas NHS Foundation Trust,27/08/2020,(83880) Building & Engineering,(id:42638) Essentia Infrastructure,J C COMMISSIONING LTD CIS6,id:13286854   ,    10027.20
Department of Health,Guys and St Thomas NHS Foundation Trust,21/08/2020,(83880) Building & Engineering,(id:42638) Essentia Infrastructure,APPROVED AIR LTD,id:13262515   ,    25900.67
Department of Health,Guys and St Thomas NHS Foundation Trust,07/08/2020,(83880) Building & Engineering,(id:42638) Essentia Infrastructure,MASKOLD ENVIRONMENTAL LTD,id:13203134    ,3859.00
Department of Health,Guys and St Thomas NHS Foundation Trust,07/08/2020,(83880) Building & Engineering,(id:42638) Essentia Infrastructure,STEVE MORGAN,id:13228775  ,4150.00
Department of Health,Guys and St Thomas NHS Foundation Trust,07/08/2020,(55652) Maintenance Staff,(id:42637) Essentia Infrastructure,MMP CONSULTANCY LTD,id:13236018,1052.10
Department of Health,Guys and St Thomas NHS Foundation Trust,14/08/2020,(55652) Maintenance Staff,(id:42637) Essentia Infrastructure,MMP CONSULTANCY LTD,id:13257511,1052.10
Department of Health,Guys and St Thomas NHS Foundation Trust,14/08/2020,(55652) Maintenance Staff,(id:42637) Essentia Infrastructure,MORGAN HUNT UK LTD,id:13257377 ,1096.30
Department of Health,Guys and St Thomas NHS Foundation Trust,27/08/2020,(55652) Maintenance Staff,(id:42637) Essentia Infrastructure,MORGAN HUNT UK LTD,id:13292774 , 789.98
Department of Health,Guys and St Thomas NHS Foundation Trust,14/08/2020,(55652) Maintenance Staff,(id:42637) Essentia Infrastructure,MORGAN HUNT UK LTD,id:13257379 ,1880.06
Department of Health,Guys and St Thomas NHS Foundation Trust,21/08/2020,(55652) Maintenance Staff,(id:42637) Essentia Infrastructure,MORGAN HUNT UK LTD,id:13282169 ,1209.16
Department of Health,Guys and St Thomas NHS Foundation Trust,14/08/2020,(55642) Maintenance Staff,(id:42637) Essentia Infrastructure,MORGAN HUNT UK LTD,id:13257419 , 579.96
Department of Health,Guys and St Thomas NHS Foundation Trust,21/08/2020,(83400) Office Equipment,(id:373411) Guys Site services,BURLODGE LTD,id:13164737  ,6274.54
Department of Health,Guys and St Thomas NHS Foundation Trust,14/08/2020,(83880) Building & Engineering,(id:4624420) Guys Site services,CITY & KENT CLEANING LTD,id:13161716   ,1419.00
Department of Health,Guys and St Thomas NHS Foundation Trust,07/08/2020,(83400) Office Equipment,(id:42662) Guys Site services,MATRIX A I LTD,id:13211559 ,1490.40
Department of Health,Guys and St Thomas NHS Foundation Trust,21/08/2020,(84500) Establishment,(id:42545) Guys Site services,OFFICE DEPOT UK LTD,id:13227817    ,1620.00
Department of Health,Guys and St Thomas NHS Foundation Trust,21/08/2020,(83880) Building & Engineering,(id:3021419) Guys Site services,PRO LANDSCAPES MDX LTD,id:13280774,2414.00
Department of Health,Guys and St Thomas NHS Foundation Trust,21/08/2020,(81400) Medical Surgical Supplies & Equipment,(id:42585) STH Site Services,SHEPHERD HOSPITAL EQUIPMENT LTD.,id:13261097   , 651.95
Department of Health,Guys and St Thomas NHS Foundation Trust,14/08/2020,(83880) Building & Engineering,(id:199405) STH Site Services,QUALITY & SERVICE LTD (Q&S),id:13140618  ,4304.58
Department of Health,Guys and St Thomas NHS Foundation Trust,14/08/2020,(83880) Building & Engineering,(id:42664) STH Site Services,SENATOR DEVELOPMENTS RETAIL LTD (T/A TOOL SHOP),id:12830908   ,2344.20
Department of Health,Guys and St Thomas NHS Foundation Trust,14/08/2020,(83880) Building & Engineering,(id:42664) STH Site Services,GRANTLEIGH LTD,id:13249694 ,4500.00
Department of Health,Guys and St Thomas NHS Foundation Trust,14/08/2020,(83400) Office Equipment,(id:4625419) STH Site Services,CITY & KENT CLEANING LTD,id:13241699,3402.72
Department of Health,Guys and St Thomas NHS Foundation Trust,07/08/2020,(83400) Office Equipment,(id:4625419) STH Site Services,CITY & KENT CLEANING LTD,id:13223720,2660.00
Department of Health,Guys and St Thomas NHS Foundation Trust,21/08/2020,(83400) Office Equipment,(id:4625419) STH Site Services,CITY & KENT CLEANING LTD,id:13266174,1392.00
Department of Health,Guys and St Thomas NHS Foundation Trust,21/08/2020,(83400) Office Equipment,(id:4625419) STH Site Services,CITY & KENT CLEANING LTD,id:13265994,2401.92
Department of Health,Guys and St Thomas NHS Foundation Trust,14/08/2020,(83400) Office Equipment,(id:42548) STH Site Services,OFFICE DEPOT UK LTD,id:13224481  ,2835.00
Department of Health,Guys and St Thomas NHS Foundation Trust,14/08/2020,(83400) Office Equipment,(id:42548) STH Site Services,OFFICE DEPOT UK LTD,id:13224590  ,2835.00
Department of Health,Guys and St Thomas NHS Foundation Trust,14/08/2020,(83400) Office Equipment,(id:42548) STH Site Services,OFFICE DEPOT UK LTD,id:13224490  ,2835.00
Department of Health,Guys and St Thomas NHS Foundation Trust,07/08/2020,(83400) Office Equipment,(id:42548) STH Site Services,OFFICE DEPOT UK LTD,id:13135444  ,1190.88
Department of Health,Guys and St Thomas NHS Foundation Trust,07/08/2020,(83400) Office Equipment,(id:42548) STH Site Services,CITY & KENT CLEANING LTD,id:13223694  ,9757.80
Department of Health,Guys and St Thomas NHS Foundation Trust,21/08/2020,(83400) Office Equipment,(id:42548) STH Site Services,CITY & KENT CLEANING LTD,id:13266277  ,6285.60
Department of Health,Guys and St Thomas NHS Foundation Trust,21/08/2020,(83400) Office Equipment,(id:42599) Sterile Services,NHS SUPPLY CHAIN (MAIDSTONE),id:13150574    , 104.33
Department of Health,Guys and St Thomas NHS Foundation Trust,21/08/2020,(81100) Dressings,(id:42599) Sterile Services,NHS SUPPLY CHAIN (MAIDSTONE),id:13150574 ,1811.49
Department of Health,Guys and St Thomas NHS Foundation Trust,21/08/2020,(81100) Dressings,(id:42599) Sterile Services,ELIS UK LIMITED,id:13269856    , 722.80
Department of Health,Guys and St Thomas NHS Foundation Trust,07/08/2020,(81100) Dressings,(id:42599) Sterile Services,ELIS UK LIMITED,id:13216314    , 523.40
Department of Health,Guys and St Thomas NHS Foundation Trust,07/08/2020,(81100) Dressings,(id:42599) Sterile Services,ELIS UK LIMITED,id:13220438    , 707.92
Department of Health,Guys and St Thomas NHS Foundation Trust,07/08/2020,(81100) Dressings,(id:42599) Sterile Services,HEALTH EDGE SOLUTIONS LTD,id:13197559    ,1039.80
Department of Health,Guys and St Thomas NHS Foundation Trust,07/08/2020,(84500) Establishment,(id:42599) Sterile Services,KINGFISHER LABELS LTD,id:13221513    ,1450.42
Department of Health,Guys and St Thomas NHS Foundation Trust,21/08/2020,(81200) Medical Surgical Supplies & Equipment,(id:42599) Sterile Services,FELCON LTD,id:13255314 ,1332.00
Department of Health,Guys and St Thomas NHS Foundation Trust,27/08/2020,(81275) Medical Surgical Supplies & Equipment,(id:42599) Sterile Services,BAG OF SALT LTD,id:13282474 , 952.80
Department of Health,Guys and St Thomas NHS Foundation Trust,21/08/2020,(82000) Provisions & Kitchens,(id:42599) Sterile Services,NHS SUPPLY CHAIN (MAIDSTONE),id:13150574    ,  15.86
Department of Health,Guys and St Thomas NHS Foundation Trust,07/08/2020,(83400) Office Equipment,(id:42540) Security & Waste Services,LAZERBEAM FIRE AND SECURITY LTD,id:13218054  ,1676.00
Department of Health,Guys and St Thomas NHS Foundation Trust,07/08/2020,(83400) Office Equipment,(id:42540) Security & Waste Services,LAZERBEAM FIRE AND SECURITY LTD,id:13218434  ,2250.00
Department of Health,Guys and St Thomas NHS Foundation Trust,07/08/2020,(83400) Office Equipment,(id:42540) Security & Waste Services,CORPS SECURITY,id:13234304    ,    19804.56
Department of Health,Guys and St Thomas NHS Foundation Trust,21/08/2020,(84550) Establishment,(id:42540) Security & Waste Services,AUDIOLINK LTD,id:13261035   , 820.56
Department of Health,Guys and St Thomas NHS Foundation Trust,14/08/2020,(55062) Admin & Clerical,(id:42709) Finance Director,VENN GROUP LTD,id:13257541   ,4620.72
Department of Health,Guys and St Thomas NHS Foundation Trust,14/08/2020,(84400) Transport,(id:4269419) Finance Director,CEVA LOGISTICS LIMITED,id:13254961,    45000.00
Department of Health,Guys and St Thomas NHS Foundation Trust,14/08/2020,(84400) Transport,(id:4269419) Finance Director,CEVA LOGISTICS LIMITED,id:13254955,    75242.00
Department of Health,Guys and St Thomas NHS Foundation Trust,07/08/2020,(55422) Ancillary Staff,(id:177407) Finance Director,REED EMPLOYMENT PLC,id:13236177   , 853.80
Department of Health,Guys and St Thomas NHS Foundation Trust,14/08/2020,(55422) Ancillary Staff,(id:177407) Finance Director,REED EMPLOYMENT PLC,id:13257387   , 853.80
Department of Health,Guys and St Thomas NHS Foundation Trust,14/08/2020,(55422) Ancillary Staff,(id:177407) Finance Director,REED EMPLOYMENT PLC,id:13257304   , 716.40
Department of Health,Guys and St Thomas NHS Foundation Trust,21/08/2020,(55422) Ancillary Staff,(id:177407) Finance Director,REED EMPLOYMENT PLC,id:13279770   , 853.80
Department of Health,Guys and St Thomas NHS Foundation Trust,21/08/2020,(83400) Office Equipment,(id:177407) Finance Director,LAZERBEAM FIRE AND SECURITY LTD,id:13263974, 620.00
Department of Health,Guys and St Thomas NHS Foundation Trust,07/08/2020,(88720) Other – Other Operating Expenditure,(id:40456) Finance Director,EDWARDS LIFESCIENCES LTD,id:13147278   ,  -6.30
Department of Health,Guys and St Thomas NHS Foundation Trust,07/08/2020,(88720) Other – Other Operating Expenditure,(id:40456) Finance Director,EDWARDS LIFESCIENCES LTD,id:13193855   , -14.40
Department of Health,Guys and St Thomas NHS Foundation Trust,07/08/2020,(88720) Other – Other Operating Expenditure,(id:40456) Finance Director,EDWARDS LIFESCIENCES LTD,id:13178854   , -34.20
Department of Health,Guys and St Thomas NHS Foundation Trust,07/08/2020,(88720) Other – Other Operating Expenditure,(id:40456) Finance Director,EDWARDS LIFESCIENCES LTD,id:13197978   , -34.20
Department of Health,Guys and St Thomas NHS Foundation Trust,07/08/2020,(88720) Other – Other Operating Expenditure,(id:40456) Finance Director,EDWARDS LIFESCIENCES LTD,id:13214695   , -35.04
Department of Health,Guys and St Thomas NHS Foundation Trust,07/08/2020,(88720) Other – Other Operating Expenditure,(id:40456) Finance Director,EDWARDS LIFESCIENCES LTD,id:13229843   , -56.40
Department of Health,Guys and St Thomas NHS Foundation Trust,07/08/2020,(88720) Other – Other Operating Expenditure,(id:40456) Finance Director,EDWARDS LIFESCIENCES LTD,id:13202374   ,-255.30
Department of Health,Guys and St Thomas NHS Foundation Trust,07/08/2020,(88720) Other – Other Operating Expenditure,(id:40456) Finance Director,EDWARDS LIFESCIENCES LTD,id:13202674   ,-255.30
Department of Health,Guys and St Thomas NHS Foundation Trust,27/08/2020,(88720) Other – Other Operating Expenditure,(id:40456) Finance Director,EDWARDS LIFESCIENCES LTD,id:13281695   ,  -5.91
Department of Health,Guys and St Thomas NHS Foundation Trust,27/08/2020,(88720) Other – Other Operating Expenditure,(id:40456) Finance Director,EDWARDS LIFESCIENCES LTD,id:13242254   , -11.04
Department of Health,Guys and St Thomas NHS Foundation Trust,27/08/2020,(88720) Other – Other Operating Expenditure,(id:40456) Finance Director,EDWARDS LIFESCIENCES LTD,id:13242034   , -28.80
Department of Health,Guys and St Thomas NHS Foundation Trust,27/08/2020,(88720) Other – Other Operating Expenditure,(id:40456) Finance Director,EDWARDS LIFESCIENCES LTD,id:13242314   , -34.20
Department of Health,Guys and St Thomas NHS Foundation Trust,27/08/2020,(88720) Other – Other Operating Expenditure,(id:40456) Finance Director,EDWARDS LIFESCIENCES LTD,id:13288495   , -34.20
Department of Health,Guys and St Thomas NHS Foundation Trust,27/08/2020,(88720) Other – Other Operating Expenditure,(id:40456) Finance Director,EDWARDS LIFESCIENCES LTD,id:13262506   ,-255.30
Department of Health,Guys and St Thomas NHS Foundation Trust,14/08/2020,(55072) Admin & Clerical,(id:42698) Finance Director,ALLEN LANE,id:13260622  ,1074.89
Department of Health,Guys and St Thomas NHS Foundation Trust,21/08/2020,(89270) Establishment,(id:42726) Human Resources,CIVICA UK LTD,id:13231134   ,6139.00
Department of Health,Guys and St Thomas NHS Foundation Trust,07/08/2020,(89270) Establishment,(id:42720) Human Resources,EE LIMITED,id:13229998 ,2533.48
Department of Health,Guys and St Thomas NHS Foundation Trust,07/08/2020,(50562) Qualified Nursing Staff,(id:42766) Occupational Health,OH MEDICAL RECRUITMENT,id:13236072,1665.00
Department of Health,Guys and St Thomas NHS Foundation Trust,14/08/2020,(89120) Other - Legal fees,(id:42757) Quality and Assurance,HILL DICKINSON LLP,id:13255523  ,1093.05
Department of Health,Guys and St Thomas NHS Foundation Trust,14/08/2020,(81700) Lab Equipment Purchase,(id:801419) R&D : NIHR,THERMO FISHER SCIENTIFIC,id:13255735  , 517.92
Department of Health,Guys and St Thomas NHS Foundation Trust,21/08/2020,(81275) Medical Surgical Supplies & Equipment,(id:803458) R&D : NIHR,MILTENYI BIOTEC LTD,id:13262495  ,1224.00
Department of Health,Guys and St Thomas NHS Foundation Trust,14/08/2020,(83400) Office Equipment,(id:803458) R&D : NIHR,AQUILANT DISTRIBUTION,id:13233394 , 929.12
Department of Health,Guys and St Thomas NHS Foundation Trust,07/08/2020,(81200) Medical Surgical Supplies & Equipment,(id:803458) R&D : NIHR,MILTENYI BIOTEC LTD,id:13197954  ,  18.00
Department of Health,Guys and St Thomas NHS Foundation Trust,21/08/2020,(83400) Office Equipment,(id:803491) R&D : NIHR,NHS SUPPLY CHAIN (MAIDSTONE),id:13162263    ,  46.43
Department of Health,Guys and St Thomas NHS Foundation Trust,21/08/2020,(82800) Bedding & Linen,(id:803490) R&D : NIHR,NHS SUPPLY CHAIN (MAIDSTONE),id:13162263,  46.82
Department of Health,Guys and St Thomas NHS Foundation Trust,07/08/2020,(89595) Non-Healthcare from Foundation Trusts,(id:42795) R&D : NIHR,KING'S COLLEGE HOSPITAL NHS FOUNDATION TRUST,id:9588551    ,    10832.68
Department of Health,Guys and St Thomas NHS Foundation Trust,27/08/2020,(83610) IT Costs,(id:42416) Coronavirus [FCOVID],SCC PLC)SPECIALIST COMPUTER CENTRES,id:13281796 , 675.84
Department of Health,Guys and St Thomas NHS Foundation Trust,27/08/2020,(82600) Uniforms & Clothing,(id:42416) Coronavirus [FCOVID],FULL SUPPORT HEALTHCARE LTD,id:13277394   ,7676.00
Department of Health,Guys and St Thomas NHS Foundation Trust,07/08/2020,(82600) Uniforms & Clothing,(id:42416) Coronavirus [FCOVID],FULL SUPPORT HEALTHCARE LTD,id:13235695   ,    18800.00
Department of Health,Guys and St Thomas NHS Foundation Trust,14/08/2020,(82800) Bedding & Linen,(id:42416) Coronavirus [FCOVID],PROFESSIONAL DISPOSABLES INTERNATIONAL LIMITED,id:13143184   ,3217.15
Department of Health,Guys and St Thomas NHS Foundation Trust,14/08/2020,(81200) Medical Surgical Supplies & Equipment,(id:42416) Coronavirus [FCOVID],AVENSYS UK LTD,id:13248403   ,4710.00
Department of Health,Guys and St Thomas NHS Foundation Trust,14/08/2020,(81200) Medical Surgical Supplies & Equipment,(id:42416) Coronavirus [FCOVID],BOC LTD :02107500,id:13241414,    24921.60
Department of Health,Guys and St Thomas NHS Foundation Trust,07/08/2020,(81200) Medical Surgical Supplies & Equipment,(id:42416) Coronavirus [FCOVID],ARJO UK LIMITED,id:13220794  ,    12441.60
Department of Health,Guys and St Thomas NHS Foundation Trust,14/08/2020,(83610) IT Costs,(id:42682) Inpatient Services,CCS MEDIA LTD,id:13248417,1263.60
Department of Health,Guys and St Thomas NHS Foundation Trust,21/08/2020,(82800) Bedding & Linen,(id:41966) Inpatient Services,NHS SUPPLY CHAIN (MAIDSTONE),id:13162263   ,  60.26
Department of Health,Guys and St Thomas NHS Foundation Trust,07/08/2020,(89120) Other - Legal fees,(id:787421) Chief Operating Officer,BEACHCROFT LLP OFFICE ACCOUNT,id:12758924   , 468.00
Department of Health,Guys and St Thomas NHS Foundation Trust,07/08/2020,(82600) Uniforms & Clothing,(id:41940) Chief Operating Officer,ARCO LTD,id:13217634    , 605.28
Department of Health,Guys and St Thomas NHS Foundation Trust,27/08/2020,(89120) Other - Legal fees,(id:345409) Commercial,WOODBURY HODGE LTD,id:13295454  ,1000.00
Department of Health,Guys and St Thomas NHS Foundation Trust,21/08/2020,(89270) Establishment,(id:42948) Commercial,VIAPATH ANALYTICS LLP,id:13254855,    10604.18
Department of Health,Guys and St Thomas NHS Foundation Trust,21/08/2020,(83400) Office Equipment,(id:42935) Commercial,NHS SUPPLY CHAIN (MAIDSTONE),id:13150574,   4.48
Department of Health,Guys and St Thomas NHS Foundation Trust,21/08/2020,(81100) Dressings,(id:42935) Commercial,NHS SUPPLY CHAIN (MAIDSTONE),id:13150574  , 244.82
Department of Health,Guys and St Thomas NHS Foundation Trust,21/08/2020,(81100) Dressings,(id:42938) Commercial,NHS SUPPLY CHAIN (MAIDSTONE),id:13162263  ,   8.55
Department of Health,Guys and St Thomas NHS Foundation Trust,21/08/2020,(84550) Establishment,(id:42919) Commercial,IOTEC CONSULTING,id:13269759,6748.25
Department of Health,Guys and St Thomas NHS Foundation Trust,14/08/2020,(83110) Energy Costs,(id:42919) Commercial,MINISTRY OF DEFENCE,id:13255601   ,2525.53
Department of Health,Guys and St Thomas NHS Foundation Trust,21/08/2020,(83640) IT Costs,(id:42919) Commercial,IQVIA,id:13266014 ,7752.00
Department of Health,Guys and St Thomas NHS Foundation Trust,07/08/2020,(89270) Establishment,(id:42919) Commercial,TWG CONSULTING LIMITED,id:13227599    ,4400.00
Department of Health,Guys and St Thomas NHS Foundation Trust,14/08/2020,(84655) Establishment,(id:42919) Commercial,K INTERNATIONAL PLC,id:13227598  ,3897.08
Department of Health,Guys and St Thomas NHS Foundation Trust,23/08/2020,(89510) Other – Other Operating Expenditure,(id:42918) Commercial,ST VINCENZ HOSP PADERBORN,id:13281739   ,6901.21
Department of Health,Guys and St Thomas NHS Foundation Trust,17/08/2020,(89510) Other – Other Operating Expenditure,(id:42918) Commercial,EVKB (GILEAD) EVANGELISCHES KRANKENHAUS BIELEFELD GMBH,id:13265511    , 792.69
Department of Health,Guys and St Thomas NHS Foundation Trust,04/08/2020,(89510) Other – Other Operating Expenditure,(id:42918) Commercial,EVKB (GILEAD) EVANGELISCHES KRANKENHAUS BIELEFELD GMBH,id:13229167    , 792.69
Department of Health,Guys and St Thomas NHS Foundation Trust,04/08/2020,(89510) Other – Other Operating Expenditure,(id:42918) Commercial,EVKB (GILEAD) EVANGELISCHES KRANKENHAUS BIELEFELD GMBH,id:13229169    ,2453.66
Department of Health,Guys and St Thomas NHS Foundation Trust,14/08/2020,(89570) Other – Other Operating Expenditure,(id:42913) Commercial,SYMBIOSIS IP LTD,id:13233734  ,1187.50
Department of Health,Guys and St Thomas NHS Foundation Trust,07/08/2020,(10035) Fixed Asset Clearing,(id:4749419) TRUST Capital Cost Centres,PHILIPS HEALTHCARE,id:13221654   ,   132000.00
Department of Health,Guys and St Thomas NHS Foundation Trust,21/08/2020,(10090) Fixed Asset Clearing,(id:3990427) TRUST Capital Cost Centres,COOK BROWN BUILDING CONTROL LTD,id:13272134, 540.00
Department of Health,Guys and St Thomas NHS Foundation Trust,07/08/2020,(10090) Fixed Asset Clearing,(id:3990427) TRUST Capital Cost Centres,ESSENTIA TRADING LIMITED,id:13105203  ,5497.34
Department of Health,Guys and St Thomas NHS Foundation Trust,14/08/2020,(10090) Fixed Asset Clearing,(id:4091419) TRUST Capital Cost Centres,CURRIE & BROWN LTD,id:13231094   , 528.00
Department of Health,Guys and St Thomas NHS Foundation Trust,27/08/2020,(10090) Fixed Asset Clearing,(id:3725419) TRUST Capital Cost Centres,AHR ARCHITECTS LIMITED,id:13284834    ,    39146.00
Department of Health,Guys and St Thomas NHS Foundation Trust,27/08/2020,(10030) Fixed Asset Clearing,(id:3725419) TRUST Capital Cost Centres,SOFTCAT LTD,id:13262054,    33862.19
Department of Health,Guys and St Thomas NHS Foundation Trust,14/08/2020,(10025) Fixed Asset Clearing,(id:3758419) TRUST Capital Cost Centres,PARTNERING REGENERATION DEVELOPMENT LTD,id:13248894  ,    16250.00
Department of Health,Guys and St Thomas NHS Foundation Trust,21/08/2020,(10025) Fixed Asset Clearing,(id:3758419) TRUST Capital Cost Centres,ESSENTIA TRADING LIMITED,id:13270375  ,4457.00
Department of Health,Guys and St Thomas NHS Foundation Trust,07/08/2020,(10090) Fixed Asset Clearing,(id:3751419) TRUST Capital Cost Centres,PLAYFORDS LIMITED,id:13130875    ,5773.00
Department of Health,Guys and St Thomas NHS Foundation Trust,21/08/2020,(10090) Fixed Asset Clearing,(id:3751419) TRUST Capital Cost Centres,CFES LIMITED,id:13260815    ,6250.00
Department of Health,Guys and St Thomas NHS Foundation Trust,14/08/2020,(10090) Fixed Asset Clearing,(id:3751419) TRUST Capital Cost Centres,ARCHITECTS DESIGN PARTNERSHIP LLP,id:13248135   , 592.50
Department of Health,Guys and St Thomas NHS Foundation Trust,27/08/2020,(10020) Fixed Asset Clearing,(id:3750419) TRUST Capital Cost Centres,MOTT MACDONALD LTD,id:13286195   ,    21778.32
Department of Health,Guys and St Thomas NHS Foundation Trust,07/08/2020,(10090) Fixed Asset Clearing,(id:3259419) TRUST Capital Cost Centres,OCURA HEALTHCARE FURNITURE,id:13220715, 519.12
Department of Health,Guys and St Thomas NHS Foundation Trust,07/08/2020,(10030) Fixed Asset Clearing,(id:3083419) TRUST Capital Cost Centres,TAURUS MEDICAL SOLUTIONS,id:13202294  ,9260.16
Department of Health,Guys and St Thomas NHS Foundation Trust,07/08/2020,(10090) Fixed Asset Clearing,(id:1564420) TRUST Capital Cost Centres,ESSENTIA TRADING LIMITED,id:13049321  ,    22558.33
Department of Health,Guys and St Thomas NHS Foundation Trust,07/08/2020,(10020) Fixed Asset Clearing,(id:1564420) TRUST Capital Cost Centres,BEACHCROFT LLP OFFICE ACCOUNT,id:13139957  ,6680.60
Department of Health,Guys and St Thomas NHS Foundation Trust,21/08/2020,(10010) Fixed Asset Clearing,(id:43512) TRUST Capital Cost Centres,MMP CONSULTANCY LTD,id:13279804    ,1872.46
Department of Health,Guys and St Thomas NHS Foundation Trust,27/08/2020,(10090) Fixed Asset Clearing,(id:3856419) TRUST Capital Cost Centres,DUCTCLEAN UK LTD,id:13254475,1260.00
Department of Health,Guys and St Thomas NHS Foundation Trust,27/08/2020,(10090) Fixed Asset Clearing,(id:2217426) TRUST Capital Cost Centres,PEREGA LIMITED (THOMASONS LTD),id:13286231 ,1540.00
Department of Health,Guys and St Thomas NHS Foundation Trust,07/08/2020,(10090) Fixed Asset Clearing,(id:4630419) TRUST Capital Cost Centres,3CRISK LTD,id:13202736 , 500.00
Department of Health,Guys and St Thomas NHS Foundation Trust,27/08/2020,(10090) Fixed Asset Clearing,(id:4630419) TRUST Capital Cost Centres,DUCTCLEAN UK LTD,id:13293018,    12760.00
Department of Health,Guys and St Thomas NHS Foundation Trust,14/08/2020,(10090) Fixed Asset Clearing,(id:4741419) TRUST Capital Cost Centres,TRENT ARCHITECTURE + DESIGN LTD T/A T.A.D. ARCHITECTS,id:13253014   ,    47687.00
Department of Health,Guys and St Thomas NHS Foundation Trust,07/08/2020,(10090) Fixed Asset Clearing,(id:4707419) TRUST Capital Cost Centres,LSI ARCHITECTS LLP,id:13225734   ,    -5964.00
Department of Health,Guys and St Thomas NHS Foundation Trust,27/08/2020,(10025) Fixed Asset Clearing,(id:4498419) TRUST Capital Cost Centres,ADDLESHAW GODDARD LLP,id:13294157,    35092.05
Department of Health,Guys and St Thomas NHS Foundation Trust,07/08/2020,(10090) Fixed Asset Clearing,(id:4283419) TRUST Capital Cost Centres,ESSENTIA TRADING LIMITED,id:13128634  ,4444.33
Department of Health,Guys and St Thomas NHS Foundation Trust,21/08/2020,(10020) Fixed Asset Clearing,(id:2539419) TRUST Capital Cost Centres,ESSENTIA TRADING LIMITED,id:13270516  ,8149.83
Department of Health,Guys and St Thomas NHS Foundation Trust,07/08/2020,(10090) Fixed Asset Clearing,(id:246417) TRUST Capital Cost Centres,AYERST ENVIRONMENTAL LTD,id:13189488   ,3888.00
Department of Health,Guys and St Thomas NHS Foundation Trust,07/08/2020,(10090) Fixed Asset Clearing,(id:4433425) TRUST Capital Cost Centres,OCTAGON MAINTENANCE & SHOPFITTING LTD,id:13200494    ,    35387.35
Department of Health,Guys and St Thomas NHS Foundation Trust,07/08/2020,(10090) Fixed Asset Clearing,(id:2514419) TRUST Capital Cost Centres,TESGL LTD,id:13206124  ,1369.04
Department of Health,Guys and St Thomas NHS Foundation Trust,07/08/2020,(10090) Fixed Asset Clearing,(id:2104419) TRUST Capital Cost Centres,PHOENIX GREEN UK LIMITED,id:13191534  , 813.42
Department of Health,Guys and St Thomas NHS Foundation Trust,07/08/2020,(10090) Fixed Asset Clearing,(id:2104419) TRUST Capital Cost Centres,PHOENIX GREEN UK LIMITED,id:13191514  ,    33653.83
Department of Health,Guys and St Thomas NHS Foundation Trust,14/08/2020,(10090) Fixed Asset Clearing,(id:2104419) TRUST Capital Cost Centres,TANGENT ELECTRICAL LTD,id:13229913    ,1419.50
Department of Health,Guys and St Thomas NHS Foundation Trust,27/08/2020,(10010) Fixed Asset Clearing,(id:320454) TRUST Capital Cost Centres,HAYS ACCOUNTANCY PERSONNEL,id:13292856 ,1383.65
Department of Health,Guys and St Thomas NHS Foundation Trust,27/08/2020,(10010) Fixed Asset Clearing,(id:320454) TRUST Capital Cost Centres,HAYS ACCOUNTANCY PERSONNEL,id:13292735 ,1461.60
Department of Health,Guys and St Thomas NHS Foundation Trust,21/08/2020,(10030) Fixed Asset Clearing,(id:2039419) TRUST Capital Cost Centres,ANS GROUP PLC,id:13256254   ,7250.00
Department of Health,Guys and St Thomas NHS Foundation Trust,07/08/2020,(10090) Fixed Asset Clearing,(id:3256419) TRUST Capital Cost Centres,BLOCK SOLUTIONS LIMITED,id:13069563   ,6750.00
Department of Health,Guys and St Thomas NHS Foundation Trust,07/08/2020,(10035) Fixed Asset Clearing,(id:4610420) TRUST Capital Cost Centres,ULTRAMEDIC LTD,id:13226234  ,    29724.00
Department of Health,Guys and St Thomas NHS Foundation Trust,14/08/2020,(10035) Fixed Asset Clearing,(id:4610420) TRUST Capital Cost Centres,BECTON DICKINSON UK LTD,id:13244754   ,9648.00
Department of Health,Guys and St Thomas NHS Foundation Trust,21/08/2020,(10090) Fixed Asset Clearing,(id:4610419) TRUST Capital Cost Centres,LAST CONTRACTING LTD,id:13260755 , 894.24
Department of Health,Guys and St Thomas NHS Foundation Trust,21/08/2020,(10035) Fixed Asset Clearing,(id:4610419) TRUST Capital Cost Centres,ULTRAMEDIC LTD,id:13248094  ,    14862.00
Department of Health,Guys and St Thomas NHS Foundation Trust,07/08/2020,(10035) Fixed Asset Clearing,(id:4610419) TRUST Capital Cost Centres,ULTRAMEDIC LTD,id:13189795  ,    14886.00
Department of Health,Guys and St Thomas NHS Foundation Trust,21/08/2020,(24780) Loans and receivables - current,(id:40092) TRUST Balance Sheet Codes,SME HCI LIMITED,id:13272898   , 531.00
Department of Health,Guys and St Thomas NHS Foundation Trust,21/08/2020,(24780) Loans and receivables - current,(id:40092) TRUST Balance Sheet Codes,SME HCI LIMITED,id:13272895   ,    56720.54
Department of Health,Guys and St Thomas NHS Foundation Trust,17/08/2020,(31981) Other trade payables < 1 Yr,(id:40092) TRUST Balance Sheet Codes,PRICEWATERHOUSECOOPERS LLP,id:13267854 ,   -17417.74
Department of Health,Guys and St Thomas NHS Foundation Trust,25/08/2020,(31981) Other trade payables < 1 Yr,(id:40092) TRUST Balance Sheet Codes,PRICEWATERHOUSECOOPERS LLP,id:13288926 ,   -19136.91
Department of Health,Guys and St Thomas NHS Foundation Trust,07/08/2020,(21130) Inventories - Finished goods,(id:40092) TRUST Balance Sheet Codes,MAWDSLEY BROOKS LTD,id:13213132  , 598.66
Department of Health,Guys and St Thomas NHS Foundation Trust,07/08/2020,(21130) Inventories - Finished goods,(id:40092) TRUST Balance Sheet Codes,ALLERGY THERAPEUTICS LTD,id:13237820  , 628.34
Department of Health,Guys and St Thomas NHS Foundation Trust,07/08/2020,(21130) Inventories - Finished goods,(id:40092) TRUST Balance Sheet Codes,AAH PHARMACEUTICALS LTD,id:13230742   ,1005.24
Department of Health,Guys and St Thomas NHS Foundation Trust,07/08/2020,(21130) Inventories - Finished goods,(id:40092) TRUST Balance Sheet Codes,MAWDSLEY BROOKS LTD,id:13228389  , 957.96
Department of Health,Guys and St Thomas NHS Foundation Trust,07/08/2020,(21130) Inventories - Finished goods,(id:40092) TRUST Balance Sheet Codes,DRUGSRUS LIMITED,id:13237823, 517.20
Department of Health,Guys and St Thomas NHS Foundation Trust,14/08/2020,(21130) Inventories - Finished goods,(id:40092) TRUST Balance Sheet Codes,ADELPHI (TUBES) LTD,id:13053140  ,1275.60
Department of Health,Guys and St Thomas NHS Foundation Trust,14/08/2020,(21130) Inventories - Finished goods,(id:40092) TRUST Balance Sheet Codes,AAH PHARMACEUTICALS LTD,id:13251493   ,3976.99
Department of Health,Guys and St Thomas NHS Foundation Trust,14/08/2020,(21130) Inventories - Finished goods,(id:40092) TRUST Balance Sheet Codes,ALLIANCE HEALTHCARE HOSP SERV(UNICHEM),id:13238000   ,    26329.17
Department of Health,Guys and St Thomas NHS Foundation Trust,27/08/2020,(21130) Inventories - Finished goods,(id:40092) TRUST Balance Sheet Codes,AAH PHARMACEUTICALS LTD,id:13293562   ,    25377.65
Department of Health,Guys and St Thomas NHS Foundation Trust,27/08/2020,(21130) Inventories - Finished goods,(id:40092) TRUST Balance Sheet Codes,QUALASEPT LTD(BATH ASU),id:13287686   ,    33869.52
Department of Health,Guys and St Thomas NHS Foundation Trust,07/08/2020,(21130) Inventories - Finished goods,(id:40092) TRUST Balance Sheet Codes,ROCHE PRODUCTS LTD,id:13237852   ,1113.86
Department of Health,Guys and St Thomas NHS Foundation Trust,07/08/2020,(21130) Inventories - Finished goods,(id:40092) TRUST Balance Sheet Codes,ROCHE PRODUCTS LTD,id:13233287   ,5546.40
Department of Health,Guys and St Thomas NHS Foundation Trust,14/08/2020,(21130) Inventories - Finished goods,(id:40092) TRUST Balance Sheet Codes,KIMAL PLC,id:13247609  , 924.00
Department of Health,Guys and St Thomas NHS Foundation Trust,14/08/2020,(21130) Inventories - Finished goods,(id:40092) TRUST Balance Sheet Codes,BAXTER HEALTHCARE LTD,id:13247682,1640.18
Department of Health,Guys and St Thomas NHS Foundation Trust,14/08/2020,(21130) Inventories - Finished goods,(id:40092) TRUST Balance Sheet Codes,FRESENIUS KABI LTD,id:13247860   ,1161.00
Department of Health,Guys and St Thomas NHS Foundation Trust,14/08/2020,(21130) Inventories - Finished goods,(id:40092) TRUST Balance Sheet Codes,SANOFI AVENTIS,id:13247827  ,1793.83
Department of Health,Guys and St Thomas NHS Foundation Trust,14/08/2020,(21130) Inventories - Finished goods,(id:40092) TRUST Balance Sheet Codes,AAH PHARMACEUTICALS LTD,id:13251618   ,2184.96
Department of Health,Guys and St Thomas NHS Foundation Trust,14/08/2020,(21130) Inventories - Finished goods,(id:40092) TRUST Balance Sheet Codes,ALLIANCE HEALTHCARE HOSP SERV(UNICHEM),id:13237797   ,1555.11
Department of Health,Guys and St Thomas NHS Foundation Trust,14/08/2020,(21130) Inventories - Finished goods,(id:40092) TRUST Balance Sheet Codes,SANOFI AVENTIS,id:13247601  ,    11361.60
Department of Health,Guys and St Thomas NHS Foundation Trust,14/08/2020,(21130) Inventories - Finished goods,(id:40092) TRUST Balance Sheet Codes,ALLERGAN LTD,id:13228324    ,2388.00
Department of Health,Guys and St Thomas NHS Foundation Trust,14/08/2020,(21130) Inventories - Finished goods,(id:40092) TRUST Balance Sheet Codes,ROCHE PRODUCTS LTD,id:13237817   ,    35317.20
Department of Health,Guys and St Thomas NHS Foundation Trust,14/08/2020,(21130) Inventories - Finished goods,(id:40092) TRUST Balance Sheet Codes,BAXTER HEALTHCARE LTD,id:13237883,2521.03
Department of Health,Guys and St Thomas NHS Foundation Trust,07/08/2020,(21130) Inventories - Finished goods,(id:40092) TRUST Balance Sheet Codes,ALLOGA UK,id:13231015  ,6267.53
Department of Health,Guys and St Thomas NHS Foundation Trust,07/08/2020,(21130) Inventories - Finished goods,(id:40092) TRUST Balance Sheet Codes,AMGEN LIMITED,id:13228343   ,8323.20
Department of Health,Guys and St Thomas NHS Foundation Trust,07/08/2020,(21130) Inventories - Finished goods,(id:40092) TRUST Balance Sheet Codes,AAH PHARMACEUTICALS LTD,id:13230843   ,    19200.00
Department of Health,Guys and St Thomas NHS Foundation Trust,14/08/2020,(21130) Inventories - Finished goods,(id:40092) TRUST Balance Sheet Codes,OXFORD HEALTH NHS FOUNDATION TRUST,id:13237979  , 846.50
Department of Health,Guys and St Thomas NHS Foundation Trust,21/08/2020,(21130) Inventories - Finished goods,(id:40092) TRUST Balance Sheet Codes,ALLIANCE HEALTHCARE HOSP SERV(UNICHEM),id:13280721   ,1857.24
Department of Health,Guys and St Thomas NHS Foundation Trust,21/08/2020,(21130) Inventories - Finished goods,(id:40092) TRUST Balance Sheet Codes,ALLIANCE HEALTHCARE HOSP SERV(UNICHEM),id:13280677   ,2173.44
Department of Health,Guys and St Thomas NHS Foundation Trust,21/08/2020,(21130) Inventories - Finished goods,(id:40092) TRUST Balance Sheet Codes,ALLOGA UK,id:13251878  ,2445.48
Department of Health,Guys and St Thomas NHS Foundation Trust,21/08/2020,(21130) Inventories - Finished goods,(id:40092) TRUST Balance Sheet Codes,ALLOGA UK,id:13251685  , 936.00
Department of Health,Guys and St Thomas NHS Foundation Trust,27/08/2020,(21130) Inventories - Finished goods,(id:40092) TRUST Balance Sheet Codes,QUALASEPT LTD(BATH ASU),id:13287712   ,    47655.26
Department of Health,Guys and St Thomas NHS Foundation Trust,27/08/2020,(21130) Inventories - Finished goods,(id:40092) TRUST Balance Sheet Codes,BAXTER HEALTHCARE LTD,id:13281149,1378.80
Department of Health,Guys and St Thomas NHS Foundation Trust,27/08/2020,(21130) Inventories - Finished goods,(id:40092) TRUST Balance Sheet Codes,AAH PHARMACEUTICALS LTD,id:13293497   , 960.00
Department of Health,Guys and St Thomas NHS Foundation Trust,27/08/2020,(21130) Inventories - Finished goods,(id:40092) TRUST Balance Sheet Codes,AAH PHARMACEUTICALS LTD,id:13293759   ,5770.80
Department of Health,Guys and St Thomas NHS Foundation Trust,27/08/2020,(21130) Inventories - Finished goods,(id:40092) TRUST Balance Sheet Codes,AAH PHARMACEUTICALS LTD,id:13293760   ,1828.80
Department of Health,Guys and St Thomas NHS Foundation Trust,27/08/2020,(21130) Inventories - Finished goods,(id:40092) TRUST Balance Sheet Codes,HEALTHCARE LOGISTICS LTD:55433200,id:13289871   ,2400.00
Department of Health,Guys and St Thomas NHS Foundation Trust,27/08/2020,(21130) Inventories - Finished goods,(id:40092) TRUST Balance Sheet Codes,BAXTER HEALTHCARE LTD,id:13293910,1170.00
Department of Health,Guys and St Thomas NHS Foundation Trust,27/08/2020,(21130) Inventories - Finished goods,(id:40092) TRUST Balance Sheet Codes,AAH PHARMACEUTICALS LTD,id:13293492   ,    36480.00
Department of Health,Guys and St Thomas NHS Foundation Trust,07/08/2020,(21150) Inventories - Finished goods,(id:40092) TRUST Balance Sheet Codes,CENTRAL HOMECARE LTD,id:13219656 ,    14073.60
Department of Health,Guys and St Thomas NHS Foundation Trust,07/08/2020,(21150) Inventories - Finished goods,(id:40092) TRUST Balance Sheet Codes,LLOYDSPHARMACY CLINICAL HOMECARE,id:13219748    , 556.30
Department of Health,Guys and St Thomas NHS Foundation Trust,14/08/2020,(21150) Inventories - Finished goods,(id:40092) TRUST Balance Sheet Codes,CALEA UK LIMITED,id:13247581, 940.00
Department of Health,Guys and St Thomas NHS Foundation Trust,14/08/2020,(21150) Inventories - Finished goods,(id:40092) TRUST Balance Sheet Codes,POLAR SPEED DISTRIBUTION LTD,id:13247656   , 843.23
Department of Health,Guys and St Thomas NHS Foundation Trust,14/08/2020,(21150) Inventories - Finished goods,(id:40092) TRUST Balance Sheet Codes,POLAR SPEED DISTRIBUTION LTD,id:13251624   , 843.23
Department of Health,Guys and St Thomas NHS Foundation Trust,14/08/2020,(21150) Inventories - Finished goods,(id:40092) TRUST Balance Sheet Codes,HEALTHCARE AT HOME LTD,id:13251515    , 845.13
Department of Health,Guys and St Thomas NHS Foundation Trust,14/08/2020,(21150) Inventories - Finished goods,(id:40092) TRUST Balance Sheet Codes,HEALTHCARE AT HOME LTD,id:13259610    , 845.13
Department of Health,Guys and St Thomas NHS Foundation Trust,14/08/2020,(21150) Inventories - Finished goods,(id:40092) TRUST Balance Sheet Codes,HEALTHCARE AT HOME LTD,id:13259640    , 845.13
Department of Health,Guys and St Thomas NHS Foundation Trust,14/08/2020,(21150) Inventories - Finished goods,(id:40092) TRUST Balance Sheet Codes,HEALTHCARE AT HOME LTD,id:13259702    , 845.13
Department of Health,Guys and St Thomas NHS Foundation Trust,14/08/2020,(21150) Inventories - Finished goods,(id:40092) TRUST Balance Sheet Codes,CENTRAL HOMECARE LTD,id:13254659 , 898.20
Department of Health,Guys and St Thomas NHS Foundation Trust,14/08/2020,(21150) Inventories - Finished goods,(id:40092) TRUST Balance Sheet Codes,LLOYDSPHARMACY CLINICAL HOMECARE,id:13254688    ,1241.88
Department of Health,Guys and St Thomas NHS Foundation Trust,14/08/2020,(21150) Inventories - Finished goods,(id:40092) TRUST Balance Sheet Codes,HEALTHCARE AT HOME LTD,id:13259614    ,1270.00
Department of Health,Guys and St Thomas NHS Foundation Trust,14/08/2020,(21150) Inventories - Finished goods,(id:40092) TRUST Balance Sheet Codes,HEALTHCARE AT HOME LTD,id:13259578    ,1270.00
Department of Health,Guys and St Thomas NHS Foundation Trust,14/08/2020,(21150) Inventories - Finished goods,(id:40092) TRUST Balance Sheet Codes,HEALTHCARE AT HOME LTD,id:13251799    ,1373.66
Department of Health,Guys and St Thomas NHS Foundation Trust,14/08/2020,(21150) Inventories - Finished goods,(id:40092) TRUST Balance Sheet Codes,HEALTHCARE AT HOME LTD,id:13251646    ,1373.66
Department of Health,Guys and St Thomas NHS Foundation Trust,14/08/2020,(21150) Inventories - Finished goods,(id:40092) TRUST Balance Sheet Codes,CENTRAL HOMECARE LTD,id:13254691 ,1433.44
Department of Health,Guys and St Thomas NHS Foundation Trust,14/08/2020,(21150) Inventories - Finished goods,(id:40092) TRUST Balance Sheet Codes,HEALTHCARE AT HOME LTD,id:13251377    ,1408.55
Department of Health,Guys and St Thomas NHS Foundation Trust,14/08/2020,(21150) Inventories - Finished goods,(id:40092) TRUST Balance Sheet Codes,HEALTHCARE AT HOME LTD,id:13259705    ,1430.00
Department of Health,Guys and St Thomas NHS Foundation Trust,14/08/2020,(21150) Inventories - Finished goods,(id:40092) TRUST Balance Sheet Codes,LLOYDSPHARMACY CLINICAL HOMECARE,id:13254635    ,1433.60
Department of Health,Guys and St Thomas NHS Foundation Trust,14/08/2020,(21150) Inventories - Finished goods,(id:40092) TRUST Balance Sheet Codes,HEALTHCARE AT HOME LTD,id:13251702    ,2226.05
Department of Health,Guys and St Thomas NHS Foundation Trust,14/08/2020,(21150) Inventories - Finished goods,(id:40092) TRUST Balance Sheet Codes,HEALTHNET HOMECARE LTD,id:13247702    ,1494.86
Department of Health,Guys and St Thomas NHS Foundation Trust,14/08/2020,(21150) Inventories - Finished goods,(id:40092) TRUST Balance Sheet Codes,HEALTHNET HOMECARE LTD,id:13247667    ,1494.86
Department of Health,Guys and St Thomas NHS Foundation Trust,14/08/2020,(21150) Inventories - Finished goods,(id:40092) TRUST Balance Sheet Codes,POLAR SPEED DISTRIBUTION LTD,id:13247700   , 903.50
Department of Health,Guys and St Thomas NHS Foundation Trust,14/08/2020,(21150) Inventories - Finished goods,(id:40092) TRUST Balance Sheet Codes,CENTRAL HOMECARE LTD,id:13254652 ,1085.08
Department of Health,Guys and St Thomas NHS Foundation Trust,14/08/2020,(21150) Inventories - Finished goods,(id:40092) TRUST Balance Sheet Codes,HEALTHCARE AT HOME LTD,id:13251853    ,1126.84
Department of Health,Guys and St Thomas NHS Foundation Trust,14/08/2020,(21150) Inventories - Finished goods,(id:40092) TRUST Balance Sheet Codes,HEALTHCARE AT HOME LTD,id:13259701    ,1126.84
Department of Health,Guys and St Thomas NHS Foundation Trust,14/08/2020,(21150) Inventories - Finished goods,(id:40092) TRUST Balance Sheet Codes,HEALTHCARE AT HOME LTD,id:13251398    ,1126.84
Department of Health,Guys and St Thomas NHS Foundation Trust,14/08/2020,(21150) Inventories - Finished goods,(id:40092) TRUST Balance Sheet Codes,CENTRAL HOMECARE LTD,id:13254707 ,1196.80
Department of Health,Guys and St Thomas NHS Foundation Trust,14/08/2020,(21150) Inventories - Finished goods,(id:40092) TRUST Balance Sheet Codes,HEALTHCARE AT HOME LTD,id:13251641    , 600.00
Department of Health,Guys and St Thomas NHS Foundation Trust,14/08/2020,(21150) Inventories - Finished goods,(id:40092) TRUST Balance Sheet Codes,HEALTHCARE AT HOME LTD,id:13251409    , 600.00
Department of Health,Guys and St Thomas NHS Foundation Trust,14/08/2020,(21150) Inventories - Finished goods,(id:40092) TRUST Balance Sheet Codes,HEALTHCARE AT HOME LTD,id:13251856    , 600.00
Department of Health,Guys and St Thomas NHS Foundation Trust,14/08/2020,(21150) Inventories - Finished goods,(id:40092) TRUST Balance Sheet Codes,HEALTHCARE AT HOME LTD,id:13251774    , 600.00
Department of Health,Guys and St Thomas NHS Foundation Trust,14/08/2020,(21150) Inventories - Finished goods,(id:40092) TRUST Balance Sheet Codes,HEALTHCARE AT HOME LTD,id:13251768    , 600.00
Department of Health,Guys and St Thomas NHS Foundation Trust,14/08/2020,(21150) Inventories - Finished goods,(id:40092) TRUST Balance Sheet Codes,HEALTHCARE AT HOME LTD,id:13251620    , 600.00
Department of Health,Guys and St Thomas NHS Foundation Trust,14/08/2020,(21150) Inventories - Finished goods,(id:40092) TRUST Balance Sheet Codes,HEALTHNET HOMECARE LTD,id:13247784    , 625.00
Department of Health,Guys and St Thomas NHS Foundation Trust,14/08/2020,(21150) Inventories - Finished goods,(id:40092) TRUST Balance Sheet Codes,HEALTHNET HOMECARE LTD,id:13247789    , 625.00
Department of Health,Guys and St Thomas NHS Foundation Trust,14/08/2020,(21150) Inventories - Finished goods,(id:40092) TRUST Balance Sheet Codes,HEALTHNET HOMECARE LTD,id:13247848    , 625.00
Department of Health,Guys and St Thomas NHS Foundation Trust,14/08/2020,(21150) Inventories - Finished goods,(id:40092) TRUST Balance Sheet Codes,HEALTHCARE AT HOME LTD,id:13259742    , 635.00
Department of Health,Guys and St Thomas NHS Foundation Trust,14/08/2020,(21150) Inventories - Finished goods,(id:40092) TRUST Balance Sheet Codes,HEALTHCARE AT HOME LTD,id:13259743    , 635.00
Department of Health,Guys and St Thomas NHS Foundation Trust,14/08/2020,(21150) Inventories - Finished goods,(id:40092) TRUST Balance Sheet Codes,BAXTER HEALTHCARE LTD,id:13259631,1335.00
Department of Health,Guys and St Thomas NHS Foundation Trust,14/08/2020,(21150) Inventories - Finished goods,(id:40092) TRUST Balance Sheet Codes,LLOYDSPHARMACY CLINICAL HOMECARE,id:13254634    , 677.36
Department of Health,Guys and St Thomas NHS Foundation Trust,14/08/2020,(21150) Inventories - Finished goods,(id:40092) TRUST Balance Sheet Codes,LLOYDSPHARMACY CLINICAL HOMECARE,id:13254751    , 677.36
Department of Health,Guys and St Thomas NHS Foundation Trust,14/08/2020,(21150) Inventories - Finished goods,(id:40092) TRUST Balance Sheet Codes,HEALTHCARE AT HOME LTD,id:13251459    , 686.83
Department of Health,Guys and St Thomas NHS Foundation Trust,14/08/2020,(21150) Inventories - Finished goods,(id:40092) TRUST Balance Sheet Codes,HEALTHCARE AT HOME LTD,id:13251707    , 686.83
Department of Health,Guys and St Thomas NHS Foundation Trust,14/08/2020,(21150) Inventories - Finished goods,(id:40092) TRUST Balance Sheet Codes,CENTRAL HOMECARE LTD,id:13254750 , 696.72
Department of Health,Guys and St Thomas NHS Foundation Trust,14/08/2020,(21150) Inventories - Finished goods,(id:40092) TRUST Balance Sheet Codes,HEALTHCARE AT HOME LTD,id:13259586    , 701.93
Department of Health,Guys and St Thomas NHS Foundation Trust,14/08/2020,(21150) Inventories - Finished goods,(id:40092) TRUST Balance Sheet Codes,LLOYDSPHARMACY CLINICAL HOMECARE,id:13254658    , 716.80
Department of Health,Guys and St Thomas NHS Foundation Trust,14/08/2020,(21150) Inventories - Finished goods,(id:40092) TRUST Balance Sheet Codes,LLOYDSPHARMACY CLINICAL HOMECARE,id:13254734    , 716.80
Department of Health,Guys and St Thomas NHS Foundation Trust,14/08/2020,(21150) Inventories - Finished goods,(id:40092) TRUST Balance Sheet Codes,LLOYDSPHARMACY CLINICAL HOMECARE,id:13254737    , 716.80
Department of Health,Guys and St Thomas NHS Foundation Trust,14/08/2020,(21150) Inventories - Finished goods,(id:40092) TRUST Balance Sheet Codes,CALEA UK LIMITED,id:13247804, 835.00
Department of Health,Guys and St Thomas NHS Foundation Trust,14/08/2020,(21150) Inventories - Finished goods,(id:40092) TRUST Balance Sheet Codes,HEALTHNET HOMECARE LTD,id:13247661    , 747.43
Department of Health,Guys and St Thomas NHS Foundation Trust,21/08/2020,(21150) Inventories - Finished goods,(id:40092) TRUST Balance Sheet Codes,HEALTHNET HOMECARE LTD,id:13278166    , 625.00
Department of Health,Guys and St Thomas NHS Foundation Trust,21/08/2020,(21150) Inventories - Finished goods,(id:40092) TRUST Balance Sheet Codes,HEALTHNET HOMECARE LTD,id:13281057    , 625.00
Department of Health,Guys and St Thomas NHS Foundation Trust,21/08/2020,(21150) Inventories - Finished goods,(id:40092) TRUST Balance Sheet Codes,HEALTHNET HOMECARE LTD,id:13278274    , 625.00
Department of Health,Guys and St Thomas NHS Foundation Trust,21/08/2020,(21150) Inventories - Finished goods,(id:40092) TRUST Balance Sheet Codes,HEALTHNET HOMECARE LTD,id:13276566    , 625.00
Department of Health,Guys and St Thomas NHS Foundation Trust,21/08/2020,(21150) Inventories - Finished goods,(id:40092) TRUST Balance Sheet Codes,HEALTHNET HOMECARE LTD,id:13278141    , 625.00
Department of Health,Guys and St Thomas NHS Foundation Trust,21/08/2020,(21150) Inventories - Finished goods,(id:40092) TRUST Balance Sheet Codes,HEALTHCARE AT HOME LTD,id:13281168    , 980.60
Department of Health,Guys and St Thomas NHS Foundation Trust,21/08/2020,(21150) Inventories - Finished goods,(id:40092) TRUST Balance Sheet Codes,HEALTHCARE AT HOME LTD,id:13281130    ,3793.10
Department of Health,Guys and St Thomas NHS Foundation Trust,21/08/2020,(21150) Inventories - Finished goods,(id:40092) TRUST Balance Sheet Codes,HEALTHCARE AT HOME LTD,id:13276533    ,1918.10
Department of Health,Guys and St Thomas NHS Foundation Trust,21/08/2020,(21150) Inventories - Finished goods,(id:40092) TRUST Balance Sheet Codes,HEALTHCARE AT HOME LTD,id:13281216    ,1464.51
Department of Health,Guys and St Thomas NHS Foundation Trust,21/08/2020,(21150) Inventories - Finished goods,(id:40092) TRUST Balance Sheet Codes,HEALTHCARE AT HOME LTD,id:13281186    , 980.60
Department of Health,Guys and St Thomas NHS Foundation Trust,21/08/2020,(21150) Inventories - Finished goods,(id:40092) TRUST Balance Sheet Codes,HEALTHCARE AT HOME LTD,id:13281237    , 980.60
Department of Health,Guys and St Thomas NHS Foundation Trust,26/08/2020,(21150) Inventories - Finished goods,(id:40092) TRUST Balance Sheet Codes,HEALTHCARE AT HOME LTD,id:13289907    ,2135.36
Department of Health,Guys and St Thomas NHS Foundation Trust,26/08/2020,(21150) Inventories - Finished goods,(id:40092) TRUST Balance Sheet Codes,HEALTHCARE AT HOME LTD,id:13289858    ,2147.00
Department of Health,Guys and St Thomas NHS Foundation Trust,26/08/2020,(21150) Inventories - Finished goods,(id:40092) TRUST Balance Sheet Codes,HEALTHCARE AT HOME LTD,id:13290027    ,2147.00
Department of Health,Guys and St Thomas NHS Foundation Trust,26/08/2020,(21150) Inventories - Finished goods,(id:40092) TRUST Balance Sheet Codes,HEALTHCARE AT HOME LTD,id:13289929    ,2147.00
Department of Health,Guys and St Thomas NHS Foundation Trust,26/08/2020,(21150) Inventories - Finished goods,(id:40092) TRUST Balance Sheet Codes,HEALTHCARE AT HOME LTD,id:13290096    ,3847.50
Department of Health,Guys and St Thomas NHS Foundation Trust,26/08/2020,(21150) Inventories - Finished goods,(id:40092) TRUST Balance Sheet Codes,HEALTHCARE AT HOME LTD,id:13290095    ,    12600.00
Department of Health,Guys and St Thomas NHS Foundation Trust,26/08/2020,(21150) Inventories - Finished goods,(id:40092) TRUST Balance Sheet Codes,HEALTHCARE AT HOME LTD,id:13290181    ,2147.00
Department of Health,Guys and St Thomas NHS Foundation Trust,26/08/2020,(21150) Inventories - Finished goods,(id:40092) TRUST Balance Sheet Codes,HEALTHCARE AT HOME LTD,id:13290153    ,2147.00
Department of Health,Guys and St Thomas NHS Foundation Trust,26/08/2020,(21150) Inventories - Finished goods,(id:40092) TRUST Balance Sheet Codes,HEALTHCARE AT HOME LTD,id:13290159    ,2147.00
Department of Health,Guys and St Thomas NHS Foundation Trust,26/08/2020,(21150) Inventories - Finished goods,(id:40092) TRUST Balance Sheet Codes,HEALTHCARE AT HOME LTD,id:13289906    ,2277.09
Department of Health,Guys and St Thomas NHS Foundation Trust,26/08/2020,(21150) Inventories - Finished goods,(id:40092) TRUST Balance Sheet Codes,HEALTHCARE AT HOME LTD,id:13289586    ,3151.00
Department of Health,Guys and St Thomas NHS Foundation Trust,26/08/2020,(21150) Inventories - Finished goods,(id:40092) TRUST Balance Sheet Codes,HEALTHCARE AT HOME LTD,id:13289766    ,3150.00
Department of Health,Guys and St Thomas NHS Foundation Trust,26/08/2020,(21150) Inventories - Finished goods,(id:40092) TRUST Balance Sheet Codes,HEALTHCARE AT HOME LTD,id:13289827    ,1430.00
Department of Health,Guys and St Thomas NHS Foundation Trust,26/08/2020,(21150) Inventories - Finished goods,(id:40092) TRUST Balance Sheet Codes,HEALTHCARE AT HOME LTD,id:13290250    ,1430.00
Department of Health,Guys and St Thomas NHS Foundation Trust,26/08/2020,(21150) Inventories - Finished goods,(id:40092) TRUST Balance Sheet Codes,HEALTHCARE AT HOME LTD,id:13290307    ,1430.00
Department of Health,Guys and St Thomas NHS Foundation Trust,26/08/2020,(21150) Inventories - Finished goods,(id:40092) TRUST Balance Sheet Codes,HEALTHCARE AT HOME LTD,id:13290316    ,1430.00
Department of Health,Guys and St Thomas NHS Foundation Trust,26/08/2020,(21150) Inventories - Finished goods,(id:40092) TRUST Balance Sheet Codes,HEALTHCARE AT HOME LTD,id:13289788    ,1430.00
Department of Health,Guys and St Thomas NHS Foundation Trust,26/08/2020,(21150) Inventories - Finished goods,(id:40092) TRUST Balance Sheet Codes,HEALTHCARE AT HOME LTD,id:13289807    ,1430.00
Department of Health,Guys and St Thomas NHS Foundation Trust,26/08/2020,(21150) Inventories - Finished goods,(id:40092) TRUST Balance Sheet Codes,HEALTHCARE AT HOME LTD,id:13289920    ,1430.00
Department of Health,Guys and St Thomas NHS Foundation Trust,26/08/2020,(21150) Inventories - Finished goods,(id:40092) TRUST Balance Sheet Codes,HEALTHCARE AT HOME LTD,id:13290103    ,1430.00
Department of Health,Guys and St Thomas NHS Foundation Trust,26/08/2020,(21150) Inventories - Finished goods,(id:40092) TRUST Balance Sheet Codes,HEALTHCARE AT HOME LTD,id:13289750    ,1690.26
Department of Health,Guys and St Thomas NHS Foundation Trust,26/08/2020,(21150) Inventories - Finished goods,(id:40092) TRUST Balance Sheet Codes,HEALTHCARE AT HOME LTD,id:13289898    ,1690.26
Department of Health,Guys and St Thomas NHS Foundation Trust,26/08/2020,(21150) Inventories - Finished goods,(id:40092) TRUST Balance Sheet Codes,HEALTHCARE AT HOME LTD,id:13289822    ,1815.00
Department of Health,Guys and St Thomas NHS Foundation Trust,26/08/2020,(21150) Inventories - Finished goods,(id:40092) TRUST Balance Sheet Codes,HEALTHCARE AT HOME LTD,id:13290266    ,1815.00
Department of Health,Guys and St Thomas NHS Foundation Trust,26/08/2020,(21150) Inventories - Finished goods,(id:40092) TRUST Balance Sheet Codes,HEALTHCARE AT HOME LTD,id:13289894    ,1918.10
Department of Health,Guys and St Thomas NHS Foundation Trust,26/08/2020,(21150) Inventories - Finished goods,(id:40092) TRUST Balance Sheet Codes,HEALTHCARE AT HOME LTD,id:13290289    ,1918.10
Department of Health,Guys and St Thomas NHS Foundation Trust,27/08/2020,(21150) Inventories - Finished goods,(id:40092) TRUST Balance Sheet Codes,CENTRAL HOMECARE LTD,id:13293667 , 736.72
Department of Health,Guys and St Thomas NHS Foundation Trust,27/08/2020,(21150) Inventories - Finished goods,(id:40092) TRUST Balance Sheet Codes,HEALTHCARE AT HOME LTD,id:13293882    ,1417.09
Department of Health,Guys and St Thomas NHS Foundation Trust,27/08/2020,(21150) Inventories - Finished goods,(id:40092) TRUST Balance Sheet Codes,HEALTHCARE AT HOME LTD,id:13293955    ,1417.09
Department of Health,Guys and St Thomas NHS Foundation Trust,27/08/2020,(21150) Inventories - Finished goods,(id:40092) TRUST Balance Sheet Codes,CENTRAL HOMECARE LTD,id:13293587 ,    11955.00
Department of Health,Guys and St Thomas NHS Foundation Trust,27/08/2020,(21150) Inventories - Finished goods,(id:40092) TRUST Balance Sheet Codes,CENTRAL HOMECARE LTD,id:13293952 ,9120.00
Department of Health,Guys and St Thomas NHS Foundation Trust,07/08/2020,(21150) Inventories - Finished goods,(id:40092) TRUST Balance Sheet Codes,HEALTHCARE AT HOME LTD,id:13233143    , 563.42
Department of Health,Guys and St Thomas NHS Foundation Trust,07/08/2020,(21150) Inventories - Finished goods,(id:40092) TRUST Balance Sheet Codes,HEALTHCARE AT HOME LTD,id:13233194    , 563.42
